{"text_format":"1","workbook":"xlsx","n_sheets":12,"sheets":["Übersicht Bestelllisten","DURA","CRET","Brandschutzmanschetten","CRET Silent","ARBO","ARBO Silent","RIBA Silent","NELL Silent","RIBA","Produktdaten","Sprachen"],"not_rendered":{"charts":0,"images":52,"macros":1,"external_links":0,"defined_names":52,"comments":0,"pivot_tables":0},"unopened":[],"bounds":{"document_bytes":16777216,"sheet_cells":100000,"rows_first":2000,"rows_last":500,"rows_between":2000,"halvings":0,"cell_chars":16384,"cell_head_chars":4096},"cells_cut":0,"cells_raw":0,"read":"whole","date_system":"1900"}

{"sheet":"Übersicht Bestelllisten","index":0,"n_rows":37,"n_cols":49,"rows_kept":37,"cut":false,"hidden":false,"merged":[[7,1,7,23],[7,25,7,46],[2,25,2,33],[5,1,5,23],[5,25,5,33],[5,35,5,46],[6,1,6,23],[8,1,8,23],[8,25,8,46],[9,25,9,46],[10,1,10,23],[11,1,11,23],[11,25,11,46],[16,25,16,46],[17,1,17,10],[17,12,17,23],[17,25,17,46],[12,1,12,23],[12,25,12,46],[13,1,13,23],[13,25,13,46],[15,1,15,10],[15,12,15,23],[15,25,15,46]]}
[]
[null,{"$f":"VLOOKUP(Sprachen!B26,SprachListe,Abfrage,FALSE)","v":"Projektdaten eingeben"},null,null,null,null,null,null,null,null,null,null,null,null,null,null,null,null,null,null,null,null,null,null,null,null,null,null,null,null,null,null,null,null,null,null,null,null,null,null,null,null,null,null,null,null,null,null,{"$f":"VLOOKUP(Sprachen!B27,SprachListe,Abfrage,FALSE)","v":"Bestelllisten"}]
[]
[]
[null,{"$f":"VLOOKUP(Sprachen!B7,SprachListe,Abfrage,FALSE)","v":"Objekt"},null,null,null,null,null,null,null,null,null,null,null,null,null,null,null,null,null,null,null,null,null,null,null,{"$f":"VLOOKUP(Sprachen!B8,SprachListe,Abfrage,FALSE)","v":"Datum"},null,null,null,null,null,null,null,null,null,{"$f":"VLOOKUP(Sprachen!B10,SprachListe,Abfrage,FALSE)","v":"Zeichner/-in"}]
[]
[null,null,null,null,null,null,null,null,null,null,null,null,null,null,null,null,null,null,null,null,null,null,null,null,null,{"$f":"VLOOKUP(Sprachen!B11,SprachListe,Abfrage,FALSE)","v":"Ingenieurbüro"}]
[]
[]
[null,{"$f":"VLOOKUP(Sprachen!B9,SprachListe,Abfrage,FALSE)","v":"Bauteil"},null,null,null,null,null,null,null,null,null,null,null,null,null,null,null,null,null,null,null,null,null,null,null,"Ihre Telefonummer"]
[null,null,null,null,null,null,null,null,null,null,null,null,null,null,null,null,null,null,null,null,null,null,null,null,null,{"$f":"VLOOKUP(Sprachen!B12,SprachListe,Abfrage,FALSE)","v":"Lieferadresse"}]
[]
[]
[]
[null,{"$f":"VLOOKUP(Sprachen!B13,SprachListe,Abfrage,FALSE)","v":"Liste Nr."},null,null,null,null,null,null,null,null,null,null,{"$f":"VLOOKUP(Sprachen!B14,SprachListe,Abfrage,FALSE)","v":"Zu Plan Nr."},null,null,null,null,null,null,null,null,null,null,null,null,{"$f":"VLOOKUP(Sprachen!B17,SprachListe,Abfrage,FALSE)","v":"Bauunternehmung"}]
[]
[null,{"$f":"VLOOKUP(Sprachen!B15,SprachListe,Abfrage,FALSE)","v":"Name des Bestellers"},null,null,null,null,null,null,null,null,null,null,{"$f":"VLOOKUP(Sprachen!B16,SprachListe,Abfrage,FALSE)","v":"Liefertermin"}]
[]
[]
[]
[]
[]
[]
[]
[]
[]
[null,{"$f":"VLOOKUP(Sprachen!B4,SprachListe,Abfrage,FALSE)","v":"Sprache"}]
[]
[]
[]
[null,null,null,null,null,null,null,null,null,null,null,null,null,null,null,"Leviat AG",null,null,null,null,null,null,null,null,null,null,null,null,null,null,null,null,null,null,null,null,null,null,null,null,null,null,null,null,null,null,null,null,"                                                                                               The home of:"]
[null,null,null,null,null,null,null,null,null,null,null,null,null,null,null,"Grenzstrasse 24  |  3250 Lyss |  Schweiz  | T. +41 32 387 95 95 | E.",null,null,null,null,null,null,null,null,null,null,null,null,null,null,null,null,null,null,null,null,null,null,null,null,null,"info.ch@leviat.com"]
[null,null,null,null,null,null,null,null,null,null,null,null,null,null,null,"Leviat.com",null,null,null,null,"|","Aschwanden.com"]
[null,null,null,null,null,null,null,null,null,null,null,null,null,null,null,"AGB (de)",null,null,null,"| ","CG (fr)"]
[]
[]
[null,{"$f":"VLOOKUP(Sprachen!B68,SprachListe,Abfrage,FALSE)","v":"Mit der Bestellung werden die Allgemeinen Geschäftsbedingungen akzeptiert"},null,null,null,null,null,null,null,null,null,null,null,null,null,null,null,null,null,null,null,null,null,null,null,null,null,null,null,null,null,null,null,null,null,null,null,null,null,null,null,null,null,null,null,null,null,null,"Vers.07.2021"]

{"sheet":"DURA","index":1,"n_rows":35,"n_cols":55,"rows_kept":35,"cut":false,"hidden":false,"merged":[[58,1,58,3],[58,4,58,14],[58,15,58,24],[58,25,58,29],[58,30,58,46],[56,1,56,3],[56,4,56,14],[56,15,56,24],[56,25,56,29],[56,30,56,46],[57,1,57,3],[57,4,57,14],[57,15,57,24],[57,25,57,29],[57,30,57,46],[54,1,54,3],[54,4,54,14],[54,15,54,24],[54,25,54,29],[54,30,54,46],[55,1,55,3],[55,4,55,14],[55,15,55,24],[55,25,55,29],[55,30,55,46],[52,1,52,3],[52,4,52,14],[52,15,52,24],[52,25,52,29],[52,30,52,46],[53,1,53,3],[53,4,53,14],[53,15,53,24],[53,25,53,29],[53,30,53,46],[50,1,50,3],[50,4,50,14],[50,15,50,24],[50,25,50,29],[50,30,50,46],[51,1,51,3],[51,4,51,14],[51,15,51,24],[51,25,51,29],[51,30,51,46],[48,1,48,3],[48,4,48,14],[48,15,48,24],[48,25,48,29],[48,30,48,46],[49,1,49,3],[49,4,49,14],[49,15,49,24],[49,25,49,29],[49,30,49,46],[46,1,46,3],[46,4,46,14],[46,15,46,24],[46,25,46,29],[46,30,46,46],[47,1,47,3],[47,4,47,14],[47,15,47,24],[47,25,47,29],[47,30,47,46],[44,1,44,3],[44,4,44,14],[44,15,44,24],[44,25,44,29],[44,30,44,46],[45,1,45,3],[45,4,45,14],[45,15,45,24],[45,25,45,29],[45,30,45,46],[42,1,42,3],[42,4,42,14],[42,15,42,24],[42,25,42,29],[42,30,42,46],[43,1,43,3],[43,4,43,14],[43,15,43,24],[43,25,43,29],[43,30,43,46],[9,25,9,33],[11,25,11,46],[11,1,11,23],[10,1,10,23],[9,1,9,23],[22,2,22,11],[22,13,22,22],[6,25,6,33],[9,35,9,46],[22,25,22,44],[14,1,14,23],[15,1,15,23],[16,1,16,23],[17,1,17,23],[16,25,16,46],[17,25,17,46],[19,25,19,46],[12,25,12,46],[13,25,13,46],[15,25,15,46],[12,1,12,23],[19,1,19,10],[19,12,19,23],[28,1,28,3],[28,4,28,14],[28,15,28,24],[28,25,28,29],[28,30,28,46],[29,30,29,46],[20,25,20,46],[25,15,25,22],[25,25,25,28],[27,1,27,3],[27,4,27,14],[27,15,27,24],[27,25,27,29],[27,30,27,46],[21,25,21,46],[21,1,21,10],[21,12,21,23],[25,30,25,46],[30,1,30,3],[30,4,30,14],[30,15,30,24],[30,25,30,29],[30,30,30,46],[29,1,29,3],[29,4,29,14],[29,15,29,24],[29,25,29,29],[31,30,31,46],[32,1,32,3],[32,4,32,14],[32,15,32,24],[32,25,32,29],[32,30,32,46],[31,1,31,3],[31,4,31,14],[31,15,31,24],[31,25,31,29],[39,30,39,46],[33,30,33,46],[34,1,34,3],[34,4,34,14],[34,15,34,24],[34,25,34,29],[34,30,34,46],[33,1,33,3],[33,4,33,14],[33,15,33,24],[33,25,33,29],[35,30,35,46],[36,1,36,3],[36,4,36,14],[36,15,36,24],[36,25,36,29],[36,30,36,46],[35,1,35,3],[35,4,35,14],[35,15,35,24],[35,25,35,29],[41,30,41,46],[41,1,41,3],[41,4,41,14],[41,15,41,24],[41,25,41,29],[37,30,37,46],[40,1,40,3],[40,4,40,14],[40,15,40,24],[40,25,40,29],[40,30,40,46],[37,1,37,3],[37,4,37,14],[37,15,37,24],[37,25,37,29],[38,1,38,3],[38,4,38,14],[38,15,38,24],[38,25,38,29],[38,30,38,46],[39,1,39,3],[39,4,39,14],[39,15,39,24],[39,25,39,29]]}
[]
[]
[]
[]
[]
[null,{"$f":"VLOOKUP(Sprachen!B21,SprachListe,Abfrage,FALSE) &\" DURA\"","v":"Bestellung DURA"},null,null,null,null,null,null,null,null,null,null,null,null,null,null,null,null,null,null,null,null,null,null,null,null,null,null,null,null,null,null,null,null,null,null,null,null,null,null,null,null,null,null,null,null,{"$f":"'Übersicht Bestelllisten'!AW37","v":"Vers.07.2021"}]
[]
[]
[null,{"$f":"VLOOKUP(Sprachen!B7,SprachListe,Abfrage,FALSE)","v":"Objekt"},null,null,null,null,null,null,null,null,null,null,null,null,null,null,null,null,null,null,null,null,null,null,null,{"$f":"VLOOKUP(Sprachen!B8,SprachListe,Abfrage,FALSE)","v":"Datum"},null,null,null,null,null,null,null,null,null,{"$f":"VLOOKUP(Sprachen!B10,SprachListe,Abfrage,FALSE)","v":"Zeichner/-in"}]
[]
[null,null,null,null,null,null,null,null,null,null,null,null,null,null,null,null,null,null,null,null,null,null,null,null,null,{"$f":"VLOOKUP(Sprachen!B11,SprachListe,Abfrage,FALSE)","v":"Ingenieurbüro"}]
[]
[]
[null,{"$f":"VLOOKUP(Sprachen!B9,SprachListe,Abfrage,FALSE)","v":"Bauteil"},null,null,null,null,null,null,null,null,null,null,null,null,null,null,null,null,null,null,null,null,null,null,null,"Ihre Telefonummer"]
[null,null,null,null,null,null,null,null,null,null,null,null,null,null,null,null,null,null,null,null,null,null,null,null,null,{"$f":"VLOOKUP(Sprachen!B12,SprachListe,Abfrage,FALSE)","v":"Lieferadresse"}]
[]
[]
[]
[null,{"$f":"VLOOKUP(Sprachen!B13,SprachListe,Abfrage,FALSE)","v":"Liste Nr."},null,null,null,null,null,null,null,null,null,null,{"$f":"VLOOKUP(Sprachen!B14,SprachListe,Abfrage,FALSE)","v":"Zu Plan Nr."},null,null,null,null,null,null,null,null,null,null,null,null,{"$f":"VLOOKUP(Sprachen!B17,SprachListe,Abfrage,FALSE)","v":"Bauunternehmung"}]
[]
[null,{"$f":"VLOOKUP(Sprachen!B15,SprachListe,Abfrage,FALSE)","v":"Name des Bestellers"},null,null,null,null,null,null,null,null,null,null,{"$f":"VLOOKUP(Sprachen!B16,SprachListe,Abfrage,FALSE)","v":"Liefertermin"}]
[]
[]
[null,{"$f":"VLOOKUP(Sprachen!B39,SprachListe,Abfrage,FALSE)","v":"DURA Durchstanz- und Querkraftbewehrung"},null,null,null,null,null,null,null,null,null,null,null,null,null,null,null,null,null,null,null,null,null,null,null,null,null,null,null,null,null,null,null,null,null,null,null,null,null,null,null,null,null,null,null,null,null,null,null,null,{"$f":"VLOOKUP(Sprachen!B73,SprachListe,Abfrage,FALSE)","v":"Beispiel"}]
[]
[null,"Pos",null,null,{"$f":"VLOOKUP(Sprachen!B18,SprachListe,Abfrage,FALSE)","v":"Typ"},null,null,null,null,null,null,null,null,null,null,{"$f":"VLOOKUP(Sprachen!B40,SprachListe,Abfrage,FALSE)","v":"Korbhöhe mm"},null,null,null,null,null,null,null,null,null,{"$f":"VLOOKUP(Sprachen!B19,SprachListe,Abfrage,FALSE)","v":"Anzahl"},null,null,null,null,{"$f":"VLOOKUP(Sprachen!B20,SprachListe,Abfrage,FALSE)","v":"Bemerkungen"},null,null,null,null,null,null,null,null,null,null,null,null,null,null,null,null,null,null,null,{"$f":"B26","v":"Pos"},{"$f":"E26","v":"Typ"},{"$f":"P26","v":"Korbhöhe mm"},{"$f":"Z26","v":"Anzahl"},{"$f":"AE26","v":"Bemerkungen"}]
[]
[null,null,null,null,null,null,null,null,null,null,null,null,null,null,null,null,null,null,null,null,null,null,null,null,null,null,null,null,null,null,null,null,null,null,null,null,null,null,null,null,null,null,null,null,null,null,null,null,null,null,1,"DURA-70",180,16]
[null,null,null,null,null,null,null,null,null,null,null,null,null,null,null,null,null,null,null,null,null,null,null,null,null,null,null,null,null,null,null,null,null,null,null,null,null,null,null,null,null,null,null,null,null,null,null,null,null,null,2,"DURA-45",260,14]
[null,null,null,null,null,null,null,null,null,null,null,null,null,null,null,null,null,null,null,null,null,null,null,null,null,null,null,null,null,null,null,null,null,null,null,null,null,null,null,null,null,null,null,null,null,null,null,null,null,null,3,"DURA Box-185",null,30]
[null,null,null,null,null,null,null,null,null,null,null,null,null,null,null,null,null,null,null,null,null,null,null,null,null,null,null,null,null,null,null,null,null,null,null,null,null,null,null,null,null,null,null,null,null,null,null,null,null,null,4,"DURA-80/25-AB2.G26.U",null,4]
[null,null,null,null,null,null,null,null,null,null,null,null,null,null,null,null,null,null,null,null,null,null,null,null,null,null,null,null,null,null,null,null,null,null,null,null,null,null,null,null,null,null,null,null,null,null,null,null,null,null,5,"DURA-S-18-300-350-1 ",null,2,"L=2931 mm"]
[null,null,null,null,null,null,null,null,null,null,null,null,null,null,null,null,null,null,null,null,null,null,null,null,null,null,null,null,null,null,null,null,null,null,null,null,null,null,null,null,null,null,null,null,null,null,null,null,null,null,6,"DURA-S-18-150-310-2",null,2,"L=2661 mm"]
[null,null,null,null,null,null,null,null,null,null,null,null,null,null,null,null,null,null,null,null,null,null,null,null,null,null,null,null,null,null,null,null,null,null,null,null,null,null,null,null,null,null,null,null,null,null,null,null,null,null,7,"DURA-SR-14-375-350-1",null,2,"L=1538 mm "]
[null,null,null,null,null,null,null,null,null,null,null,null,null,null,null,null,null,null,null,null,null,null,null,null,null,null,null,null,null,null,null,null,null,null,null,null,null,null,null,null,null,null,null,null,null,null,null,null,null,null,8,"DURA-S-14-150-310-2 ",null,2,"L=2536mm"]

{"sheet":"CRET","index":2,"n_rows":60,"n_cols":59,"rows_kept":60,"cut":false,"hidden":false,"merged":[[47,4,47,12],[48,4,48,12],[49,4,49,12],[50,4,50,12],[51,4,51,12],[42,4,42,12],[43,4,43,12],[44,4,44,12],[45,4,45,12],[46,4,46,12],[38,4,38,12],[39,4,39,12],[40,4,40,12],[41,4,41,12],[42,13,42,19],[43,13,43,19],[44,13,44,19],[54,13,54,19],[45,13,45,19],[46,13,46,19],[47,13,47,19],[48,13,48,19],[49,13,49,19],[50,13,50,19],[51,13,51,19],[52,13,52,19],[53,13,53,19],[38,13,38,19],[39,13,39,19],[40,13,40,19],[41,13,41,19],[52,4,52,12],[53,4,53,12],[54,4,54,12],[14,1,14,23],[6,25,6,33],[9,1,9,23],[9,25,9,33],[9,35,9,48],[10,1,10,23],[11,1,11,23],[11,25,11,48],[12,1,12,23],[12,25,12,48],[13,25,13,48],[15,1,15,23],[15,25,15,48],[16,1,16,23],[16,25,16,48],[17,1,17,23],[17,25,17,48],[19,1,19,10],[19,12,19,23],[19,25,19,48],[20,25,20,48],[21,1,21,10],[21,12,21,23],[21,25,21,48],[22,2,22,11],[22,13,22,22],[22,25,22,44],[23,25,23,33],[27,13,27,18],[29,35,29,48],[30,1,30,3],[30,4,30,12],[30,13,30,19],[30,35,30,48],[29,1,29,3],[29,4,29,12],[29,13,29,19],[29,30,29,34],[30,20,30,24],[30,25,30,29],[30,30,30,34],[31,35,31,48],[32,1,32,3],[32,4,32,12],[32,13,32,19],[32,35,32,48],[31,1,31,3],[31,4,31,12],[31,13,31,19],[31,20,31,24],[32,25,32,29],[31,30,31,34],[32,30,32,34],[31,25,31,29],[33,35,33,48],[34,1,34,3],[34,4,34,12],[34,13,34,19],[34,35,34,48],[33,1,33,3],[33,4,33,12],[33,13,33,19],[33,20,33,24],[33,25,33,29],[33,30,33,34],[55,35,55,48],[59,1,67,23],[27,20,27,24],[27,25,27,29],[27,30,27,34],[29,20,29,24],[29,25,29,29],[55,1,55,3],[55,4,55,12],[55,13,55,19],[35,35,35,48],[36,1,36,3],[36,4,36,12],[36,13,36,19],[36,35,36,48],[35,1,35,3],[28,20,28,24],[28,25,28,29],[28,30,28,34],[36,20,36,24],[55,20,55,24],[36,25,36,29],[55,25,55,29],[55,30,55,34],[36,30,36,34],[34,20,34,24],[34,25,34,29],[34,30,34,34],[35,30,35,34],[35,25,35,29],[35,20,35,24],[32,20,32,24],[37,1,37,3],[37,30,37,34],[35,4,35,12],[35,13,35,19],[37,4,37,12],[37,13,37,19],[38,1,38,3],[39,1,39,3],[40,1,40,3],[41,1,41,3],[42,1,42,3],[43,1,43,3],[44,1,44,3],[45,1,45,3],[46,1,46,3],[47,1,47,3],[48,1,48,3],[49,1,49,3],[50,1,50,3],[51,1,51,3],[52,1,52,3],[53,1,53,3],[54,1,54,3],[37,20,37,24],[38,20,38,24],[39,20,39,24],[40,20,40,24],[41,20,41,24],[42,20,42,24],[43,20,43,24],[44,20,44,24],[45,20,45,24],[46,20,46,24],[47,20,47,24],[48,20,48,24],[49,20,49,24],[50,20,50,24],[51,20,51,24],[52,20,52,24],[53,20,53,24],[54,20,54,24],[37,25,37,29],[38,25,38,29],[39,25,39,29],[40,25,40,29],[41,25,41,29],[42,25,42,29],[43,25,43,29],[44,25,44,29],[45,25,45,29],[46,25,46,29],[47,25,47,29],[48,25,48,29],[49,25,49,29],[50,25,50,29],[51,25,51,29],[52,25,52,29],[53,25,53,29],[54,25,54,29],[46,35,46,48],[47,35,47,48],[48,35,48,48],[49,35,49,48],[50,35,50,48],[51,35,51,48],[52,35,52,48],[38,30,38,34],[39,30,39,34],[40,30,40,34],[41,30,41,34],[42,30,42,34],[43,30,43,34],[44,30,44,34],[45,30,45,34],[46,30,46,34],[37,35,37,48],[38,35,38,48],[39,35,39,48],[40,35,40,48],[41,35,41,48],[42,35,42,48],[43,35,43,48],[44,35,44,48],[45,35,45,48],[53,35,53,48],[54,35,54,48],[47,30,47,34],[48,30,48,34],[49,30,49,34],[50,30,50,34],[51,30,51,34],[52,30,52,34],[53,30,53,34],[54,30,54,34]]}
[]
[]
[]
[]
[]
[null,{"$f":"VLOOKUP(Sprachen!B21,SprachListe,Abfrage,FALSE) &\" CRET\"","v":"Bestellung CRET"},null,null,null,null,null,null,null,null,null,null,null,null,null,null,null,null,null,null,null,null,null,null,null,null,null,null,null,null,null,null,null,null,null,null,null,null,null,null,null,null,null,null,null,null,null,null,{"$f":"'Übersicht Bestelllisten'!AW37","v":"Vers.07.2021"}]
[]
[]
[null,{"$f":"VLOOKUP(Sprachen!B7,SprachListe,Abfrage,FALSE)","v":"Objekt"},null,null,null,null,null,null,null,null,null,null,null,null,null,null,null,null,null,null,null,null,null,null,null,{"$f":"VLOOKUP(Sprachen!B8,SprachListe,Abfrage,FALSE)","v":"Datum"},null,null,null,null,null,null,null,null,null,{"$f":"VLOOKUP(Sprachen!B10,SprachListe,Abfrage,FALSE)","v":"Zeichner/-in"}]
[]
[null,null,null,null,null,null,null,null,null,null,null,null,null,null,null,null,null,null,null,null,null,null,null,null,null,{"$f":"VLOOKUP(Sprachen!B11,SprachListe,Abfrage,FALSE)","v":"Ingenieurbüro"}]
[]
[]
[null,{"$f":"VLOOKUP(Sprachen!B9,SprachListe,Abfrage,FALSE)","v":"Bauteil"},null,null,null,null,null,null,null,null,null,null,null,null,null,null,null,null,null,null,null,null,null,null,null,"Ihre Telefonummer"]
[null,null,null,null,null,null,null,null,null,null,null,null,null,null,null,null,null,null,null,null,null,null,null,null,null,{"$f":"VLOOKUP(Sprachen!B12,SprachListe,Abfrage,FALSE)","v":"Lieferadresse"}]
[]
[]
[]
[null,{"$f":"VLOOKUP(Sprachen!B13,SprachListe,Abfrage,FALSE)","v":"Liste Nr."},null,null,null,null,null,null,null,null,null,null,{"$f":"VLOOKUP(Sprachen!B14,SprachListe,Abfrage,FALSE)","v":"Zu Plan Nr."},null,null,null,null,null,null,null,null,null,null,null,null,{"$f":"VLOOKUP(Sprachen!B17,SprachListe,Abfrage,FALSE)","v":"Bauunternehmung"}]
[]
[null,{"$f":"VLOOKUP(Sprachen!B15,SprachListe,Abfrage,FALSE)","v":"Name des Bestellers"},null,null,null,null,null,null,null,null,null,null,{"$f":"VLOOKUP(Sprachen!B16,SprachListe,Abfrage,FALSE)","v":"Liefertermin"}]
[]
[]
[null,{"$f":"VLOOKUP(Sprachen!B35,SprachListe,Abfrage,FALSE)","v":"CRET-Dorne"},null,null,null,null,null,null,null,null,null,null,null,null,null,null,null,null,null,null,null,null,null,null,null,null,null,null,null,null,null,null,null,null,null,null,null,null,null,null,null,null,null,null,null,null,null,null,null,null,null,null,{"$f":"VLOOKUP(Sprachen!B73,SprachListe,Abfrage,FALSE)","v":"Beispiel"}]
[]
[null,{"$f":"VLOOKUP(Sprachen!B29,SprachListe,Abfrage,FALSE)","v":"Standard-Typen"},null,null,null,null,null,null,null,null,null,null,null,null,null,null,null,null,null,null,{"$f":"VLOOKUP(Sprachen!B38,SprachListe,Abfrage,FALSE)&\" CRET Serie 500 A + B\"","v":"* Bügel zu CRET Serie 500 A + B"},null,null,null,null,null,null,null,null,null,null,null,null,null,null,null,null,null,null,null,null,null,null,null,null,null,null,null,null,null,null,null,null,null,null,{"$f":"U26","v":"* Bügel zu CRET Serie 500 A + B"}]
[]
[null,"Pos",null,null,{"$f":"VLOOKUP(Sprachen!B18,SprachListe,Abfrage,FALSE)","v":"Typ"},null,null,null,null,null,null,null,null,{"$f":"VLOOKUP(Sprachen!B36,SprachListe,Abfrage,FALSE)","v":"Länge mm"},null,null,null,null,null,null,"a *\n[mm]",null,null,null,null,"b *\n[mm]",null,null,null,null,{"$f":"VLOOKUP(Sprachen!B19,SprachListe,Abfrage,FALSE)","v":"Anzahl"},null,null,null,null,{"$f":"VLOOKUP(Sprachen!B20,SprachListe,Abfrage,FALSE)","v":"Bemerkungen"},null,null,null,null,null,null,null,null,null,null,null,null,null,null,null,null,{"$f":"B28","v":"Pos"},{"$f":"E28","v":"Typ"},{"$f":"N28","v":"Länge mm"},{"$f":"U28","v":"a *\n[mm]"},{"$f":"Z28","v":"b *\n[mm]"},{"$f":"AE28","v":"Anzahl"},{"$f":"AJ28","v":"Bemerkungen"}]
[]
[null,null,null,null,null,null,null,null,null,null,null,null,null,null,null,null,null,null,null,null,null,null,null,null,null,null,null,null,null,null,null,null,null,null,null,null,null,null,null,null,null,null,null,null,null,null,null,null,null,null,null,null,1,"CRET-10",300,null,null,50]
[null,null,null,null,null,null,null,null,null,null,null,null,null,null,null,null,null,null,null,null,null,null,null,null,null,null,null,null,null,null,null,null,null,null,null,null,null,null,null,null,null,null,null,null,null,null,null,null,null,null,null,null,2,"CRET-P",170,null,null,50]
[null,null,null,null,null,null,null,null,null,null,null,null,null,null,null,null,null,null,null,null,null,null,null,null,null,null,null,null,null,null,null,null,null,null,null,null,null,null,null,null,null,null,null,null,null,null,null,null,null,null,null,null,3,"CRET-122",null,null,null,50]
[null,null,null,null,null,null,null,null,null,null,null,null,null,null,null,null,null,null,null,null,null,null,null,null,null,null,null,null,null,null,null,null,null,null,null,null,null,null,null,null,null,null,null,null,null,null,null,null,null,null,null,null,4,"CRET-128",null,null,null,5]
[null,null,null,null,null,null,null,null,null,null,null,null,null,null,null,null,null,null,null,null,null,null,null,null,null,null,null,null,null,null,null,null,null,null,null,null,null,null,null,null,null,null,null,null,null,null,null,null,null,null,null,null,5,{"$f":"\"CRET-124 \"&VLOOKUP(Sprachen!$B$64,SprachListe,Abfrage,FALSE)","v":"CRET-124 Hülse"},null,null,null,10]
[null,null,null,null,null,null,null,null,null,null,null,null,null,null,null,null,null,null,null,null,null,null,null,null,null,null,null,null,null,null,null,null,null,null,null,null,null,null,null,null,null,null,null,null,null,null,null,null,null,null,null,null,6,"CRET-504",null,null,null,15]
[null,null,null,null,null,null,null,null,null,null,null,null,null,null,null,null,null,null,null,null,null,null,null,null,null,null,null,null,null,null,null,null,null,null,null,null,null,null,null,null,null,null,null,null,null,null,null,null,null,null,null,null,7,"CRET-504 A V40",null,180,180,45]
[null,null,null,null,null,null,null,null,null,null,null,null,null,null,null,null,null,null,null,null,null,null,null,null,null,null,null,null,null,null,null,null,null,null,null,null,null,null,null,null,null,null,null,null,null,null,null,null,null,null,null,null,8,"CRET-515 B",null,180,180,12]
[]
[]
[]
[]
[]
[]
[]
[]
[]
[]
[]
[]
[]
[]
[]
[]
[]
[]
[]
[]
[null,{"$f":"VLOOKUP(Sprachen!B24,SprachListe,Abfrage,FALSE)","v":"Spezialausführungen"},null,null,null,null,null,null,null,null,null,null,null,null,null,null,null,null,null,null,null,null,null,null,null,{"$f":"VLOOKUP(Sprachen!B38,SprachListe,Abfrage,FALSE)&\" CRET Serie 500\"","v":"* Bügel zu CRET Serie 500"}]
[]
[null,null,null,null,null,null,null,null,null,null,null,null,null,null,null,null,null,null,null,null,null,null,null,null,null,{"$f":"VLOOKUP(Sprachen!B25,SprachListe,Abfrage,FALSE)&\" A\"","v":"Modell A"},null,null,null,null,null,null,null,null,null,null,null,{"$f":"VLOOKUP(Sprachen!B25,SprachListe,Abfrage,FALSE)&\" B\"","v":"Modell B"}]

{"sheet":"Brandschutzmanschetten","index":3,"n_rows":33,"n_cols":57,"rows_kept":33,"cut":false,"hidden":false,"merged":[[6,25,6,33],[9,1,9,23],[9,25,9,33],[9,35,9,48],[10,1,10,23],[11,1,11,23],[11,25,11,48],[16,1,16,23],[16,25,16,48],[17,1,17,23],[17,25,17,48],[19,1,19,10],[19,12,19,23],[19,25,19,48],[12,1,12,23],[12,25,12,48],[13,25,13,48],[14,1,14,23],[15,1,15,23],[15,25,15,48],[20,25,20,48],[21,1,21,10],[21,12,21,23],[21,25,21,48],[26,1,26,3],[26,4,26,11],[26,12,26,18],[26,19,26,26],[26,27,26,48],[28,1,28,3],[28,4,28,18],[28,19,28,26],[28,27,28,48],[28,53,28,54],[28,56,28,59],[27,1,27,3],[27,4,27,18],[27,19,27,26],[27,27,27,48],[27,53,27,54],[27,56,27,59],[30,1,30,3],[30,4,30,18],[30,19,30,26],[30,27,30,48],[30,53,30,54],[30,56,30,59],[29,1,29,3],[29,4,29,18],[29,19,29,26],[29,27,29,48],[29,53,29,54],[29,56,29,59],[32,1,32,3],[32,4,32,18],[32,19,32,26],[32,27,32,48],[32,53,32,54],[32,56,32,59],[31,1,31,3],[31,4,31,18],[31,19,31,26],[31,27,31,48],[31,53,31,54],[31,56,31,59],[34,1,34,3],[34,4,34,18],[34,19,34,26],[34,27,34,48],[34,53,34,54],[34,56,34,59],[33,1,33,3],[33,4,33,18],[33,19,33,26],[33,27,33,48],[33,53,33,54],[33,56,33,59],[36,1,36,3],[36,4,36,18],[36,19,36,26],[36,27,36,48],[36,53,36,54],[36,56,36,59],[35,1,35,3],[35,4,35,18],[35,19,35,26],[35,27,35,48],[35,53,35,54],[35,56,35,59],[58,1,58,3],[58,4,58,18],[58,19,58,26],[58,27,58,48],[59,1,59,3],[59,4,59,18],[59,19,59,26],[59,27,59,48],[37,1,37,3],[37,4,37,18],[37,19,37,26],[37,27,37,48],[38,1,38,3],[38,4,38,18],[38,19,38,26],[38,27,38,48],[43,4,43,18],[52,4,52,18],[53,4,53,18],[54,4,54,18],[55,4,55,18],[56,4,56,18],[57,4,57,18],[43,19,43,26],[62,1,62,3],[62,4,62,18],[62,19,62,26],[62,27,62,48],[60,1,60,3],[60,4,60,18],[60,19,60,26],[60,27,60,48],[61,1,61,3],[61,4,61,18],[61,19,61,26],[61,27,61,48],[39,19,39,26],[40,19,40,26],[44,19,44,26],[45,19,45,26],[46,19,46,26],[47,19,47,26],[48,19,48,26],[49,19,49,26],[50,19,50,26],[39,4,39,18],[40,4,40,18],[44,4,44,18],[45,4,45,18],[46,4,46,18],[47,4,47,18],[48,4,48,18],[49,4,49,18],[50,4,50,18],[39,27,39,48],[40,27,40,48],[43,27,43,48],[44,27,44,48],[45,27,45,48],[46,27,46,48],[47,27,47,48],[48,27,48,48],[49,27,49,48],[52,27,52,48],[53,27,53,48],[54,27,54,48],[55,27,55,48],[56,27,56,48],[57,27,57,48],[41,4,41,18],[42,4,42,18],[41,19,41,26],[42,19,42,26],[41,27,41,48],[42,27,42,48],[51,4,51,18],[50,27,50,48],[51,27,51,48],[52,19,52,26],[53,19,53,26],[54,19,54,26],[55,19,55,26],[56,19,56,26],[57,19,57,26],[51,19,51,26],[39,1,39,3],[40,1,40,3],[41,1,41,3],[42,1,42,3],[43,1,43,3],[44,1,44,3],[45,1,45,3],[46,1,46,3],[47,1,47,3],[57,1,57,3],[48,1,48,3],[49,1,49,3],[50,1,50,3],[51,1,51,3],[52,1,52,3],[53,1,53,3],[54,1,54,3],[55,1,55,3],[56,1,56,3]]}
[]
[]
[]
[]
[]
[null,{"$f":"VLOOKUP(Sprachen!B21,SprachListe,Abfrage,FALSE)&\" \"&VLOOKUP(Sprachen!B83,SprachListe,Abfrage,FALSE)","v":"Bestellung Brandschutzmanschetten"},null,null,null,null,null,null,null,null,null,null,null,null,null,null,null,null,null,null,null,null,null,null,null,null,null,null,null,null,null,null,null,null,null,null,null,null,null,null,null,null,null,null,null,null,null,null,{"$f":"'Übersicht Bestelllisten'!AW37","v":"Vers.07.2021"}]
[]
[]
[null,{"$f":"VLOOKUP(Sprachen!B7,SprachListe,Abfrage,FALSE)","v":"Objekt"},null,null,null,null,null,null,null,null,null,null,null,null,null,null,null,null,null,null,null,null,null,null,null,{"$f":"VLOOKUP(Sprachen!B8,SprachListe,Abfrage,FALSE)","v":"Datum"},null,null,null,null,null,null,null,null,null,{"$f":"VLOOKUP(Sprachen!B10,SprachListe,Abfrage,FALSE)","v":"Zeichner/-in"}]
[]
[null,null,null,null,null,null,null,null,null,null,null,null,null,null,null,null,null,null,null,null,null,null,null,null,null,{"$f":"VLOOKUP(Sprachen!B11,SprachListe,Abfrage,FALSE)","v":"Ingenieurbüro"}]
[]
[]
[null,{"$f":"VLOOKUP(Sprachen!B9,SprachListe,Abfrage,FALSE)","v":"Bauteil"},null,null,null,null,null,null,null,null,null,null,null,null,null,null,null,null,null,null,null,null,null,null,null,"Ihre Telefonummer"]
[null,null,null,null,null,null,null,null,null,null,null,null,null,null,null,null,null,null,null,null,null,null,null,null,null,{"$f":"VLOOKUP(Sprachen!B12,SprachListe,Abfrage,FALSE)","v":"Lieferadresse"},null,null,null,null,null,null,null,null,null,null,null,null,null,null,null,null,null,null,null,null,null,null,null,null,null,null," "]
[]
[]
[]
[null,{"$f":"VLOOKUP(Sprachen!B13,SprachListe,Abfrage,FALSE)","v":"Liste Nr."},null,null,null,null,null,null,null,null,null,null,{"$f":"VLOOKUP(Sprachen!B14,SprachListe,Abfrage,FALSE)","v":"Zu Plan Nr."},null,null,null,null,null,null,null,null,null,null,null,null,{"$f":"VLOOKUP(Sprachen!B17,SprachListe,Abfrage,FALSE)","v":"Bauunternehmung"}]
[]
[null,{"$f":"VLOOKUP(Sprachen!B15,SprachListe,Abfrage,FALSE)","v":"Name des Bestellers"},null,null,null,null,null,null,null,null,null,null,{"$f":"VLOOKUP(Sprachen!B16,SprachListe,Abfrage,FALSE)","v":"Liefertermin"}]
[]
[]
[null,{"$f":"VLOOKUP(Sprachen!B83,SprachListe,Abfrage,FALSE)","v":"Brandschutzmanschetten"},null,null,null,null,null,null,null,null,null,null,null,null,null,null,null,null,null,null,null,null,null,null,null,null,null,null,null,null,null,null,null,null,null,null,null,null,null,null,null,null,null,null,null,null,null,null,null,null,null,null,{"$f":"VLOOKUP(Sprachen!B73,SprachListe,Abfrage,FALSE)","v":"Beispiel"}]
[]
[null,"Pos.",null,null,{"$f":"VLOOKUP(Sprachen!B18,SprachListe,Abfrage,FALSE)","v":"Typ"},null,null,null,null,null,null,null,null,null,null,null,null,null,null,{"$f":"VLOOKUP(Sprachen!B19,SprachListe,Abfrage,FALSE)","v":"Anzahl"},null,null,null,null,null,null,null,{"$f":"VLOOKUP(Sprachen!B20,SprachListe,Abfrage,FALSE)","v":"Bemerkungen"},null,null,null,null,null,null,null,null,null,null,null,null,null,null,null,null,null,null,null,null,null,null,null,null,{"$f":"B26","v":"Pos."},{"$f":"E26","v":"Typ"},null,{"$f":"T26","v":"Anzahl"},{"$f":"AB26","v":"Bemerkungen"}]
[]
[null,null,null,null,null,null,null,null,null,null,null,null,null,null,null,null,null,null,null,null,null,null,null,null,null,null,null,null,null,null,null,null,null,null,null,null,null,null,null,null,null,null,null,null,null,null,null,null,null,null,null,null,1,"BM-10/20-20",null,20]
[null,null,null,null,null,null,null,null,null,null,null,null,null,null,null,null,null,null,null,null,null,null,null,null,null,null,null,null,null,null,null,null,null,null,null,null,null,null,null,null,null,null,null,null,null,null,null,null,null,null,null,null,2,"BM-122-20",null,20]
[null,null,null,null,null,null,null,null,null,null,null,null,null,null,null,null,null,null,null,null,null,null,null,null,null,null,null,null,null,null,null,null,null,null,null,null,null,null,null,null,null,null,null,null,null,null,null,null,null,null,null,null,3,"BM-122 V25-20",null,20]
[null,null,null,null,null,null,null,null,null,null,null,null,null,null,null,null,null,null,null,null,null,null,null,null,null,null,null,null,null,null,null,null,null,null,null,null,null,null,null,null,null,null,null,null,null,null,null,null,null,null,null,null,4,"BM-500-20",null,10]
[null,null,null,null,null,null,null,null,null,null,null,null,null,null,null,null,null,null,null,null,null,null,null,null,null,null,null,null,null,null,null,null,null,null,null,null,null,null,null,null,null,null,null,null,null,null,null,null,null,null,null,null,5,"BM-500 V20-V40-30",null,12]
[null,null,null,null,null,null,null,null,null,null,null,null,null,null,null,null,null,null,null,null,null,null,null,null,null,null,null,null,null,null,null,null,null,null,null,null,null,null,null,null,null,null,null,null,null,null,null,null,null,null,null,null,6,"BM-945-946-30",null,15]

{"sheet":"CRET Silent","index":4,"n_rows":57,"n_cols":59,"rows_kept":57,"cut":false,"hidden":false,"merged":[[47,21,47,26],[47,27,47,29],[47,30,47,32],[47,33,47,48],[43,21,43,26],[43,27,43,29],[43,30,43,32],[43,33,43,48],[46,1,46,3],[46,4,46,15],[46,16,46,20],[46,21,46,26],[46,27,46,29],[46,30,46,32],[46,33,46,48],[41,1,41,3],[41,4,41,15],[41,16,41,20],[41,21,41,26],[41,27,41,29],[41,30,41,32],[41,33,41,48],[48,1,48,3],[48,4,48,15],[48,16,48,20],[48,21,48,26],[48,27,48,29],[48,30,48,32],[48,33,48,48],[42,1,42,3],[42,4,42,15],[42,16,42,20],[42,21,42,26],[42,27,42,29],[42,30,42,32],[42,33,42,48],[43,1,43,3],[43,4,43,15],[43,16,43,20],[49,1,49,3],[49,4,49,15],[49,16,49,20],[49,21,49,26],[49,27,49,29],[49,30,49,32],[49,33,49,48],[44,1,44,3],[44,4,44,15],[44,16,44,20],[44,21,44,26],[44,27,44,29],[44,30,44,32],[44,33,44,48],[45,1,45,3],[45,4,45,15],[45,16,45,20],[45,21,45,26],[45,27,45,29],[45,30,45,32],[45,33,45,48],[47,1,47,3],[47,4,47,15],[47,16,47,20],[39,1,39,3],[39,4,39,15],[39,16,39,20],[39,21,39,26],[39,27,39,29],[39,30,39,32],[39,33,39,48],[40,1,40,3],[40,4,40,15],[40,16,40,20],[40,21,40,26],[40,27,40,29],[40,30,40,32],[40,33,40,48],[37,1,37,3],[37,4,37,15],[37,16,37,20],[37,21,37,26],[37,27,37,29],[37,30,37,32],[37,33,37,48],[38,1,38,3],[38,4,38,15],[38,16,38,20],[38,21,38,26],[38,27,38,29],[38,30,38,32],[38,33,38,48],[6,25,6,33],[12,1,12,23],[23,25,23,33],[22,2,22,11],[22,13,22,22],[11,1,11,23],[10,1,10,23],[9,1,9,23],[17,1,17,23],[21,1,21,10],[21,12,21,23],[14,1,14,23],[9,35,9,48],[22,25,22,44],[20,25,20,48],[21,25,21,48],[17,25,17,48],[19,25,19,48],[13,25,13,48],[15,25,15,48],[16,25,16,48],[12,25,12,48],[9,25,9,33],[11,25,11,48],[30,33,30,48],[31,1,31,3],[30,27,30,29],[19,1,19,10],[19,12,19,23],[28,1,28,3],[29,33,29,48],[28,33,28,48],[29,27,29,29],[29,30,29,32],[26,21,26,26],[26,27,26,29],[26,30,26,32],[29,1,29,3],[26,16,26,20],[28,30,28,32],[28,4,28,15],[28,16,28,20],[28,27,28,29],[30,30,30,32],[30,4,30,15],[31,4,31,15],[31,16,31,20],[31,21,31,26],[31,27,31,29],[31,30,31,32],[15,1,15,23],[16,1,16,23],[31,33,31,48],[32,30,32,32],[54,30,54,32],[33,30,33,32],[32,27,32,29],[34,30,34,32],[34,33,34,48],[32,33,32,48],[54,27,54,29],[33,27,33,29],[33,33,33,48],[54,33,54,48],[35,27,35,29],[36,27,36,29],[50,27,50,29],[51,27,51,29],[28,21,28,26],[29,4,29,15],[29,16,29,20],[29,21,29,26],[33,1,33,3],[34,1,34,3],[30,16,30,20],[30,21,30,26],[33,4,33,15],[34,4,34,15],[34,21,34,26],[32,21,32,26],[34,16,34,20],[33,16,33,20],[33,21,33,26],[50,21,50,26],[52,27,52,29],[53,27,53,29],[53,30,53,32],[52,30,52,32],[51,30,51,32],[30,1,30,3],[58,1,62,23],[54,1,54,3],[34,27,34,29],[54,21,54,26],[54,4,54,15],[54,16,54,20],[51,21,51,26],[52,21,52,26],[53,21,53,26],[35,16,35,20],[36,16,36,20],[50,16,50,20],[51,16,51,20],[53,1,53,3],[32,4,32,15],[32,16,32,20],[32,1,32,3],[35,33,35,48],[36,33,36,48],[50,33,50,48],[51,33,51,48],[52,33,52,48],[53,33,53,48],[35,1,35,3],[36,1,36,3],[50,1,50,3],[51,1,51,3],[52,1,52,3],[52,16,52,20],[53,16,53,20],[35,4,35,15],[36,4,36,15],[50,4,50,15],[51,4,51,15],[52,4,52,15],[53,4,53,15],[50,30,50,32],[36,30,36,32],[35,30,35,32],[35,21,35,26],[36,21,36,26]]}
[]
[]
[]
[]
[]
[null,{"$f":"VLOOKUP(Sprachen!B21,SprachListe,Abfrage,FALSE) &\" CRET Silent\"","v":"Bestellung CRET Silent"},null,null,null,null,null,null,null,null,null,null,null,null,null,null,null,null,null,null,null,null,null,null,null,null,null,null,null,null,null,null,null,null,null,null,null,null,null,null,null,null,null,null,null,null,null,null,{"$f":"'Übersicht Bestelllisten'!AW37","v":"Vers.07.2021"}]
[]
[]
[null,{"$f":"VLOOKUP(Sprachen!B7,SprachListe,Abfrage,FALSE)","v":"Objekt"},null,null,null,null,null,null,null,null,null,null,null,null,null,null,null,null,null,null,null,null,null,null,null,{"$f":"VLOOKUP(Sprachen!B8,SprachListe,Abfrage,FALSE)","v":"Datum"},null,null,null,null,null,null,null,null,null,{"$f":"VLOOKUP(Sprachen!B10,SprachListe,Abfrage,FALSE)","v":"Zeichner/-in"}]
[]
[null,null,null,null,null,null,null,null,null,null,null,null,null,null,null,null,null,null,null,null,null,null,null,null,null,{"$f":"VLOOKUP(Sprachen!B11,SprachListe,Abfrage,FALSE)","v":"Ingenieurbüro"}]
[]
[]
[null,{"$f":"VLOOKUP(Sprachen!B9,SprachListe,Abfrage,FALSE)","v":"Bauteil"},null,null,null,null,null,null,null,null,null,null,null,null,null,null,null,null,null,null,null,null,null,null,null,"Ihre Telefonummer"]
[null,null,null,null,null,null,null,null,null,null,null,null,null,null,null,null,null,null,null,null,null,null,null,null,null,{"$f":"VLOOKUP(Sprachen!B12,SprachListe,Abfrage,FALSE)","v":"Lieferadresse"}]
[]
[]
[]
[null,{"$f":"VLOOKUP(Sprachen!B13,SprachListe,Abfrage,FALSE)","v":"Liste Nr."},null,null,null,null,null,null,null,null,null,null,{"$f":"VLOOKUP(Sprachen!B14,SprachListe,Abfrage,FALSE)","v":"Zu Plan Nr."},null,null,null,null,null,null,null,null,null,null,null,null,{"$f":"VLOOKUP(Sprachen!B17,SprachListe,Abfrage,FALSE)","v":"Bauunternehmung"}]
[]
[null,{"$f":"VLOOKUP(Sprachen!B15,SprachListe,Abfrage,FALSE)","v":"Name des Bestellers"},null,null,null,null,null,null,null,null,null,null,{"$f":"VLOOKUP(Sprachen!B16,SprachListe,Abfrage,FALSE)","v":"Liefertermin"}]
[]
[]
[null,"CRET Silent",null,null,null,null,null,null,null,null,null,null,null,null,null,null,null,null,null,null,null,null,null,null,null,null,null,null,null,null,null,null,null,null,null,null,null,null,null,null,null,null,null,null,null,null,null,null,null,null,null,null,{"$f":"VLOOKUP(Sprachen!B73,SprachListe,Abfrage,FALSE)","v":"Beispiel"}]
[]
[]
[null,"Pos",null,null,{"$f":"VLOOKUP(Sprachen!B18,SprachListe,Abfrage,FALSE)","v":"Typ"},null,null,null,null,null,null,null,null,null,null,null,{"$f":"VLOOKUP(Sprachen!B19,SprachListe,Abfrage,FALSE)","v":"Anzahl"},null,null,null,null,"Fuge / Joint\ne = mm",null,null,null,null,null,"a *\n[mm]",null,null,"b *\n[mm]",null,null,{"$f":"VLOOKUP(Sprachen!B20,SprachListe,Abfrage,FALSE)","v":"Bemerkungen"},null,null,null,null,null,null,null,null,null,null,null,null,null,null,null,null,null,null,{"$f":"B27","v":"Pos"},{"$f":"E27","v":"Typ"},{"$f":"Q27","v":"Anzahl"},{"$f":"V27","v":"Fuge / Joint\ne = mm"},{"$f":"AB27","v":"a *\n[mm]"},{"$f":"AE27","v":"b *\n[mm]"},{"$f":"AH27","v":"Bemerkungen"}]
[]
[null,null,null,null,null,null,null,null,null,null,null,null,null,null,null,null,null,null,null,null,null,null,null,null,null,null,null,null,null,null,null,null,null,null,null,null,null,null,null,null,null,null,null,null,null,null,null,null,null,null,null,null,1,"CRET Silent-945 APG",5,null,null,null,{"$f":"VLOOKUP(Sprachen!B74,SprachListe,Abfrage,FALSE)","v":"Komplett"}]
[null,null,null,null,null,null,null,null,null,null,null,null,null,null,null,null,null,null,null,null,null,null,null,null,null,null,null,null,null,null,null,null,null,null,null,null,null,null,null,null,null,null,null,null,null,null,null,null,null,null,null,null,2,{"$f":"\"APG \"&VLOOKUP(Sprachen!$B$65,SprachListe,Abfrage,FALSE)&\" CRET Silent-947\"","v":"APG zu CRET Silent-947"},12]
[null,null,null,null,null,null,null,null,null,null,null,null,null,null,null,null,null,null,null,null,null,null,null,null,null,null,null,null,null,null,null,null,null,null,null,null,null,null,null,null,null,null,null,null,null,null,null,null,null,null,null,null,3,"CRET Silent-992P",15,20]
[null,null,null,null,null,null,null,null,null,null,null,null,null,null,null,null,null,null,null,null,null,null,null,null,null,null,null,null,null,null,null,null,null,null,null,null,null,null,null,null,null,null,null,null,null,null,null,null,null,null,null,null,4,"CRET Silent-960P",8,20,150,150]
[null,null,null,null,null,null,null,null,null,null,null,null,null,null,null,null,null,null,null,null,null,null,null,null,null,null,null,null,null,null,null,null,null,null,null,null,null,null,null,null,null,null,null,null,null,null,null,null,null,null,null,null,5,"CRET Silent-946",20,null,null,null,{"$f":"VLOOKUP(Sprachen!B75,SprachListe,Abfrage,FALSE)","v":"Dorn + Hülse"}]
[null,null,null,null,null,null,null,null,null,null,null,null,null,null,null,null,null,null,null,null,null,null,null,null,null,null,null,null,null,null,null,null,null,null,null,null,null,null,null,null,null,null,null,null,null,null,null,null,null,null,null,null,6,"CRET Silent-984",12,30]
[null,null,null,null,null,null,null,null,null,null,null,null,null,null,null,null,null,null,null,null,null,null,null,null,null,null,null,null,null,null,null,null,null,null,null,null,null,null,null,null,null,null,null,null,null,null,null,null,null,null,null,null,7,"CRET Silent-992",10]
[]
[]
[]
[]
[]
[]
[]
[]
[]
[]
[]
[]
[]
[]
[]
[]
[]
[]
[]
[]
[]
[null,{"$f":"VLOOKUP(Sprachen!B24,SprachListe,Abfrage,FALSE)","v":"Spezialausführungen"},null,null,null,null,null,null,null,null,null,null,null,null,null,null,null,null,null,null,null,null,null,null,null,{"$f":"VLOOKUP(Sprachen!B38,SprachListe,Abfrage,FALSE)&\" CRET Silent-960, -970 / CRET Silent-992-994 BHP\"","v":"* Bügel zu CRET Silent-960, -970 / CRET Silent-992-994 BHP"}]

{"sheet":"ARBO","index":5,"n_rows":57,"n_cols":54,"rows_kept":57,"cut":false,"hidden":false,"merged":[[41,20,41,24],[41,25,41,46],[42,1,42,3],[42,4,42,19],[42,20,42,24],[42,25,42,46],[52,1,52,3],[52,4,52,19],[52,20,52,24],[52,25,52,46],[50,1,50,3],[50,4,50,19],[50,20,50,24],[50,25,50,46],[51,1,51,3],[51,4,51,19],[51,20,51,24],[51,25,51,46],[48,1,48,3],[48,4,48,19],[48,20,48,24],[48,25,48,46],[49,1,49,3],[49,4,49,19],[36,1,36,3],[36,4,36,19],[36,20,36,24],[36,25,36,46],[37,1,37,3],[37,4,37,19],[37,20,37,24],[37,25,37,46],[38,1,38,3],[38,4,38,19],[38,20,38,24],[38,25,38,46],[49,20,49,24],[49,25,49,46],[47,1,47,3],[47,4,47,19],[47,20,47,24],[47,25,47,46],[35,20,35,24],[35,25,35,46],[45,1,45,3],[45,4,45,19],[45,20,45,24],[45,25,45,46],[39,1,39,3],[39,4,39,19],[39,20,39,24],[39,25,39,46],[40,1,40,3],[40,4,40,19],[40,20,40,24],[40,25,40,46],[43,1,43,3],[43,4,43,19],[43,20,43,24],[43,25,43,46],[44,1,44,3],[44,4,44,19],[44,20,44,24],[44,25,44,46],[41,1,41,3],[41,4,41,19],[6,25,6,33],[9,35,9,46],[22,25,22,44],[14,1,14,23],[15,1,15,23],[16,1,16,23],[17,1,17,23],[12,1,12,23],[19,12,19,23],[9,25,9,33],[11,25,11,46],[11,1,11,23],[10,1,10,23],[9,1,9,23],[21,1,21,10],[19,1,19,10],[21,12,21,23],[22,2,22,11],[22,13,22,22],[12,25,12,46],[13,25,13,46],[15,25,15,46],[20,25,20,46],[21,25,21,46],[31,25,31,46],[32,1,32,3],[32,4,32,19],[32,20,32,24],[32,25,32,46],[31,1,31,3],[31,4,31,19],[31,20,31,24],[16,25,16,46],[17,25,17,46],[19,25,19,46],[25,20,25,23],[28,1,28,3],[28,4,28,19],[28,20,28,24],[28,25,28,46],[27,1,27,3],[27,4,27,19],[27,20,27,24],[27,25,27,46],[29,25,29,46],[30,1,30,3],[30,4,30,19],[30,20,30,24],[30,25,30,46],[29,1,29,3],[29,4,29,19],[29,20,29,24],[56,20,56,23],[58,1,68,46],[33,25,33,46],[54,1,54,3],[54,4,54,19],[54,20,54,24],[54,25,54,46],[33,1,33,3],[33,4,33,19],[33,20,33,24],[53,20,53,24],[53,25,53,46],[34,1,34,3],[34,4,34,19],[34,20,34,24],[34,25,34,46],[53,1,53,3],[53,4,53,19],[46,1,46,3],[46,4,46,19],[46,20,46,24],[46,25,46,46],[35,1,35,3],[35,4,35,19]]}
[]
[]
[]
[]
[]
[null,{"$f":"VLOOKUP(Sprachen!B21,SprachListe,Abfrage,FALSE) &\" ARBO\"","v":"Bestellung ARBO"},null,null,null,null,null,null,null,null,null,null,null,null,null,null,null,null,null,null,null,null,null,null,null,null,null,null,null,null,null,null,null,null,null,null,null,null,null,null,null,null,null,null,null,null,{"$f":"'Übersicht Bestelllisten'!AW37","v":"Vers.07.2021"}]
[]
[]
[null,{"$f":"VLOOKUP(Sprachen!B7,SprachListe,Abfrage,FALSE)","v":"Objekt"},null,null,null,null,null,null,null,null,null,null,null,null,null,null,null,null,null,null,null,null,null,null,null,{"$f":"VLOOKUP(Sprachen!B8,SprachListe,Abfrage,FALSE)","v":"Datum"},null,null,null,null,null,null,null,null,null,{"$f":"VLOOKUP(Sprachen!B10,SprachListe,Abfrage,FALSE)","v":"Zeichner/-in"}]
[]
[null,null,null,null,null,null,null,null,null,null,null,null,null,null,null,null,null,null,null,null,null,null,null,null,null,{"$f":"VLOOKUP(Sprachen!B11,SprachListe,Abfrage,FALSE)","v":"Ingenieurbüro"}]
[]
[]
[null,{"$f":"VLOOKUP(Sprachen!B9,SprachListe,Abfrage,FALSE)","v":"Bauteil"},null,null,null,null,null,null,null,null,null,null,null,null,null,null,null,null,null,null,null,null,null,null,null,"Ihre Telefonummer"]
[null,null,null,null,null,null,null,null,null,null,null,null,null,null,null,null,null,null,null,null,null,null,null,null,null,{"$f":"VLOOKUP(Sprachen!B12,SprachListe,Abfrage,FALSE)","v":"Lieferadresse"}]
[]
[]
[]
[null,{"$f":"VLOOKUP(Sprachen!B13,SprachListe,Abfrage,FALSE)","v":"Liste Nr."},null,null,null,null,null,null,null,null,null,null,{"$f":"VLOOKUP(Sprachen!B14,SprachListe,Abfrage,FALSE)","v":"Zu Plan Nr."},null,null,null,null,null,null,null,null,null,null,null,null,{"$f":"VLOOKUP(Sprachen!B17,SprachListe,Abfrage,FALSE)","v":"Bauunternehmung"}]
[]
[null,{"$f":"VLOOKUP(Sprachen!B15,SprachListe,Abfrage,FALSE)","v":"Name des Bestellers"},null,null,null,null,null,null,null,null,null,null,{"$f":"VLOOKUP(Sprachen!B16,SprachListe,Abfrage,FALSE)","v":"Liefertermin"}]
[]
[]
[null,{"$f":"VLOOKUP(Sprachen!B33,SprachListe,Abfrage,FALSE)","v":"ARBO-Bewehrungselemente"},null,null,null,null,null,null,null,null,null,null,null,null,null,null,null,null,null,null,null,null,null,null,null,null,null,null,null,null,null,null,null,null,null,null,null,null,null,null,null,null,null,null,null,null,null,null,null,null,{"$f":"VLOOKUP(Sprachen!B73,SprachListe,Abfrage,FALSE)","v":"Beispiel"}]
[]
[null,"Pos",null,null,{"$f":"VLOOKUP(Sprachen!B18,SprachListe,Abfrage,FALSE)","v":"Typ"},null,null,null,null,null,null,null,null,null,null,null,null,null,null,null,{"$f":"VLOOKUP(Sprachen!B19,SprachListe,Abfrage,FALSE)","v":"Anzahl"},null,null,null,null,{"$f":"VLOOKUP(Sprachen!B20,SprachListe,Abfrage,FALSE)","v":"Bemerkungen"},null,null,null,null,null,null,null,null,null,null,null,null,null,null,null,null,null,null,null,null,null,null,null,null,{"$f":"B26","v":"Pos"},{"$f":"E26 & \" 2021\"","v":"Typ 2021"},{"$f":"U26","v":"Anzahl"},{"$f":"Z26","v":"Bemerkungen"}]
[]
[null,null,null,null,null,null,null,null,null,null,null,null,null,null,null,null,null,null,null,null,null,null,null,null,null,null,null,null,null,null,null,null,null,null,null,null,null,null,null,null,null,null,null,null,null,null,null,null,null,null,1,"ARBO-420-08 S2-CO30",20]
[null,null,null,null,null,null,null,null,null,null,null,null,null,null,null,null,null,null,null,null,null,null,null,null,null,null,null,null,null,null,null,null,null,null,null,null,null,null,null,null,null,null,null,null,null,null,null,null,null,null,2,"ARBO-426-10 S3-CO30",30]
[null,null,null,null,null,null,null,null,null,null,null,null,null,null,null,null,null,null,null,null,null,null,null,null,null,null,null,null,null,null,null,null,null,null,null,null,null,null,null,null,null,null,null,null,null,null,null,null,null,null,3,"ARBO-520-08-28 S2-CO30",50]
[null,null,null,null,null,null,null,null,null,null,null,null,null,null,null,null,null,null,null,null,null,null,null,null,null,null,null,null,null,null,null,null,null,null,null,null,null,null,null,null,null,null,null,null,null,null,null,null,null,null,4,"ARBO-520-08-28 S2-CO30 SE",25]
[null,null,null,null,null,null,null,null,null,null,null,null,null,null,null,null,null,null,null,null,null,null,null,null,null,null,null,null,null,null,null,null,null,null,null,null,null,null,null,null,null,null,null,null,null,null,null,null,null,null,5,"ARBO-622-10-16 S2-C030 W",4]
[null,null,null,null,null,null,null,null,null,null,null,null,null,null,null,null,null,null,null,null,null,null,null,null,null,null,null,null,null,null,null,null,null,null,null,null,null,null,null,null,null,null,null,null,null,null,null,null,null,null,6,"ARBO-825-12-04 T3-CO30",6]
[]
[]
[]
[]
[]
[]
[]
[]
[]
[]
[]
[]
[]
[]
[]
[]
[]
[]
[]
[]
[]
[]
[]
[null,{"$f":"VLOOKUP(Sprachen!B24,SprachListe,Abfrage,FALSE)","v":"Spezialausführungen"}]

{"sheet":"ARBO Silent","index":6,"n_rows":57,"n_cols":56,"rows_kept":57,"cut":false,"hidden":false,"merged":[[58,1,68,48],[22,2,22,11],[22,13,22,22],[21,1,21,10],[21,25,21,48],[28,25,28,48],[25,20,25,23],[27,1,27,3],[27,4,27,19],[27,20,27,24],[27,25,27,48],[29,1,29,3],[28,1,28,3],[28,4,28,19],[28,20,28,24],[30,4,30,19],[29,4,29,19],[29,20,29,24],[29,25,29,48],[30,1,30,3],[31,1,31,3],[31,4,31,19],[31,20,31,24],[31,25,31,48],[6,25,6,33],[9,35,9,48],[22,25,22,44],[14,1,14,23],[15,1,15,23],[16,1,16,23],[12,1,12,23],[16,25,16,48],[17,25,17,48],[20,25,20,48],[19,25,19,48],[21,12,21,23],[9,1,9,23],[12,25,12,48],[13,25,13,48],[15,25,15,48],[9,25,9,33],[11,25,11,48],[11,1,11,23],[10,1,10,23],[17,1,17,23],[19,1,19,10],[19,12,19,23],[33,1,33,3],[33,4,33,19],[33,20,33,24],[33,25,33,48],[32,1,32,3],[32,4,32,19],[32,20,32,24],[32,25,32,48],[30,20,30,24],[30,25,30,48],[34,25,34,48],[54,25,54,48],[53,1,53,3],[53,4,53,19],[53,20,53,24],[53,25,53,48],[34,1,34,3],[34,4,34,19],[34,20,34,24],[35,1,35,3],[35,4,35,19],[35,20,35,24],[37,1,37,3],[37,4,37,19],[37,20,37,24],[35,25,35,48],[36,1,36,3],[36,4,36,19],[36,20,36,24],[36,25,36,48],[37,25,37,48],[38,1,38,3],[38,4,38,19],[38,20,38,24],[56,20,56,23],[54,1,54,3],[54,4,54,19],[54,20,54,24],[39,1,39,3],[39,4,39,19],[39,20,39,24],[39,25,39,48],[40,1,40,3],[40,4,40,19],[40,20,40,24],[40,25,40,48],[44,1,44,3],[44,4,44,19],[44,20,44,24],[44,25,44,48],[47,1,47,3],[47,4,47,19],[47,20,47,24],[47,25,47,48],[48,1,48,3],[48,4,48,19],[48,20,48,24],[48,25,48,48],[38,25,38,48],[43,1,43,3],[43,4,43,19],[43,20,43,24],[43,25,43,48],[41,1,41,3],[41,4,41,19],[41,20,41,24],[41,25,41,48],[42,1,42,3],[42,4,42,19],[42,20,42,24],[42,25,42,48],[45,1,45,3],[45,4,45,19],[45,20,45,24],[45,25,45,48],[46,1,46,3],[46,4,46,19],[46,20,46,24],[46,25,46,48],[51,1,51,3],[51,4,51,19],[51,20,51,24],[51,25,51,48],[52,1,52,3],[52,4,52,19],[52,20,52,24],[52,25,52,48],[49,1,49,3],[49,4,49,19],[49,20,49,24],[49,25,49,48],[50,1,50,3],[50,4,50,19],[50,20,50,24],[50,25,50,48]]}
[]
[]
[]
[]
[]
[null,{"$f":"VLOOKUP(Sprachen!B21,SprachListe,Abfrage,FALSE) &\" ARBO Silent\"","v":"Bestellung ARBO Silent"},null,null,null,null,null,null,null,null,null,null,null,null,null,null,null,null,null,null,null,null,null,null,null,null,null,null,null,null,null,null,null,null,null,null,null,null,null,null,null,null,null,null,null,null,null,null,{"$f":"'Übersicht Bestelllisten'!AW37","v":"Vers.07.2021"}]
[]
[]
[null,{"$f":"VLOOKUP(Sprachen!B7,SprachListe,Abfrage,FALSE)","v":"Objekt"},null,null,null,null,null,null,null,null,null,null,null,null,null,null,null,null,null,null,null,null,null,null,null,{"$f":"VLOOKUP(Sprachen!B8,SprachListe,Abfrage,FALSE)","v":"Datum"},null,null,null,null,null,null,null,null,null,{"$f":"VLOOKUP(Sprachen!B10,SprachListe,Abfrage,FALSE)","v":"Zeichner/-in"}]
[]
[null,null,null,null,null,null,null,null,null,null,null,null,null,null,null,null,null,null,null,null,null,null,null,null,null,{"$f":"VLOOKUP(Sprachen!B11,SprachListe,Abfrage,FALSE)","v":"Ingenieurbüro"}]
[]
[]
[null,{"$f":"VLOOKUP(Sprachen!B9,SprachListe,Abfrage,FALSE)","v":"Bauteil"},null,null,null,null,null,null,null,null,null,null,null,null,null,null,null,null,null,null,null,null,null,null,null,"Ihre Telefonummer"]
[null,null,null,null,null,null,null,null,null,null,null,null,null,null,null,null,null,null,null,null,null,null,null,null,null,{"$f":"VLOOKUP(Sprachen!B12,SprachListe,Abfrage,FALSE)","v":"Lieferadresse"}]
[]
[]
[]
[null,{"$f":"VLOOKUP(Sprachen!B13,SprachListe,Abfrage,FALSE)","v":"Liste Nr."},null,null,null,null,null,null,null,null,null,null,{"$f":"VLOOKUP(Sprachen!B14,SprachListe,Abfrage,FALSE)","v":"Zu Plan Nr."},null,null,null,null,null,null,null,null,null,null,null,null,{"$f":"VLOOKUP(Sprachen!B17,SprachListe,Abfrage,FALSE)","v":"Bauunternehmung"}]
[]
[null,{"$f":"VLOOKUP(Sprachen!B15,SprachListe,Abfrage,FALSE)","v":"Name des Bestellers"},null,null,null,null,null,null,null,null,null,null,{"$f":"VLOOKUP(Sprachen!B16,SprachListe,Abfrage,FALSE)","v":"Liefertermin"}]
[]
[]
[null,{"$f":"VLOOKUP(Sprachen!B34,SprachListe,Abfrage,FALSE)","v":"ARBO Silent-Bewehrungselemente"},null,null,null,null,null,null,null,null,null,null,null,null,null,null,null,null,null,null,null,null,null,null,null,null,null,null,null,null,null,null,null,null,null,null,null,null,null,null,null,null,null,null,null,null,null,null,null,null,null,null,{"$f":"VLOOKUP(Sprachen!B73,SprachListe,Abfrage,FALSE)","v":"Beispiel"}]
[]
[null,"Pos",null,null,{"$f":"VLOOKUP(Sprachen!B18,SprachListe,Abfrage,FALSE)","v":"Typ"},null,null,null,null,null,null,null,null,null,null,null,null,null,null,null,{"$f":"VLOOKUP(Sprachen!B19,SprachListe,Abfrage,FALSE)","v":"Anzahl"},null,null,null,null,{"$f":"VLOOKUP(Sprachen!B20,SprachListe,Abfrage,FALSE)","v":"Bemerkungen"},null,null,null,null,null,null,null,null,null,null,null,null,null,null,null,null,null,null,null,null,null,null,null,null,null,null,{"$f":"B26","v":"Pos"},{"$f":"E26","v":"Typ"},{"$f":"U26","v":"Anzahl"},{"$f":"Z26","v":"Bemerkungen"}]
[]
[null,null,null,null,null,null,null,null,null,null,null,null,null,null,null,null,null,null,null,null,null,null,null,null,null,null,null,null,null,null,null,null,null,null,null,null,null,null,null,null,null,null,null,null,null,null,null,null,null,null,null,null,1,"ARBO Silent-716-08",12]
[null,null,null,null,null,null,null,null,null,null,null,null,null,null,null,null,null,null,null,null,null,null,null,null,null,null,null,null,null,null,null,null,null,null,null,null,null,null,null,null,null,null,null,null,null,null,null,null,null,null,null,null,2,"ARBO Silent-716-10",12]
[null,null,null,null,null,null,null,null,null,null,null,null,null,null,null,null,null,null,null,null,null,null,null,null,null,null,null,null,null,null,null,null,null,null,null,null,null,null,null,null,null,null,null,null,null,null,null,null,null,null,null,null,3,"ARBO Silent-724-12",10]
[null,null,null,null,null,null,null,null,null,null,null,null,null,null,null,null,null,null,null,null,null,null,null,null,null,null,null,null,null,null,null,null,null,null,null,null,null,null,null,null,null,null,null,null,null,null,null,null,null,null,null,null,4,"ARBO Silent-724-16",20]
[]
[]
[]
[]
[]
[]
[]
[]
[]
[]
[]
[]
[]
[]
[]
[]
[]
[]
[]
[]
[]
[]
[]
[]
[]
[null,{"$f":"VLOOKUP(Sprachen!B24,SprachListe,Abfrage,FALSE)","v":"Spezialausführungen"}]

{"sheet":"RIBA Silent","index":7,"n_rows":65,"n_cols":59,"rows_kept":65,"cut":false,"hidden":false,"merged":[[46,25,46,32],[46,33,46,46],[42,12,42,19],[42,20,42,24],[42,25,42,32],[42,33,42,46],[43,1,43,3],[43,4,43,11],[43,12,43,19],[43,20,43,24],[43,25,43,32],[43,33,43,46],[49,1,49,3],[49,4,49,11],[49,12,49,19],[49,20,49,24],[49,25,49,32],[49,33,49,46],[40,12,40,19],[40,20,40,24],[40,25,40,32],[40,33,40,46],[41,1,41,3],[41,4,41,11],[41,12,41,19],[41,20,41,24],[41,25,41,32],[41,33,41,46],[47,1,47,3],[47,4,47,11],[47,12,47,19],[47,20,47,24],[47,25,47,32],[47,33,47,46],[44,12,44,19],[44,20,44,24],[38,25,38,32],[38,33,38,46],[39,1,39,3],[39,4,39,11],[39,12,39,19],[39,20,39,24],[39,25,39,32],[39,33,39,46],[48,12,48,19],[48,20,48,24],[48,25,48,32],[48,33,48,46],[44,25,44,32],[44,33,44,46],[45,1,45,3],[45,4,45,11],[45,12,45,19],[45,20,45,24],[45,25,45,32],[45,33,45,46],[46,1,46,3],[46,4,46,11],[46,12,46,19],[46,20,46,24],[22,13,22,22],[33,4,33,11],[32,4,32,11],[27,25,27,32],[27,33,27,46],[29,12,29,19],[29,20,29,24],[29,25,29,32],[29,33,29,46],[30,12,30,19],[30,20,30,24],[30,25,30,32],[30,33,30,46],[31,25,31,32],[33,20,33,24],[33,25,33,32],[28,1,28,3],[31,1,31,3],[30,1,30,3],[27,1,27,3],[6,25,6,33],[9,35,9,46],[22,25,22,44],[14,1,14,23],[15,1,15,23],[16,1,16,23],[17,25,17,46],[16,25,16,46],[19,25,19,46],[9,25,9,33],[11,25,11,46],[11,1,11,23],[10,1,10,23],[9,1,9,23],[19,1,19,10],[19,12,19,23],[17,1,17,23],[23,1,23,46],[21,12,21,23],[22,2,22,11],[51,12,51,19],[51,20,51,24],[51,25,51,32],[34,1,34,3],[31,33,31,46],[32,12,32,19],[32,20,32,24],[36,33,36,46],[37,1,37,3],[37,4,37,11],[37,12,37,19],[37,20,37,24],[37,25,37,32],[37,33,37,46],[50,12,50,19],[50,20,50,24],[50,25,50,32],[50,33,50,46],[38,1,38,3],[38,4,38,11],[34,12,34,19],[34,20,34,24],[38,12,38,19],[38,20,38,24],[61,12,61,19],[62,12,62,19],[63,12,63,19],[61,29,61,32],[62,29,62,32],[63,29,63,32],[62,1,62,3],[62,4,62,11],[12,25,12,46],[13,25,13,46],[15,25,15,46],[20,25,20,46],[21,25,21,46],[12,1,12,23],[21,1,21,10],[63,1,63,3],[63,4,63,11],[27,4,27,11],[51,1,51,3],[31,12,31,19],[27,12,27,19],[32,25,32,32],[28,4,28,11],[33,12,33,19],[34,25,34,32],[35,1,35,3],[35,4,35,11],[35,12,35,19],[35,20,35,24],[35,25,35,32],[64,41,64,46],[64,1,64,3],[64,4,64,11],[62,41,62,46],[63,41,63,46],[61,4,61,11],[60,4,60,11],[60,1,60,3],[61,1,61,3],[61,41,61,46],[60,12,60,19],[60,20,60,24],[60,25,60,28],[60,29,60,32],[60,33,60,36],[60,37,60,40],[59,1,59,3],[58,4,58,11],[52,4,52,11],[59,4,59,11],[58,1,58,3],[51,4,51,11],[29,1,29,3],[29,4,29,11],[30,4,30,11],[31,4,31,11],[52,1,52,3],[36,1,36,3],[36,4,36,11],[50,1,50,3],[50,4,50,11],[42,1,42,3],[42,4,42,11],[44,1,44,3],[44,4,44,11],[34,4,34,11],[48,1,48,3],[48,4,48,11],[40,1,40,3],[40,4,40,11],[33,1,33,3],[32,1,32,3],[51,33,51,46],[60,41,60,46],[27,20,27,24],[28,20,28,24],[28,25,28,32],[28,33,28,46],[28,12,28,19],[52,12,52,19],[52,20,52,24],[52,25,52,32],[52,33,52,46],[59,20,59,24],[59,12,59,19],[59,25,59,28],[59,29,59,32],[59,33,59,36],[59,37,59,40],[59,41,59,46],[32,33,32,46],[34,33,34,46],[35,33,35,46],[36,12,36,19],[36,20,36,24],[36,25,36,32],[61,60,61,61],[62,60,62,61],[31,54,31,55],[30,54,30,55],[61,37,61,40],[62,37,62,40],[63,37,63,40],[64,37,64,40],[64,12,64,19],[61,20,61,24],[62,20,62,24],[63,20,63,24],[64,20,64,24],[61,25,61,28],[62,25,62,28],[63,25,63,28],[64,25,64,28],[64,29,64,32],[61,33,61,36],[62,33,62,36],[63,33,63,36],[64,33,64,36],[33,33,33,46],[31,20,31,24],[29,54,29,55],[28,54,28,55],[31,56,31,57],[30,56,30,57],[29,56,29,57],[28,56,28,57],[57,60,57,61],[59,60,59,61],[60,60,60,61]]}
[]
[]
[]
[]
[]
[null,{"$f":"VLOOKUP(Sprachen!B21,SprachListe,Abfrage,FALSE) &\" RIBA Silent\"","v":"Bestellung RIBA Silent"},null,null,null,null,null,null,null,null,null,null,null,null,null,null,null,null,null,null,null,null,null,null,null,null,null,null,null,null,null,null,null,null,null,null,null,null,null,null,null,null,null,null,null,null,{"$f":"'Übersicht Bestelllisten'!AW37","v":"Vers.07.2021"}]
[]
[]
[null,{"$f":"VLOOKUP(Sprachen!B7,SprachListe,Abfrage,FALSE)","v":"Objekt"},null,null,null,null,null,null,null,null,null,null,null,null,null,null,null,null,null,null,null,null,null,null,null,{"$f":"VLOOKUP(Sprachen!B8,SprachListe,Abfrage,FALSE)","v":"Datum"},null,null,null,null,null,null,null,null,null,{"$f":"VLOOKUP(Sprachen!B10,SprachListe,Abfrage,FALSE)","v":"Zeichner/-in"}]
[]
[null,null,null,null,null,null,null,null,null,null,null,null,null,null,null,null,null,null,null,null,null,null,null,null,null,{"$f":"VLOOKUP(Sprachen!B11,SprachListe,Abfrage,FALSE)","v":"Ingenieurbüro"}]
[]
[]
[null,{"$f":"VLOOKUP(Sprachen!B9,SprachListe,Abfrage,FALSE)","v":"Bauteil"},null,null,null,null,null,null,null,null,null,null,null,null,null,null,null,null,null,null,null,null,null,null,null,"Ihre Telefonummer"]
[null,null,null,null,null,null,null,null,null,null,null,null,null,null,null,null,null,null,null,null,null,null,null,null,null,{"$f":"VLOOKUP(Sprachen!B12,SprachListe,Abfrage,FALSE)","v":"Lieferadresse"}]
[]
[]
[]
[null,{"$f":"VLOOKUP(Sprachen!B13,SprachListe,Abfrage,FALSE)","v":"Liste Nr."},null,null,null,null,null,null,null,null,null,null,{"$f":"VLOOKUP(Sprachen!B14,SprachListe,Abfrage,FALSE)","v":"Zu Plan Nr."},null,null,null,null,null,null,null,null,null,null,null,null,{"$f":"VLOOKUP(Sprachen!B17,SprachListe,Abfrage,FALSE)","v":"Bauunternehmung"}]
[]
[null,{"$f":"VLOOKUP(Sprachen!B15,SprachListe,Abfrage,FALSE)","v":"Name des Bestellers"},null,null,null,null,null,null,null,null,null,null,{"$f":"VLOOKUP(Sprachen!B16,SprachListe,Abfrage,FALSE)","v":"Liefertermin"}]
[]
[]
[null,{"$f":"VLOOKUP(Sprachen!B62,SprachListe,Abfrage,FALSE)","v":"RIBA Silent-Geschraubte Zug- und Druckanker mit Schalldämmung"},null,null,null,null,null,null,null,null,null,null,null,null,null,null,null,null,null,null,null,null,null,null,null,null,null,null,null,null,null,null,null,null,null,null,null,null,null,null,null,null,null,null,null,null,null,null,null,null,{"$f":"VLOOKUP(Sprachen!B73,SprachListe,Abfrage,FALSE)","v":"Beispiel"}]
[]
[]
[null,"Pos.",null,null,{"$f":"VLOOKUP(Sprachen!B18,SprachListe,Abfrage,FALSE)","v":"Typ"},null,null,null,null,null,null,null,{"$f":"VLOOKUP(Sprachen!B25,SprachListe,Abfrage,FALSE)","v":"Modell"},null,null,null,null,null,null,null,{"$f":"VLOOKUP(Sprachen!B50,SprachListe,Abfrage,FALSE)","v":"Stahl"},null,null,null,null,{"$f":"VLOOKUP(Sprachen!B19,SprachListe,Abfrage,FALSE)","v":"Anzahl"},null,null,null,null,null,null,null,{"$f":"VLOOKUP(Sprachen!B20,SprachListe,Abfrage,FALSE)","v":"Bemerkungen"},null,null,null,null,null,null,null,null,null,null,null,null,null,null,null,null,{"$f":"B27","v":"Pos."},{"$f":"E27","v":"Typ"},{"$f":"M27","v":"Modell"},{"$f":"U27","v":"Stahl"},{"$f":"Z27","v":"Anzahl"},null,{"$f":"AH27","v":"Bemerkungen"}]
[null,null,null,null,null,null,null,null,null,null,null,null,null,null,null,null,null,null,null,null,null,null,null,null,null,null,null,null,null,null,null,null,null,null,null,null,null,null,null,null,null,null,null,null,null,null,null,null,{"$f":"IF(AND(U28=\"\",E28<>\"\"),VLOOKUP(Sprachen!$B$76,SprachListe,Abfrage,FALSE),\"\")","v":""}]
[null,null,null,null,null,null,null,null,null,null,null,null,null,null,null,null,null,null,null,null,null,null,null,null,null,null,null,null,null,null,null,null,null,null,null,null,null,null,null,null,null,null,null,null,null,null,null,null,{"$f":"IF(AND(U29=\"\",E29<>\"\"),VLOOKUP(Sprachen!$B$76,SprachListe,Abfrage,FALSE),\"\")","v":""},null,1,"RIBA Silent-915-14","A",1.4361999999999999,15]
[null,null,null,null,null,null,null,null,null,null,null,null,null,null,null,null,null,null,null,null,null,null,null,null,null,null,null,null,null,null,null,null,null,null,null,null,null,null,null,null,null,null,null,null,null,null,null,null,{"$f":"IF(AND(U30=\"\",E30<>\"\"),VLOOKUP(Sprachen!$B$76,SprachListe,Abfrage,FALSE),\"\")","v":""},null,2,"RIBA Silent-917-16","B",1.4361999999999999,20]
[null,null,null,null,null,null,null,null,null,null,null,null,null,null,null,null,null,null,null,null,null,null,null,null,null,null,null,null,null,null,null,null,null,null,null,null,null,null,null,null,null,null,null,null,null,null,null,null,{"$f":"IF(AND(U31=\"\",E31<>\"\"),VLOOKUP(Sprachen!$B$76,SprachListe,Abfrage,FALSE),\"\")","v":""},null,3,"RIBA Silent-917-16","C",1.4461999999999999,11]
[null,null,null,null,null,null,null,null,null,null,null,null,null,null,null,null,null,null,null,null,null,null,null,null,null,null,null,null,null,null,null,null,null,null,null,null,null,null,null,null,null,null,null,null,null,null,null,null,{"$f":"IF(AND(U32=\"\",E32<>\"\"),VLOOKUP(Sprachen!$B$76,SprachListe,Abfrage,FALSE),\"\")","v":""}]
[null,null,null,null,null,null,null,null,null,null,null,null,null,null,null,null,null,null,null,null,null,null,null,null,null,null,null,null,null,null,null,null,null,null,null,null,null,null,null,null,null,null,null,null,null,null,null,null,{"$f":"IF(AND(U33=\"\",E33<>\"\"),VLOOKUP(Sprachen!$B$76,SprachListe,Abfrage,FALSE),\"\")","v":""}]
[null,null,null,null,null,null,null,null,null,null,null,null,null,null,null,null,null,null,null,null,null,null,null,null,null,null,null,null,null,null,null,null,null,null,null,null,null,null,null,null,null,null,null,null,null,null,null,null,{"$f":"IF(AND(U34=\"\",E34<>\"\"),VLOOKUP(Sprachen!$B$76,SprachListe,Abfrage,FALSE),\"\")","v":""}]
[null,null,null,null,null,null,null,null,null,null,null,null,null,null,null,null,null,null,null,null,null,null,null,null,null,null,null,null,null,null,null,null,null,null,null,null,null,null,null,null,null,null,null,null,null,null,null,null,{"$f":"IF(AND(U35=\"\",E35<>\"\"),VLOOKUP(Sprachen!$B$76,SprachListe,Abfrage,FALSE),\"\")","v":""}]
[null,null,null,null,null,null,null,null,null,null,null,null,null,null,null,null,null,null,null,null,null,null,null,null,null,null,null,null,null,null,null,null,null,null,null,null,null,null,null,null,null,null,null,null,null,null,null,null,{"$f":"IF(AND(U36=\"\",E36<>\"\"),VLOOKUP(Sprachen!$B$76,SprachListe,Abfrage,FALSE),\"\")","v":""}]
[null,null,null,null,null,null,null,null,null,null,null,null,null,null,null,null,null,null,null,null,null,null,null,null,null,null,null,null,null,null,null,null,null,null,null,null,null,null,null,null,null,null,null,null,null,null,null,null,{"$f":"IF(AND(U37=\"\",E37<>\"\"),VLOOKUP(Sprachen!$B$76,SprachListe,Abfrage,FALSE),\"\")","v":""}]
[null,null,null,null,null,null,null,null,null,null,null,null,null,null,null,null,null,null,null,null,null,null,null,null,null,null,null,null,null,null,null,null,null,null,null,null,null,null,null,null,null,null,null,null,null,null,null,null,{"$f":"IF(AND(U38=\"\",E38<>\"\"),VLOOKUP(Sprachen!$B$76,SprachListe,Abfrage,FALSE),\"\")","v":""}]
[null,null,null,null,null,null,null,null,null,null,null,null,null,null,null,null,null,null,null,null,null,null,null,null,null,null,null,null,null,null,null,null,null,null,null,null,null,null,null,null,null,null,null,null,null,null,null,null,{"$f":"IF(AND(U39=\"\",E39<>\"\"),VLOOKUP(Sprachen!$B$76,SprachListe,Abfrage,FALSE),\"\")","v":""}]
[null,null,null,null,null,null,null,null,null,null,null,null,null,null,null,null,null,null,null,null,null,null,null,null,null,null,null,null,null,null,null,null,null,null,null,null,null,null,null,null,null,null,null,null,null,null,null,null,{"$f":"IF(AND(U40=\"\",E40<>\"\"),VLOOKUP(Sprachen!$B$76,SprachListe,Abfrage,FALSE),\"\")","v":""}]
[null,null,null,null,null,null,null,null,null,null,null,null,null,null,null,null,null,null,null,null,null,null,null,null,null,null,null,null,null,null,null,null,null,null,null,null,null,null,null,null,null,null,null,null,null,null,null,null,{"$f":"IF(AND(U41=\"\",E41<>\"\"),VLOOKUP(Sprachen!$B$76,SprachListe,Abfrage,FALSE),\"\")","v":""}]
[null,null,null,null,null,null,null,null,null,null,null,null,null,null,null,null,null,null,null,null,null,null,null,null,null,null,null,null,null,null,null,null,null,null,null,null,null,null,null,null,null,null,null,null,null,null,null,null,{"$f":"IF(AND(U42=\"\",E42<>\"\"),VLOOKUP(Sprachen!$B$76,SprachListe,Abfrage,FALSE),\"\")","v":""}]
[null,null,null,null,null,null,null,null,null,null,null,null,null,null,null,null,null,null,null,null,null,null,null,null,null,null,null,null,null,null,null,null,null,null,null,null,null,null,null,null,null,null,null,null,null,null,null,null,{"$f":"IF(AND(U43=\"\",E43<>\"\"),VLOOKUP(Sprachen!$B$76,SprachListe,Abfrage,FALSE),\"\")","v":""}]
[null,null,null,null,null,null,null,null,null,null,null,null,null,null,null,null,null,null,null,null,null,null,null,null,null,null,null,null,null,null,null,null,null,null,null,null,null,null,null,null,null,null,null,null,null,null,null,null,{"$f":"IF(AND(U44=\"\",E44<>\"\"),VLOOKUP(Sprachen!$B$76,SprachListe,Abfrage,FALSE),\"\")","v":""}]
[null,null,null,null,null,null,null,null,null,null,null,null,null,null,null,null,null,null,null,null,null,null,null,null,null,null,null,null,null,null,null,null,null,null,null,null,null,null,null,null,null,null,null,null,null,null,null,null,{"$f":"IF(AND(U45=\"\",E45<>\"\"),VLOOKUP(Sprachen!$B$76,SprachListe,Abfrage,FALSE),\"\")","v":""}]
[null,null,null,null,null,null,null,null,null,null,null,null,null,null,null,null,null,null,null,null,null,null,null,null,null,null,null,null,null,null,null,null,null,null,null,null,null,null,null,null,null,null,null,null,null,null,null,null,{"$f":"IF(AND(U46=\"\",E46<>\"\"),VLOOKUP(Sprachen!$B$76,SprachListe,Abfrage,FALSE),\"\")","v":""}]
[null,null,null,null,null,null,null,null,null,null,null,null,null,null,null,null,null,null,null,null,null,null,null,null,null,null,null,null,null,null,null,null,null,null,null,null,null,null,null,null,null,null,null,null,null,null,null,null,{"$f":"IF(AND(U47=\"\",E47<>\"\"),VLOOKUP(Sprachen!$B$76,SprachListe,Abfrage,FALSE),\"\")","v":""}]
[null,null,null,null,null,null,null,null,null,null,null,null,null,null,null,null,null,null,null,null,null,null,null,null,null,null,null,null,null,null,null,null,null,null,null,null,null,null,null,null,null,null,null,null,null,null,null,null,{"$f":"IF(AND(U48=\"\",E48<>\"\"),VLOOKUP(Sprachen!$B$76,SprachListe,Abfrage,FALSE),\"\")","v":""}]
[null,null,null,null,null,null,null,null,null,null,null,null,null,null,null,null,null,null,null,null,null,null,null,null,null,null,null,null,null,null,null,null,null,null,null,null,null,null,null,null,null,null,null,null,null,null,null,null,{"$f":"IF(AND(U49=\"\",E49<>\"\"),VLOOKUP(Sprachen!$B$76,SprachListe,Abfrage,FALSE),\"\")","v":""}]
[null,null,null,null,null,null,null,null,null,null,null,null,null,null,null,null,null,null,null,null,null,null,null,null,null,null,null,null,null,null,null,null,null,null,null,null,null,null,null,null,null,null,null,null,null,null,null,null,{"$f":"IF(AND(U50=\"\",E50<>\"\"),VLOOKUP(Sprachen!$B$76,SprachListe,Abfrage,FALSE),\"\")","v":""}]
[null,null,null,null,null,null,null,null,null,null,null,null,null,null,null,null,null,null,null,null,null,null,null,null,null,null,null,null,null,null,null,null,null,null,null,null,null,null,null,null,null,null,null,null,null,null,null,null,{"$f":"IF(AND(U51=\"\",E51<>\"\"),VLOOKUP(Sprachen!$B$76,SprachListe,Abfrage,FALSE),\"\")","v":""}]
[null,null,null,null,null,null,null,null,null,null,null,null,null,null,null,null,null,null,null,null,null,null,null,null,null,null,null,null,null,null,null,null,null,null,null,null,null,null,null,null,null,null,null,null,null,null,null,null,{"$f":"IF(AND(U52=\"\",E52<>\"\"),VLOOKUP(Sprachen!$B$76,SprachListe,Abfrage,FALSE),\"\")","v":""}]
[null,null,null,null,null,null,null,null,null,null,null,null,null,null,null,null,null,null,null,null,null,null,null,null,null,null,null,null,null,null,null,null,null,null,null,null,null,null,null,null,null,null,null,null,null,null,null,null,{"$f":"IF(AND(U53=\"\",E53<>\"\"),VLOOKUP(Sprachen!$B$76,SprachListe,Abfrage,FALSE),\"\")","v":""}]
[]
[]
[null,{"$f":"VLOOKUP(Sprachen!B24,SprachListe,Abfrage,FALSE)&\" \"&VLOOKUP(Sprachen!B31,SprachListe,Abfrage,FALSE)","v":"Spezialausführungen (Masse in mm)"}]
[]
[null,"Pos.",null,null,{"$f":"VLOOKUP(Sprachen!B18,SprachListe,Abfrage,FALSE)","v":"Typ"},null,null,null,null,null,null,null,{"$f":"VLOOKUP(Sprachen!B25,SprachListe,Abfrage,FALSE)","v":"Modell"},null,null,null,null,null,null,null,{"$f":"VLOOKUP(Sprachen!B50,SprachListe,Abfrage,FALSE)","v":"Stahl"},null,null,null,null,"L1 ",null,null,null,"L2  ",null,null,null,"L2.1  ",null,null,null,"L2.2 ",null,null,null,{"$f":"VLOOKUP(Sprachen!B19,SprachListe,Abfrage,FALSE)","v":"Anzahl"},null,null,null,null,null,null,null,null,{"$f":"B58","v":"Pos."},{"$f":"E58","v":"Typ"},{"$f":"M58","v":"Modell"},{"$f":"U58","v":"Stahl"},{"$f":"Z58","v":"L1 "},{"$f":"AD58","v":"L2  "},{"$f":"AH58","v":"L2.1  "},{"$f":"AL58","v":"L2.2 "},{"$f":"AP58","v":"Anzahl"}]
[]
[null,null,null,null,null,null,null,null,null,null,null,null,null,null,null,null,null,null,null,null,null,null,null,null,null,null,null,null,null,null,null,null,null,null,null,null,null,null,null,null,null,null,null,null,null,null,null,null,{"$f":"IF(AND(U60=\"\",E60<>\"\"),VLOOKUP(Sprachen!$B$76,SprachListe,Abfrage,FALSE),\"\")","v":""},null,1,"RIBA Silent-915-14","A",1.4361999999999999,900,null,null,null,12]
[null,null,null,null,null,null,null,null,null,null,null,null,null,null,null,null,null,null,null,null,null,null,null,null,null,null,null,null,null,null,null,null,null,null,null,null,null,null,null,null,null,null,null,null,null,null,null,null,{"$f":"IF(AND(U61=\"\",E61<>\"\"),VLOOKUP(Sprachen!$B$76,SprachListe,Abfrage,FALSE),\"\")","v":""},null,2,"RIBA Silent-917-16","C",1.4461999999999999,null,null,300,600,12]
[null,null,null,null,null,null,null,null,null,null,null,null,null,null,null,null,null,null,null,null,null,null,null,null,null,null,null,null,null,null,null,null,null,null,null,null,null,null,null,null,null,null,null,null,null,null,null,null,{"$f":"IF(AND(U62=\"\",E62<>\"\"),VLOOKUP(Sprachen!$B$76,SprachListe,Abfrage,FALSE),\"\")","v":""}]
[null,null,null,null,null,null,null,null,null,null,null,null,null,null,null,null,null,null,null,null,null,null,null,null,null,null,null,null,null,null,null,null,null,null,null,null,null,null,null,null,null,null,null,null,null,null,null,null,{"$f":"IF(AND(U63=\"\",E63<>\"\"),VLOOKUP(Sprachen!$B$76,SprachListe,Abfrage,FALSE),\"\")","v":""}]
[null,null,null,null,null,null,null,null,null,null,null,null,null,null,null,null,null,null,null,null,null,null,null,null,null,null,null,null,null,null,null,null,null,null,null,null,null,null,null,null,null,null,null,null,null,null,null,null,{"$f":"IF(AND(U64=\"\",E64<>\"\"),VLOOKUP(Sprachen!$B$76,SprachListe,Abfrage,FALSE),\"\")","v":""}]
[null,null,null,null,null,null,null,null,null,null,null,null,null,null,null,null,null,null,null,null,null,null,null,null,null,null,null,null,null,null,null,null,null,null,null,null,null,null,null,null,null,null,null,null,null,null,null,null,{"$f":"IF(AND(U65=\"\",E65<>\"\"),VLOOKUP(Sprachen!$B$76,SprachListe,Abfrage,FALSE),\"\")","v":""}]

{"sheet":"NELL Silent","index":8,"n_rows":81,"n_cols":58,"rows_kept":81,"cut":false,"hidden":false,"merged":[[21,12,21,23],[21,25,21,46],[22,2,22,11],[22,13,22,22],[22,25,22,44],[27,7,27,8],[28,37,28,46],[29,37,29,46],[6,25,6,33],[9,1,9,23],[9,25,9,33],[9,35,9,46],[10,1,10,23],[19,1,19,10],[19,12,19,23],[19,25,19,46],[15,1,15,23],[15,25,15,46],[16,1,16,23],[16,25,16,46],[17,1,17,23],[17,25,17,46],[11,1,11,23],[11,25,11,46],[12,1,12,23],[12,25,12,46],[13,25,13,46],[14,1,14,23],[20,25,20,46],[21,1,21,10],[79,7,79,8],[88,7,88,8],[66,7,66,8],[67,7,67,8],[75,7,75,8],[75,27,75,32],[75,33,75,36],[75,37,75,46],[64,33,64,36],[64,37,64,46],[28,9,28,17],[29,9,29,17],[36,9,36,17],[53,7,53,8],[54,7,54,8],[40,7,40,8],[29,7,29,8],[62,9,62,17],[77,1,77,5],[64,1,64,5],[28,7,28,8],[36,7,36,8],[62,7,62,8],[41,7,41,8],[49,7,49,8],[25,9,25,17],[27,9,27,17],[51,9,51,17],[68,9,68,17],[69,9,69,17],[74,9,74,17],[30,9,30,17],[31,9,31,17],[32,9,32,17],[33,9,33,17],[34,9,34,17],[35,9,35,17],[30,7,30,8],[31,7,31,8],[32,7,32,8],[33,7,33,8],[34,7,34,8],[25,37,25,46],[27,37,27,46],[25,27,25,32],[25,33,25,36],[27,27,27,32],[27,33,27,36],[28,18,28,20],[28,27,28,32],[28,33,28,36],[29,18,29,20],[36,18,36,20],[25,21,25,23],[27,21,27,23],[25,24,25,26],[27,24,27,26],[28,21,28,23],[28,24,28,26],[29,21,29,23],[29,24,29,26],[36,21,36,23],[36,24,36,26],[25,18,25,20],[27,18,27,20],[36,37,36,46],[40,9,40,17],[41,9,41,17],[49,9,49,17],[38,9,38,17],[38,18,38,20],[38,21,38,23],[38,24,38,26],[40,18,40,20],[41,18,41,20],[49,18,49,20],[40,21,40,23],[41,21,41,23],[49,21,49,23],[38,27,38,32],[38,37,38,46],[40,37,40,46],[41,37,41,46],[49,37,49,46],[29,27,29,32],[29,33,29,36],[36,27,36,32],[36,33,36,36],[40,24,40,26],[41,24,41,26],[49,24,49,26],[40,27,40,32],[41,27,41,32],[49,27,49,32],[38,33,38,36],[40,33,40,36],[41,33,41,36],[49,33,49,36],[51,18,51,20],[51,21,51,23],[51,24,51,26],[51,27,51,32],[51,33,51,36],[51,37,51,46],[53,9,53,17],[54,9,54,17],[53,18,53,20],[53,21,53,23],[53,24,53,26],[54,18,54,20],[54,21,54,23],[54,24,54,26],[53,37,53,46],[54,37,54,46],[62,18,62,20],[62,21,62,23],[62,24,62,26],[53,27,53,32],[54,27,54,32],[62,27,62,32],[53,33,53,36],[54,33,54,36],[62,33,62,36],[62,37,62,46],[66,9,66,17],[67,9,67,17],[75,9,75,17],[64,9,64,17],[64,18,64,20],[64,21,64,23],[64,24,64,26],[64,27,64,32],[66,18,66,20],[66,21,66,23],[66,24,66,26],[67,18,67,20],[67,21,67,23],[67,24,67,26],[75,18,75,20],[75,21,75,23],[75,24,75,26],[66,27,66,32],[66,33,66,36],[66,37,66,46],[67,27,67,32],[67,33,67,36],[67,37,67,46],[79,51,79,55],[77,33,77,36],[77,37,77,46],[79,33,79,36],[88,33,88,36],[79,37,79,46],[88,37,88,46],[77,9,77,32],[79,9,79,32],[88,9,88,32],[80,51,80,55],[83,9,83,32],[83,33,83,36],[83,37,83,46],[35,7,35,8],[30,18,30,20],[30,21,30,23],[30,24,30,26],[30,27,30,32],[30,33,30,36],[30,37,30,46],[34,18,34,20],[34,21,34,23],[34,24,34,26],[34,27,34,32],[34,33,34,36],[34,37,34,46],[35,18,35,20],[35,21,35,23],[35,24,35,26],[35,27,35,32],[35,33,35,36],[35,37,35,46],[32,18,32,20],[33,18,33,20],[55,7,55,8],[55,9,55,17],[55,18,55,20],[55,21,55,23],[55,24,55,26],[55,27,55,32],[55,33,55,36],[55,37,55,46],[56,7,56,8],[56,9,56,17],[56,18,56,20],[56,21,56,23],[56,24,56,26],[56,27,56,32],[56,33,56,36],[56,37,56,46],[57,7,57,8],[57,9,57,17],[57,18,57,20],[57,21,57,23],[57,24,57,26],[57,27,57,32],[57,33,57,36],[57,37,57,46],[58,7,58,8],[58,9,58,17],[58,18,58,20],[58,21,58,23],[58,24,58,26],[58,27,58,32],[58,33,58,36],[58,37,58,46],[59,7,59,8],[59,9,59,17],[59,18,59,20],[59,21,59,23],[59,24,59,26],[59,27,59,32],[59,33,59,36],[59,37,59,46],[60,7,60,8],[60,9,60,17],[60,18,60,20],[60,21,60,23],[60,24,60,26],[60,27,60,32],[60,33,60,36],[60,37,60,46],[61,7,61,8],[61,9,61,17],[61,18,61,20],[61,21,61,23],[61,24,61,26],[61,27,61,32],[61,33,61,36],[61,37,61,46],[42,7,42,8],[42,9,42,17],[42,18,42,20],[42,21,42,23],[42,24,42,26],[42,27,42,32],[42,33,42,36],[42,37,42,46],[43,7,43,8],[43,9,43,17],[43,18,43,20],[43,21,43,23],[43,24,43,26],[43,27,43,32],[43,33,43,36],[43,37,43,46],[44,7,44,8],[44,9,44,17],[44,18,44,20],[44,21,44,23],[44,24,44,26],[44,27,44,32],[44,33,44,36],[44,37,44,46],[45,7,45,8],[45,9,45,17],[45,18,45,20],[45,21,45,23],[45,24,45,26],[45,27,45,32],[45,33,45,36],[45,37,45,46],[46,7,46,8],[46,9,46,17],[46,18,46,20],[46,21,46,23],[46,24,46,26],[46,27,46,32],[46,33,46,36],[46,37,46,46],[47,7,47,8],[47,9,47,17],[47,18,47,20],[47,21,47,23],[47,24,47,26],[47,27,47,32],[47,33,47,36],[47,37,47,46],[48,7,48,8],[48,9,48,17],[48,18,48,20],[48,21,48,23],[48,24,48,26],[48,27,48,32],[48,33,48,36],[48,37,48,46],[31,24,31,26],[32,24,32,26],[33,24,33,26],[31,37,31,46],[32,37,32,46],[33,37,33,46],[31,33,31,36],[32,33,32,36],[33,33,33,36],[31,27,31,32],[32,27,32,32],[33,27,33,32],[31,21,31,23],[32,21,32,23],[33,21,33,23],[31,18,31,20],[68,7,68,8],[68,18,68,20],[68,21,68,23],[68,24,68,26],[68,27,68,32],[68,33,68,36],[68,37,68,46],[69,7,69,8],[69,18,69,20],[69,21,69,23],[69,24,69,26],[69,27,69,32],[69,33,69,36],[69,37,69,46],[70,7,70,8],[70,9,70,17],[70,18,70,20],[70,21,70,23],[70,24,70,26],[70,27,70,32],[70,33,70,36],[70,37,70,46],[71,7,71,8],[71,9,71,17],[71,18,71,20],[71,21,71,23],[71,24,71,26],[71,27,71,32],[71,33,71,36],[71,37,71,46],[72,7,72,8],[72,9,72,17],[72,18,72,20],[72,21,72,23],[72,24,72,26],[72,27,72,32],[72,33,72,36],[72,37,72,46],[73,7,73,8],[73,9,73,17],[73,18,73,20],[73,21,73,23],[73,24,73,26],[73,27,73,32],[73,33,73,36],[73,37,73,46],[74,7,74,8],[74,18,74,20],[74,21,74,23],[74,24,74,26],[74,27,74,32],[74,33,74,36],[74,37,74,46],[87,7,87,8],[87,9,87,32],[87,33,87,36],[87,37,87,46],[86,7,86,8],[86,9,86,32],[86,33,86,36],[86,37,86,46],[85,7,85,8],[85,9,85,32],[85,33,85,36],[85,37,85,46],[84,7,84,8],[84,9,84,32],[84,33,84,36],[84,37,84,46],[83,7,83,8],[82,7,82,8],[82,9,82,32],[82,33,82,36],[82,37,82,46],[81,7,81,8],[81,9,81,32],[81,33,81,36],[81,37,81,46],[80,7,80,8],[80,9,80,32],[80,33,80,36],[80,37,80,46]]}
[]
[]
[]
[]
[]
[null,{"$f":"VLOOKUP(Sprachen!B21,SprachListe,Abfrage,FALSE) &\" NELL Silent\"","v":"Bestellung NELL Silent"},null,null,null,null,null,null,null,null,null,null,null,null,null,null,null,null,null,null,null,null,null,null,null,null,null,null,null,null,null,null,null,null,null,null,null,null,null,null,null,null,null,null,null,null,{"$f":"'Übersicht Bestelllisten'!AW37","v":"Vers.07.2021"}]
[]
[]
[null,{"$f":"VLOOKUP(Sprachen!B7,SprachListe,Abfrage,FALSE)","v":"Objekt"},null,null,null,null,null,null,null,null,null,null,null,null,null,null,null,null,null,null,null,null,null,null,null,{"$f":"VLOOKUP(Sprachen!B8,SprachListe,Abfrage,FALSE)","v":"Datum"},null,null,null,null,null,null,null,null,null,{"$f":"VLOOKUP(Sprachen!B10,SprachListe,Abfrage,FALSE)","v":"Zeichner/-in"}]
[]
[null,null,null,null,null,null,null,null,null,null,null,null,null,null,null,null,null,null,null,null,null,null,null,null,null,{"$f":"VLOOKUP(Sprachen!B11,SprachListe,Abfrage,FALSE)","v":"Ingenieurbüro"}]
[]
[]
[null,{"$f":"VLOOKUP(Sprachen!B9,SprachListe,Abfrage,FALSE)","v":"Bauteil"},null,null,null,null,null,null,null,null,null,null,null,null,null,null,null,null,null,null,null,null,null,null,null,"Ihre Telefonummer"]
[null,null,null,null,null,null,null,null,null,null,null,null,null,null,null,null,null,null,null,null,null,null,null,null,null,{"$f":"VLOOKUP(Sprachen!B12,SprachListe,Abfrage,FALSE)","v":"Lieferadresse"}]
[]
[]
[]
[null,{"$f":"VLOOKUP(Sprachen!B13,SprachListe,Abfrage,FALSE)","v":"Liste Nr."},null,null,null,null,null,null,null,null,null,null,{"$f":"VLOOKUP(Sprachen!B14,SprachListe,Abfrage,FALSE)","v":"Zu Plan Nr."},null,null,null,null,null,null,null,null,null,null,null,null,{"$f":"VLOOKUP(Sprachen!B17,SprachListe,Abfrage,FALSE)","v":"Bauunternehmung"}]
[]
[null,{"$f":"VLOOKUP(Sprachen!B15,SprachListe,Abfrage,FALSE)","v":"Name des Bestellers"},null,null,null,null,null,null,null,null,null,null,{"$f":"VLOOKUP(Sprachen!B16,SprachListe,Abfrage,FALSE)","v":"Liefertermin"}]
[]
[]
[null,{"$f":"VLOOKUP(Sprachen!B47,SprachListe,Abfrage,FALSE)","v":"NELL Silent-Treppenlager und Lager"},null,null,null,null,null,null,null,null,null,null,null,null,null,null,null,null,null,null,null,null,null,null,null,null,null,null,null,null,null,null,null,null,null,null,null,null,null,null,null,null,null,null,null,null,null,null,null,null,{"$f":"VLOOKUP(Sprachen!B73,SprachListe,Abfrage,FALSE)","v":"Beispiel"}]
[]
[null,{"$f":"VLOOKUP(Sprachen!B18,SprachListe,Abfrage,FALSE)&\" Z\"","v":"Typ Z"},null,null,null,null,null,"Pos",null,{"$f":"VLOOKUP(Sprachen!B18,SprachListe,Abfrage,FALSE)","v":"Typ"},null,null,null,null,null,null,null,null,"A \nmm",null,null,"B\nmm",null,null,"C\nmm",null,null,{"$f":"VLOOKUP(Sprachen!B49,SprachListe,Abfrage,FALSE)","v":"Treppenlauf-breite mm"},null,null,null,null,null,{"$f":"VLOOKUP(Sprachen!B19,SprachListe,Abfrage,FALSE)","v":"Anzahl"},null,null,null,{"$f":"VLOOKUP(Sprachen!B20,SprachListe,Abfrage,FALSE)","v":"Bemerkungen"},null,null,null,null,null,null,null,null,null,null,null,null,{"$f":"H26","v":"Pos"},{"$f":"J26","v":"Typ"},{"$f":"S26","v":"A \nmm"},{"$f":"V26","v":"B\nmm"},{"$f":"Y26","v":"C\nmm"},{"$f":"AB26","v":"Treppenlauf-breite mm"},{"$f":"AH26","v":"Anzahl"},{"$f":"AL26","v":"Bemerkungen"}]
[]
[null,null,null,null,null,null,null,null,null,null,null,null,null,null,null,null,null,null,null,null,null,null,null,null,null,null,null,null,null,null,null,null,null,null,null,null,null,null,null,null,null,null,null,null,null,null,null,null,null,null,1,"NELL Silent-Z-2",150,120,125,1150,2]
[null,null,null,null,null,null,null,null,null,null,null,null,null,null,null,null,null,null,null,null,null,null,null,null,null,null,null,null,null,null,null,null,null,null,null,null,null,null,null,null,null,null,null,null,null,null,null,null,null,null,2,"NELL Silent-Z-3",150,120,125,1200,3]
[]
[]
[]
[]
[]
[]
[]
[]
[]
[null,{"$f":"VLOOKUP(Sprachen!B18,SprachListe,Abfrage,FALSE)&\" L\"","v":"Typ L"},null,null,null,null,null,"Pos",null,{"$f":"VLOOKUP(Sprachen!B18,SprachListe,Abfrage,FALSE)","v":"Typ"},null,null,null,null,null,null,null,null,"A \nmm",null,null,"B\nmm",null,null,null,null,null,{"$f":"VLOOKUP(Sprachen!B49,SprachListe,Abfrage,FALSE)","v":"Treppenlauf-breite mm"},null,null,null,null,null,{"$f":"VLOOKUP(Sprachen!B19,SprachListe,Abfrage,FALSE)","v":"Anzahl"},null,null,null,{"$f":"VLOOKUP(Sprachen!B20,SprachListe,Abfrage,FALSE)","v":"Bemerkungen"},null,null,null,null,null,null,null,null,null,null,null,null,{"$f":"H39","v":"Pos"},{"$f":"J39","v":"Typ"},{"$f":"S39","v":"A \nmm"},{"$f":"V39","v":"B\nmm"},null,{"$f":"AB39","v":"Treppenlauf-breite mm"},{"$f":"AH39","v":"Anzahl"},{"$f":"AL39","v":"Bemerkungen"}]
[]
[null,null,null,null,null,null,null,null,null,null,null,null,null,null,null,null,null,null,null,null,null,null,null,null,null,null,null,null,null,null,null,null,null,null,null,null,null,null,null,null,null,null,null,null,null,null,null,null,null,null,1,"NELL Silent-L-3",150,120,null,1150,2]
[null,null,null,null,null,null,null,null,null,null,null,null,null,null,null,null,null,null,null,null,null,null,null,null,null,null,null,null,null,null,null,null,null,null,null,null,null,null,null,null,null,null,null,null,null,null,null,null,null,null,2,"NELL Silent-L-5",150,120,null,1350,4]
[]
[]
[]
[]
[]
[]
[]
[]
[]
[null,{"$f":"VLOOKUP(Sprachen!B18,SprachListe,Abfrage,FALSE)&\" F\"","v":"Typ F"},null,null,null,null,null,"Pos",null,{"$f":"VLOOKUP(Sprachen!B18,SprachListe,Abfrage,FALSE)","v":"Typ"},null,null,null,null,null,null,null,null,"A \nmm",null,null,null,null,null,null,null,null,{"$f":"VLOOKUP(Sprachen!B49,SprachListe,Abfrage,FALSE)","v":"Treppenlauf-breite mm"},null,null,null,null,null,{"$f":"VLOOKUP(Sprachen!B19,SprachListe,Abfrage,FALSE)","v":"Anzahl"},null,null,null,{"$f":"VLOOKUP(Sprachen!B20,SprachListe,Abfrage,FALSE)","v":"Bemerkungen"},null,null,null,null,null,null,null,null,null,null,null,null,{"$f":"H52","v":"Pos"},{"$f":"J52","v":"Typ"},{"$f":"S52","v":"A \nmm"},null,null,{"$f":"AB52","v":"Treppenlauf-breite mm"},{"$f":"AH52","v":"Anzahl"},{"$f":"AL52","v":"Bemerkungen"}]
[]
[null,null,null,null,null,null,null,null,null,null,null,null,null,null,null,null,null,null,null,null,null,null,null,null,null,null,null,null,null,null,null,null,null,null,null,null,null,null,null,null,null,null,null,null,null,null,null,null,null,null,1,"NELL Silent-F-2",150,null,null,1150,2]
[null,null,null,null,null,null,null,null,null,null,null,null,null,null,null,null,null,null,null,null,null,null,null,null,null,null,null,null,null,null,null,null,null,null,null,null,null,null,null,null,null,null,null,null,null,null,null,null,null,null,2,"NELL Silent-F-4",600,null,null,1200,3]
[]
[]
[]
[]
[]
[]
[]
[]
[]
[null,{"$f":"VLOOKUP(Sprachen!B18,SprachListe,Abfrage,FALSE)&\" W\"","v":"Typ W"},null,null,null,null,null,"Pos",null,{"$f":"VLOOKUP(Sprachen!B18,SprachListe,Abfrage,FALSE)","v":"Typ"},null,null,null,null,null,null,null,null,null,null,null,"B\nmm",null,null,null,null,null,{"$f":"VLOOKUP(Sprachen!B36,SprachListe,Abfrage,FALSE)","v":"Länge mm"},null,null,null,null,null,{"$f":"VLOOKUP(Sprachen!B19,SprachListe,Abfrage,FALSE)","v":"Anzahl"},null,null,null,{"$f":"VLOOKUP(Sprachen!B20,SprachListe,Abfrage,FALSE)","v":"Bemerkungen"},null,null,null,null,null,null,null,null,null,null,null,null,{"$f":"H65","v":"Pos"},{"$f":"J65","v":"Typ"},null,{"$f":"V65","v":"B\nmm"},null,{"$f":"AB65","v":"Länge mm"},{"$f":"AH65","v":"Anzahl"},{"$f":"AL65","v":"Bemerkungen"}]
[]
[null,null,null,null,null,null,null,null,null,"NELL Silent-W",null,null,null,null,null,null,null,null,null,null,null,null,null,null,null,null,null,null,null,null,null,null,null,null,null,null,null,null,null,null,null,null,null,null,null,null,null,null,null,null,1,"NELL Silent-W",null,400,null,1000,10]
[null,null,null,null,null,null,null,null,null,"NELL Silent-W",null,null,null,null,null,null,null,null,null,null,null,null,null,null,null,null,null,null,null,null,null,null,null,null,null,null,null,null,null,null,null,null,null,null,null,null,null,null,null,null,2,"NELL Silent-W",null,350,null,1200,3]
[null,null,null,null,null,null,null,null,null,"NELL Silent-W"]
[null,null,null,null,null,null,null,null,null,"NELL Silent-W"]
[null,null,null,null,null,null,null,null,null,"NELL Silent-W"]
[null,null,null,null,null,null,null,null,null,"NELL Silent-W"]
[null,null,null,null,null,null,null,null,null,"NELL Silent-W"]
[null,null,null,null,null,null,null,null,null,"NELL Silent-W"]
[null,null,null,null,null,null,null,null,null,"NELL Silent-W"]
[null,null,null,null,null,null,null,null,null,"NELL Silent-W"]
[]
[null,{"$f":"VLOOKUP(Sprachen!B18,SprachListe,Abfrage,FALSE)&\" Isolmat\"","v":"Typ Isolmat"},null,null,null,null,null,"Pos",null,{"$f":"VLOOKUP(Sprachen!B18,SprachListe,Abfrage,FALSE)","v":"Typ"},null,null,null,null,null,null,null,null,null,null,null,null,null,null,null,null,null,null,null,null,null,null,null,{"$f":"VLOOKUP(Sprachen!B19,SprachListe,Abfrage,FALSE)","v":"Anzahl"},null,null,null,{"$f":"VLOOKUP(Sprachen!B20,SprachListe,Abfrage,FALSE)","v":"Bemerkungen"},null,null,null,null,null,null,null,null,null,null,null,null,{"$f":"H78","v":"Pos"},{"$f":"J78","v":"Typ"},null,null,null,null,{"$f":"AH78","v":"Anzahl"},{"$f":"AL78","v":"Bemerkungen"}]
[]
[null,null,null,null,null,null,null,null,null,null,null,null,null,null,null,null,null,null,null,null,null,null,null,null,null,null,null,null,null,null,null,null,null,null,null,null,null,null,null,null,null,null,null,null,null,null,null,null,null,null,1,"NELL Silent-Isolmat-125",null,null,null,null,15]
[null,null,null,null,null,null,null,null,null,null,null,null,null,null,null,null,null,null,null,null,null,null,null,null,null,null,null,null,null,null,null,null,null,null,null,null,null,null,null,null,null,null,null,null,null,null,null,null,null,null,2,"NELL Silent-Isolmat-150",null,null,null,null,15]

{"sheet":"RIBA","index":9,"n_rows":23,"n_cols":6,"rows_kept":23,"cut":false,"hidden":false,"merged":[]}
[]
[]
[]
[]
[null,"RIBA WIRD DURCH ANCON ANCRA ABGELÖST​",null,"RIBA SERA REMPLACÉ PAR ANCON ANCRA​",null,"RIBA SARÀ SOSTITUITO DA ANCON ANCRA​"]
[null,"​",null,"​",null,"​"]
[null,"Die Marken Aschwanden und Ancon führten zwei fast identische hochwertige nichtrostende Bewehrungsproduktlinien, diese werden in Zukunft zusammengeführt.  ​\n\nRIBA Anker und Rippenstähle wird durch ANCON ANCRA ersetzt. Lastangaben des RIBA Sortiments werden in die ANCON Dokumentation einfliessen.​",null,"Les marques Aschwanden et Ancon comportaient deux lignes de \nproduits d’armatures en acier inoxydable de haute qualité \npresque identiques qui seront fusionnées à l'avenir. \n\nLes ancrages et aciers nervurés RIBA seront remplacés par ANCON ANCRA. Les données de charge de l’assortiment RIBA seront incluses \ndans la documentation ANCON.​",null,"​I marchi Aschwanden e Ancon comprendevano due linee quasi \nidentiche di prodotti di rinforzo in acciaio inossidabile di alta \nqualità che in futuro verranno fuse. \n\nGli ancoraggi RIBA e gli acciai scanalati saranno sostituiti da ANCON ANCRA. I dati di carico per la gamma RIBA saranno \ninclusi nella documentazione ANCON."]
[null,"  ​",null,"​"]
[null,"Wie bestelle Sie in Zukunft? ​",null,"Comment allez-vous commander à l'avenir ? ​",null,"Come ordinare in futuro? ​"]
[null,"Die Umschreibetabelle RIBA – ANCRA zeigt, wie RIBA Standardgrössen mit dem ANCRA-Sortiment definiert werden können.​",null,"Le Tableau de transcription RIBA – ANCRA montre comment \ndéfinir les tailles standard RIBA avec l’assortiment ANCRA.​",null,"La tabella di trascrizione RIBA – ANCRA mostra come \ndefinire le dimensioni standard RIBA con l'assortimento ANCRA.​"]
[null,"​",null,"​"]
[null,"Informationen zum Sortiment ANCON ANCRA ​",null,"Informations sur l’assortiment ANCON ANCRA ​",null,"Informazioni sull'assortimento ANCON ANCRA ​"]
[null,"In der Dokumentation Nichtrostende Bewehrung erfahren Sie Wissenswertes zu ANCRA. Diese und weitere Dokumente finden Sie unter www.ancon.ch.​",null,"Dans la documentation Armature en acier inoxydable vous trouverez \ndes informations utiles sur ANCRA. Vous trouverez ces documents et \nd'autres sur www.ancon.ch.​",null,"Nella documentazione Acciaio d’Armatura Inossidabile troverete informazioni utili su ANCRA. Questi e altri documenti sono disponibili sul sito www.ancon.ch.​"]
[null,"​",null,"​"]
[null,null,null,"​"]
[null,null,null,"​"]
[null,null,null,"​"]
[null,null,null,"​"]
[null,null,null,"​"]
[null,null,null,"​"]
[null,null,null,"​"]
[null,null,null,"​"]
[null,null,null,"​"]

{"sheet":"Produktdaten","index":10,"n_rows":193,"n_cols":90,"rows_kept":193,"cut":false,"hidden":true,"merged":[[2,6,2,7],[2,8,2,9],[2,22,2,23],[1,49,1,52],[1,42,1,48],[1,24,1,30],[1,33,1,34],[1,35,1,41],[1,17,1,23],[1,1,1,13],[1,78,1,86],[1,67,1,76],[1,60,1,63],[1,53,1,54],[1,55,1,59]]}
[1,2,3,4,5,6,7,8,9,10,11,12,13,14,15,16,17,18,19,20,21,22,23,24,25,26,27,28,29,30,31,32,33,34,35,36,37,38,39,40,41,42,43,44,45,46,47,48,49,50,51,52,53,54,55,56,57,58,59,60,61,62,63,64,65,66,67,68,69,70,71,72,73,74,75,76,77,78,79,80,81,82,83,84,85,86,87,88,89,90]
[null,"CRET",null,null,null,null,null,null,null,null,null,null,null,null,null,null,null,"DURA",null,null,null,null,null,null,"CRET Silent",null,null,null,null,null,null,null,null,"ARBO Silent",null,"RIBA Zuganker & Geschr. Zuganker",null,null,null,null,null,null,"RIBA Bügelanker UB",null,null,null,null,null,null,"RIBA Bügelanker HB",null,null,null,"RIBA Zubehör",null,"RIBA Silent",null,null,null,null,"NELL Silent",null,null,null,null,null,null,"RIBA geschr. Zuganker Abmessungen abfragen",null,null,null,null,null,null,null,null,null,null,"RIBA Zuganker Abmessungen abfragen"]
[null,"Typ","Bügel A \nAbm.","Bügel B \nAbm.","Zellen\nCRET\nTyp","Zellen\nCRET\nLänge","Errorhandler\nLinks 6",null,"Zellen CRET\nBügel",null,"Dorne","Hülse","Hinweise ","Zellen\nCRET \nBemerkungen","Typ","Zellen BM\nTyp","Typ","Zellen DURA\nTyp","Zellen DURA\nHöhe","D6","D74","D971","Errorhandler",null,"Typ","e","Bügel\nAbm.","Zellen CS\nTyp","Zellen CS\nFuge","Zellen CS\nBü A","Zellen CS\nBü B","Zellen\nCRET Silent\nBemerkungen","Zusätze für Bemerkungen","Typ","Zellen AS\nTyp","Typ",null,"Material","ø","Zellen RZug\nTyp","Zellen RZug\nø","Zellen RZug\nMat.","Typ","Modell","Gewindeart","Zellen UB\nTyp","Zellen UB\nMat.","Zellen UB\nModell","Zellen UB\nGewindeart","Typ","Zellen HB\nTyp","Zellen HB\nMat.","Zellen HB\nGewindeart","Typ_Zub","Zellen Zub\nTyp","Typ","Modell","Zellen\nTyp","Zellen\nModell","Zellen\nMat.","Typ\nNELL Silent","Silent W","Zellen","Zellen\nW",null,"Fusszeilen",null,"Typ","ø","Qualität","l mm","l1  mm","b  mm","b1  mm",null,null,null,null,"Typ","ø","Qualität","l  mm","s  mm","b/b1  mm","lbd1  mm","lbd2  mm","lbd3  mm",null,"Zellen RZug\nMat."]
[null,null,110,160,"E30","N30","CRET-1",170,"U30","Z30",null,170,{"$f":"VLOOKUP(Sprachen!$B$67,SprachListe,Abfrage,FALSE)","v":"exkl. Dorn"},"AY30",null,"E28",null,"E28","P28",260,180,110,"DURA-45",110,null,10,{"$f":"VLOOKUP(Sprachen!B72,SprachListe,Abfrage,FALSE)","v":"ohne"},"E29","V29","AB29","AE29","AY29",{"$f":"VLOOKUP(Sprachen!$B$74,SprachListe,Abfrage,FALSE)","v":"Komplett"},null,"E28","RIBA-A","RIBA-830",1.4361999999999999,10,"E28","K28","N28",null,"A",{"$f":"VLOOKUP(Sprachen!$B$58,SprachListe,Abfrage,FALSE)","v":"geschnitten"},"E28","L28","AL28","P28",null,"E28","O28","S28",null,"E26",null,null,"E29","M29","U29",null,null,"Z",null,null,{"$f":"VLOOKUP(Sprachen!$B$68,SprachListe,Abfrage,FALSE)","v":"Mit der Bestellung werden die Allgemeinen Geschäftsbedingungen akzeptiert"},null,"RIBA-830",10,1.4361999999999999,390,"-","-","-",null,null,null,null,"RIBA-A",10,1.4361999999999999,840,"-","-","-",380,"-",null,"O28"]
[null,{"$f":"\"CRET-10 \"&VLOOKUP(Sprachen!$B$63,SprachListe,Abfrage,FALSE)","v":"CRET-10 Dorn"},120,180,"E31","N31","CRET-1",195,"U31","Z31",300,195,{"$f":"VLOOKUP(Sprachen!$B$66,SprachListe,Abfrage,FALSE)","v":"exkl. Hülse"},"AY31","BM-10/20-20","E29","DURA-70","E29","P29",270,190,120,"DURA-45",120,"CRET Silent-930",20,100,"E30","V30","AB30","AE30","AY30",{"$f":"VLOOKUP(Sprachen!$B$75,SprachListe,Abfrage,FALSE)","v":"Dorn + Hülse"},"ARBO Silent-716-08","E29","RIBA-AV","RIBA-831",1.4461999999999999,12,"E29","K29","N29","RIBA-UB1-10","B",{"$f":"VLOOKUP(Sprachen!$B$57,SprachListe,Abfrage,FALSE)","v":"gerollt"},"E29","L29","AL29","P29","RIBA-HB1-10","E29","O29","S29","RIBA-MU10/0.8, 1.4401","E27","RIBA Silent-915-10","A","E30","M30","U30","NELL Silent-F-2","Breite","J28","Breite",null,null,null,"RIBA-830",10,1.4461999999999999,390,"-","-","-",null,null,null,null,"RIBA-A",10,1.4461999999999999,840,"-","-","-",380,"-",null,"O29"]
[null,{"$f":"\"CRET-10TS \"&VLOOKUP(Sprachen!$B$63,SprachListe,Abfrage,FALSE)","v":"CRET-10TS Dorn"},130,200,"E32","N32","CRET-1",220,"U32","Z32",350,220,{"$f":"VLOOKUP(Sprachen!$B$79,SprachListe,Abfrage,FALSE)","v":"Bitte Bügelabmessungen wählen"},"AY32","BM-10/20-30","E30","DURA-90","E30","P30",280,200,130,"DURA-45",130,{"$f":"\"MVK \"&VLOOKUP(Sprachen!$B$65,SprachListe,Abfrage,FALSE)&\" CRET Silent-930\"","v":"MVK zu CRET Silent-930"},30,110,"E31","V31","AB31","AE31","AY31",{"$f":"VLOOKUP(Sprachen!$B$81,SprachListe,Abfrage,FALSE)","v":"Bitte Fugenöffnung + Bügelabmessung wählen"},"ARBO Silent-716-10","E30","RIBA-B","RIBA-832",null,14,"E30","K30","N30","RIBA-UB1-12",null,null,"E30","L30","AL30","P30","RIBA-HB1-12","E30","O30","S30","RIBA-MU12/0.8, 1.4401","E28","RIBA Silent-915-12","B","E31","M31","U31","NELL Silent-F-3",null,"J29","V67",null,"Leviat AG  Grenzstr. 24  CH-3250 Lyss T 032 387 95 95\nwww.aschwanden.com  info.ch@leviat.com",null,"RIBA-831",10,1.4361999999999999,515,"-","-","-",null,null,null,null,"RIBA-A",12,1.4361999999999999,1000,"-","-","-",460,"-",null,"O30"]
[null,{"$f":"\"CRET-13 \"&VLOOKUP(Sprachen!$B$63,SprachListe,Abfrage,FALSE)","v":"CRET-13 Dorn"},140,210,"E33","N33","CRET-1",270,"U33","Z33",400,270,null,"AY33","BM-10 V20/20-20","E31","DURA-90L","E31","P31",290,210,140,"DURA-45",140,"CRET Silent-945 APG",40,120,"E32","V32","AB32","AE32","AY32",{"$f":"VLOOKUP(Sprachen!$B$86,SprachListe,Abfrage,FALSE)","v":"Hülse kurz (Ortbton)"},"ARBO Silent-716-12","E31","RIBA-BV","RIBA-860",null,16,"E31","K31","N31","RIBA-UB1-14",null,null,"E31","L31","AL31","P31","RIBA-HB1-14","E31","O31","S31","RIBA-MU14/0.8, 1.4401","E29","RIBA Silent-915-14","C","E32","M32","U32","NELL Silent-F-4",300,"J30","V68",null,{"$f":"VLOOKUP(Sprachen!$B$71,SprachListe,Abfrage,FALSE)","v":"Speicherort:"},null,"RIBA-831",10,1.4461999999999999,515,"-","-","-",null,null,null,null,"RIBA-A",12,1.4461999999999999,1000,"-","-","-",460,"-",null,"O31"]
[null,{"$f":"\"CRET-23 \"&VLOOKUP(Sprachen!$B$63,SprachListe,Abfrage,FALSE)","v":"CRET-23 Dorn"},160,220,"E34","N34","CRET-1",320,"U34","Z34",500,320,null,"AY34","BM-10 V20/20-30","E32","DURA-110","E32","P32",300,220,150,"DURA-45",150,"CRET Silent-946 APG",50,130,"E33","V33","AB33","AE33","AY33",{"$f":"VLOOKUP(Sprachen!$B$87,SprachListe,Abfrage,FALSE)","v":"Hülse lang (Vorfabrikation)"},"ARBO Silent-716-16","E32","RIBA-C","RIBA-860V",null,20,"E32","K32","N32","RIBA-UB1-16",null,null,"E32","L32","AL32","P32","RIBA-HB1-16","E32","O32","S32","RIBA-MU16/0.8, 1.4401","E30","RIBA Silent-915-16",null,"E33","M33","U33","NELL Silent-F-5",null,"J31","V69",null,null,null,"RIBA-832",10,1.4361999999999999,215,"-",210,210,null,null,null,null,"RIBA-A",14,1.4361999999999999,1150,"-","-","-",535,"-",null,"O32"]
[null,{"$f":"\"CRET-30 \"&VLOOKUP(Sprachen!$B$63,SprachListe,Abfrage,FALSE)","v":"CRET-30 Dorn"},180,240,"E35","N35","CRET-2",170,"U35","Z35",600,null,null,"AY35","BM-122-20","E33","DURA-45","E33","P33",310,230,160,"DURA-45",160,"CRET Silent-947 APG",60,140,"E34","V34","AB34","AE34","AY34",{"$f":"VLOOKUP(Sprachen!$B$79,SprachListe,Abfrage,FALSE)","v":"Bitte Bügelabmessungen wählen"},"ARBO Silent-718-08","E33","RIBA-CV","RIBA-862",null,null,"E33","K33","N33","RIBA-UB1-20",null,null,"E33","L33","AL33","P33","RIBA-HB1-20","E33","O33","S33","RIBA-MU20/0.8, 1.4401","E31","RIBA Silent-917-16",null,"E34","M34","U34","NELL Silent-F-6","Länge","J32","V70",null,null,null,"RIBA-832",10,1.4461999999999999,215,"-",210,210,null,null,null,null,"RIBA-A",14,1.4461999999999999,1150,"-","-","-",535,"-",null,"O33"]
[null,{"$f":"\"CRET-33 \"&VLOOKUP(Sprachen!$B$63,SprachListe,Abfrage,FALSE)","v":"CRET-33 Dorn"},200,260,"E36","N36","CRET-2",195,"U36","Z36",null,null,null,"AY36","BM-122-30","E34","DURA-45L","E34","P34",320,240,170,"DURA-45",170,"CRET Silent-945",null,150,"E35","V35","AB35","AE35","AY35",{"$f":"VLOOKUP(Sprachen!$B$80,SprachListe,Abfrage,FALSE)","v":"Bitte Fugenöffnung wählen"},"ARBO Silent-718-10","E34","RIBA-D","RIBA-862V",null,null,"E34","K34","N34","RIBA-UB2-10",null,null,"E34","L34","AL34","P34","RIBA-HB2-10","E34","O34","S34","RIBA-MU10/1.5, 1.4401","E32","RIBA Silent-917-20",null,"E35","M35","U35",null,null,"J33","V71",null,null,null,"RIBA-860",10,1.4361999999999999,390,325,"-","-",null,null,null,null,"RIBA-A",16,1.4361999999999999,1300,"-","-","-",610,"-",null,"O34"]
[null,{"$f":"\"CRET-P \"&VLOOKUP(Sprachen!$B$64,SprachListe,Abfrage,FALSE)","v":"CRET-P Hülse"},210,280,"E37","N37","CRET-2",220,"U37","Z37",null,null,null,"AY37","BM-122 V25-20","E35","DURA-75","E35","P35",330,250,180,"DURA-45L",110,"CRET Silent-946",null,160,"E36","V36","AB36","AE36","AY36",null,"ARBO Silent-718-12","E35","RIBA-DV","RIBA-864",null,10,"E35","K35","N35","RIBA-UB2-12",null,null,"E35","L35","AL35","P35","RIBA-HB2-12","E35","O35","S35","RIBA-MU12/1.5, 1.4401","E33",null,null,"E36","M36","U36",null,2000,"J34","V72",null,null,null,"RIBA-860",10,1.4461999999999999,390,325,"-","-",null,null,null,null,"RIBA-A",16,1.4461999999999999,1300,"-","-","-",610,"-",null,"O35"]
[null,{"$f":"\"CRET-J \"&VLOOKUP(Sprachen!$B$64,SprachListe,Abfrage,FALSE)","v":"CRET-J Hülse"},220,300,"E38","N38","CRET-2",270,"U38","Z38",null,null,null,"AY38","BM-122 V25-30","E36","DURA-75L","E36","P36",340,260,190,"DURA-45L",120,"CRET Silent-947",null,170,"E37","V37","AB37","AE37","AY37",null,"ARBO Silent-718-18","E36","RIBA-E","RIBA-864V",null,null,"E36","K36","N36","RIBA-UB2-14",null,null,"E36","L36","AL36","P36","RIBA-HB2-14","E36","O36","S36","RIBA-MU14/1.5, 1.4401","E34",null,null,"E37","M37","U37","NELL Silent-L-2",null,"J35","V73",null,null,null,"RIBA-860",12,1.4361999999999999,455,395,"-","-",null,null,null,null,"RIBA-A",20,1.4361999999999999,1610,"-","-","-",765,"-",null,"O36"]
[null,{"$f":"\"CRET-V20 \"&VLOOKUP(Sprachen!$B$64,SprachListe,Abfrage,FALSE)","v":"CRET-V20 Hülse"},240,310,"E39","N39","CRET-2",320,"U39","Z39",null,null,null,"AY39","BM-124-20","E37","DURA-60","E37","P37",350,270,200,"DURA-45L",130,{"$f":"\"APG \"&VLOOKUP(Sprachen!$B$65,SprachListe,Abfrage,FALSE)&\" CRET Silent-945\"","v":"APG zu CRET Silent-945"},null,180,"E38","V38","AB38","AE38","AY38",null,"ARBO Silent-720-08","E37","RIBA-EV","RIBA-865",null,null,"E37","K37","N37","RIBA-UB2-16",null,null,"E37","L37","AL37","P37","RIBA-HB2-16","E37","O37","S37","RIBA-MU16/1.5, 1.4401","E35",null,null,"E38","M38","U38","NELL Silent-L-3",null,"J36","V74",null,null,null,"RIBA-860",12,1.4461999999999999,455,395,"-","-",null,null,null,null,"RIBA-A",20,1.4461999999999999,1610,"-","-","-",765,"-",null,"O37"]
[null,"CRET-122",260,320,"E40","N40","CRET-3",170,"U40","Z40",null,null,null,"AY40","BM-124-30","E38","DURA-60L","E38","P38",360,280,210,"DURA-45L",140,{"$f":"\"APG \"&VLOOKUP(Sprachen!$B$65,SprachListe,Abfrage,FALSE)&\" CRET Silent-946\"","v":"APG zu CRET Silent-946"},null,190,"E39","V39","AB39","AE39","AY39",null,"ARBO Silent-720-10","E38","RIBA-F","RIBA-865V",null,null,"E38","K38","N38","RIBA-UB2-20",null,null,"E38","L38","AL38","P38","RIBA-HB2-20","E38","O38","S38","RIBA-MU20/1.5, 1.4401","E36",null,null,"E39","M39","U39","NELL Silent-L-4",null,"J37","V75",null,null,null,"RIBA-860",14,1.4361999999999999,520,460,"-","-",null,null,null,null,"RIBA-AV",10,1.4361999999999999,960,200,"-","-",380,"-",null,"O38"]
[null,{"$f":"\"CRET-122 \"&VLOOKUP(Sprachen!$B$63,SprachListe,Abfrage,FALSE)","v":"CRET-122 Dorn"},280,340,"E41","N41","CRET-3",195,"U41","Z41",null,null,null,"AY41","BM-124 V28-20","E39","DURA-60F","E39","P39",370,290,220,"DURA-45L",150,{"$f":"\"APG \"&VLOOKUP(Sprachen!$B$65,SprachListe,Abfrage,FALSE)&\" CRET Silent-947\"","v":"APG zu CRET Silent-947"},null,200,"E40","V40","AB40","AE40","AY40",null,"ARBO Silent-720-12","E39","RIBA-FV","RIBA-866",null,null,"E39","K39","N39","RIBA-UB3-10",null,null,"E39","L39","AL39","P39","RIBA-HB3-10","E39","O39","S39","RIBA-MU10/3.0, 1.4401","E37",null,null,"E40","M40","U40","NELL Silent-L-5",null,null,"V76",null,null,null,"RIBA-860",14,1.4461999999999999,520,460,"-","-",null,null,null,null,"RIBA-AV",10,1.4461999999999999,960,200,"-","-",380,"-",null,"O39"]
[null,{"$f":"\"CRET-122 \"&VLOOKUP(Sprachen!$B$64,SprachListe,Abfrage,FALSE)","v":"CRET-122 Hülse"},300,360,"E42","N42","CRET-3",220,"U42","Z42",null,null,null,"AY42","BM-124 V28-30","E40","DURA-60FL","E40","P40",380,300,230,"DURA-45L",160,{"$f":"VLOOKUP(Sprachen!$B$88,SprachListe,Abfrage,FALSE)","v":"Optische Abdeckplatte (zu allen APG)"},null,210,"E41","V41","AB41","AE41","AY41",null,"ARBO Silent-720-16","E40","RIBA-G","RIBA-866V",null,null,"E40","K40","N40","RIBA-UB3-12",null,null,"E40","L40","AL40","P40","RIBA-HB3-12","E40","O40","S40","RIBA-MU12/3.0, 1.4401","E38",null,null,"E41","M41","U41","NELL Silent-L-6",null,"L",null,null,null,null,"RIBA-860",16,1.4361999999999999,600,545,"-","-",null,null,null,null,"RIBA-AV",12,1.4361999999999999,1160,240,"-","-",460,"-",null,"O40"]
[null,"CRET-122 V25",310,380,"E43","N43","CRET-3",270,"U43","Z43",null,null,null,"AY43","BM-128-20","E41","DURA Box-135","E41","P41",390,310,240,"DURA-45L",170,{"$f":"VLOOKUP(Sprachen!$B$89,SprachListe,Abfrage,FALSE)","v":"Brandhemmende Abdeckung R90 (zu allen APG)"},null,220,"E42","V42","AB42","AE42","AY42",null,"ARBO Silent-722-08","E41","RIBA-GV","RIBA-870",null,null,"E41","K41","N41","RIBA-UB3-14",null,null,"E41","L41","AL41","P41","RIBA-HB3-14","E41","O41","S41","RIBA-MU14/3.0, 1.4401","E39",null,null,"E42","M42","U42",null,null,"J41","Länge",null,null,null,"RIBA-860",16,1.4461999999999999,600,545,"-","-",null,null,null,null,"RIBA-AV",12,1.4461999999999999,1160,240,"-","-",460,"-",null,"O41"]
[null,{"$f":"\"CRET-122 V25 \"&VLOOKUP(Sprachen!$B$64,SprachListe,Abfrage,FALSE)","v":"CRET-122 V25 Hülse"},320,400,"E44","N44","CRET-3",320,"U44","Z44",null,null,null,"AY44","BM-128-30","E42","DURA Box-160","E42","P42",400,320,250,"DURA-75",110,{"$f":"VLOOKUP(Sprachen!$B$90,SprachListe,Abfrage,FALSE)","v":"Abdeckung gegen abhebende Kräfte (zu allen APG)"},null,230,"E43","V43","AB43","AE43","AY43",null,"ARBO Silent-722-10","E42","RIBA-H","RIBA-871",null,null,"E42","K42","N42","RIBA-UB3-16",null,null,"E42","L42","AL42","P42","RIBA-HB3-16","E42","O42","S42","RIBA-MU16/3.0, 1.4401","E40",null,null,"E43","M43","U43",null,null,"J42","AB67",null,null,null,"RIBA-860",20,1.4361999999999999,700,650,"-","-",null,null,null,null,"RIBA-AV",14,1.4361999999999999,1350,280,"-","-",535,"-",null,"O42"]
[null,"CRET-124",340,410,"E45","N45","CRET-P",300,"U45","Z45",null,null,null,"AY45","BM-128 V29-20","E43","DURA Box-185","E43","P43",410,330,260,"DURA-75",120,"CRET Silent-960",null,240,"E44","V44","AB44","AE44","AY44",null,"ARBO Silent-722-12","E43","RIBA-HV","RIBA-872",null,null,null,null,null,"RIBA-UB3-20",null,null,"E43","L43","AL43","P43","RIBA-HB3-20","E43","O43","S43","RIBA-MU20/3.0, 1.4401","E41",null,null,"E44","M44","U44","NELL Silent-Z-2",null,"J43","AB68",null,null,null,"RIBA-860",20,1.4461999999999999,700,650,"-","-",null,null,null,null,"RIBA-AV",14,1.4461999999999999,1350,280,"-","-",535,"-"]
[null,{"$f":"\"CRET-124 \"&VLOOKUP(Sprachen!$B$63,SprachListe,Abfrage,FALSE)","v":"CRET-124 Dorn"},360,420,"E46","N46","CRET-P",350,"U46","Z46",null,null,null,"AY46","BM-128 V29-30","E44","DURA Box-210","E44","P44",420,340,270,"DURA-75",130,"CRET Silent-970",null,250,"E45","V45","AB45","AE45","AY45",null,"ARBO Silent-722-16","E44","RIBA-I",null,null,null,null,null,null,"RIBA-UB1S-10",null,null,"E44","L44","AL44","P44","RIBA-HB1S-10","E44","O44","S44","RIBA-NUS16, Nylon","E42",null,null,"E45","M45","U45","NELL Silent-Z-3",null,"J44","AB69",null,null,null,"RIBA-860V",10,1.4361999999999999,510,325,"-","-",null,null,null,null,"RIBA-AV",16,1.4361999999999999,1540,320,"-","-",610,"-"]
[null,{"$f":"\"CRET-124 \"&VLOOKUP(Sprachen!$B$64,SprachListe,Abfrage,FALSE)","v":"CRET-124 Hülse"},380,440,"E47","N47","CRET-P",400,"U47","Z47",null,null,null,"AY47","BM-134-20","E45","DURA Box-235","E45","P45",430,350,280,"DURA-75",140,"CRET Silent-960P",null,260,"E46","V46","AB46","AE46","AY46",null,"ARBO Silent-724-08","E45","RIBA-IV",null,null,null,null,null,null,"RIBA-UB1S-12",null,null,"E45","L45","AL45","P45","RIBA-HB1S-12","E45","O45","S45","RIBA-NUS20, Nylon",null,null,null,"E46","M46","U46","NELL Silent-Z-4",null,"J45","AB70",null,null,null,"RIBA-860V",10,1.4461999999999999,510,325,"-","-",null,null,null,null,"RIBA-AV",16,1.4461999999999999,1540,320,"-","-",610,"-"]
[null,"CRET-124 V28",400,460,"E48","N48","CRET-P",500,"U48","Z48",null,null,null,"AY48","BM-134-30","E46",null,"E46","P46",440,360,290,"DURA-75",150,"CRET Silent-970P",null,270,"E47","V47","AB47","AE47","AY47",null,"ARBO Silent-724-10","E46",null,null,null,null,null,null,null,"RIBA-UB1S-14",null,null,"E46","L46","AL46","P46","RIBA-HB1S-14","E46","O46","S46","RIBA-NH16, Nylon",null,null,null,"E47","M47","U47","NELL Silent-Z-5",null,"J46","AB71",null,null,null,"RIBA-860V",12,1.4361999999999999,615,395,"-","-",null,null,null,null,"RIBA-AV",20,1.4361999999999999,1930,400,"-","-",765,"-"]
[null,{"$f":"\"CRET-124 V28 \"&VLOOKUP(Sprachen!$B$64,SprachListe,Abfrage,FALSE)","v":"CRET-124 V28 Hülse"},410,480,"E49","N49","CRET-P",600,"U49","Z49",null,null,null,"AY49","BM-134 V33-20","E47",null,"E47","P47",450,370,300,"DURA-75",160,{"$f":"\"CRET Silent-960 \"&VLOOKUP(Sprachen!B63,SprachListe,Abfrage,FALSE)","v":"CRET Silent-960 Dorn"},null,280,"E48","V48","AB48","AE48","AY48",null,"ARBO Silent-724-12","E47",null,null,null,null,null,null,null,"RIBA-UB1S-16",null,null,"E47","L47","AL47","P47","RIBA-HB1S-16","E47","O47","S47","RIBA-NH20, Nylon",null,null,null,"E48","M48","U48","NELL Silent-Z-6",null,"J47","AB72",null,null,null,"RIBA-860V",12,1.4461999999999999,615,395,"-","-",null,null,null,null,"RIBA-AV",20,1.4461999999999999,1930,400,"-","-",765,"-"]
[null,"CRET-128",420,500,"E50","N50","CRET-J",300,"U50","Z50",null,null,null,"AY50","BM-134 V33-30","E48",null,"E48","P48",460,380,310,"DURA-75",170,{"$f":"\"CRET Silent-970 \"&VLOOKUP(Sprachen!B63,SprachListe,Abfrage,FALSE)","v":"CRET Silent-970 Dorn"},null,290,"E49","V49","AB49","AE49","AY49",null,"ARBO Silent-724-16","E48",null,null,null,null,null,null,null,"RIBA-UB1S-20",null,null,"E48","L48","AL48","P48","RIBA-HB1S-20","E48","O48","S48","RIBA-HMU10, 1.4401",null,null,null,"E49","M49","U49",null,null,"J48","AB73",null,null,null,"RIBA-860V",14,1.4361999999999999,720,460,"-","-",null,null,null,null,"RIBA-B",10,1.4361999999999999,840,"-","-","-",380,"-"]
[null,{"$f":"\"CRET-128 \"&VLOOKUP(Sprachen!$B$63,SprachListe,Abfrage,FALSE)","v":"CRET-128 Dorn"},440,510,"E51","N51","CRET-J",350,"U51","Z51",null,null,null,"AY51","BM-140-20","E49",null,"E49","P49",470,390,320,"DURA-75L",110,"CRET Silent-HK",null,300,"E50","V50","AB50","AE50","AY50",null,"ARBO Silent-725-08","E49",null,null,null,null,null,null,null,"RIBA-UB2S-10",null,null,"E49","L49","AL49","P49","RIBA-HB2S-10","E49","O49","S49","RIBA-HMU12, 1.4401",null,null,null,"E50","M50","U50",null,null,"J49","AB74",null,null,null,"RIBA-860V",14,1.4461999999999999,720,460,"-","-",null,null,null,null,"RIBA-B",10,1.4461999999999999,840,"-","-","-",380,"-"]
[null,{"$f":"\"CRET-128 \"&VLOOKUP(Sprachen!$B$64,SprachListe,Abfrage,FALSE)","v":"CRET-128 Hülse"},460,520,"E52","N52","CRET-J",400,"U52","Z52",null,null,null,"AY52","BM-140-30","E50",null,"E50","P50",480,400,330,"DURA-75L",120,"CRET Silent-HLP",null,null,"E51","V51","AB51","AE51","AY51",null,"ARBO Silent-725-10","E50",null,null,null,null,null,null,null,"RIBA-UB2S-12",null,null,"E50","L50","AL50","P50","RIBA-HB2S-12","E50","O50","S50","RIBA-HMU14, 1.4401",null,null,null,"E51","M51","U51","NELL Silent-Isolmat-125",null,"J50","AB75",null,null,null,"RIBA-860V",16,1.4361999999999999,840,545,"-","-",null,null,null,null,"RIBA-B",12,1.4361999999999999,1000,"-","-","-",460,"-"]
[null,"CRET-128 V29",480,null,"E53","N53","CRET-J",500,"U53","Z53",null,null,null,"AY53","BM-140 V32-20","E51",null,"E51","P51",490,410,340,"DURA-75L",130,"CRET Silent-BHP",null,null,"E52","V52","AB52","AE52","AY52",null,"ARBO Silent-725-12","E51",null,null,null,null,null,null,null,"RIBA-UB2S-14",null,null,"E51","L51","AL51","P51","RIBA-HB2S-14","E51","O51","S51","RIBA-HMU16, 1.4401",null,null,null,"E52","M52","U52","NELL Silent-Isolmat-150",null,null,"AB76",null,null,null,"RIBA-860V",16,1.4461999999999999,840,545,"-","-",null,null,null,null,"RIBA-B",12,1.4461999999999999,1000,"-","-","-",460,"-"]
[null,{"$f":"\"CRET-128 V29 \"&VLOOKUP(Sprachen!$B$64,SprachListe,Abfrage,FALSE)","v":"CRET-128 V29 Hülse"},500,null,"E54","N54","CRET-J",600,"U54","Z54",null,null,null,"AY54","BM-140 V32-30","E52",null,"E52","P52",500,420,350,"DURA-75L",140,"CRET Silent-BD",null,null,"E53","V53","AB53","AE53","AY53",null,"ARBO Silent-725-16","E52",null,null,null,null,null,null,null,"RIBA-UB2S-16",null,null,"E52","L52","AL52","P52","RIBA-HB2S-16","E52","O52","S52","RIBA-HMU20, 1.4401",null,null,null,"E53","M53","U53","NELL Silent-Isolmat-175",null,"F",null,null,null,null,"RIBA-860V",20,1.4361999999999999,1020,650,"-","-",null,null,null,null,"RIBA-B",14,1.4361999999999999,1150,"-","-","-",535,"-"]
[null,"CRET-134",510,null,"E55","N55","CRET-V",300,"U55","Z55",null,null,null,"AY55","BM-145-20","E53",null,"E53","P53",510,430,360,"DURA-75L",150,{"$f":"\"BST \"&VLOOKUP(Sprachen!B65,SprachListe,Abfrage,FALSE)&\" CRET Silent-960,970\"","v":"BST zu CRET Silent-960,970"},null,null,"E54","V54","AB54","AE54","AY54",null,"ARBO Silent-726-08","E53",null,null,null,null,null,null,null,"RIBA-UB2S-20",null,null,"E53","L53","AL53","P53","RIBA-HB2S-20","E53","O53","S53","RIBA-AP10, 1.4404",null,null,null,null,null,null,"NELL Silent-Isolmat-200",null,"J54",null,null,null,null,"RIBA-860V",20,1.4461999999999999,1020,650,"-","-",null,null,null,null,"RIBA-B",14,1.4461999999999999,1150,"-","-","-",535,"-"]
[null,{"$f":"\"CRET-134 \"&VLOOKUP(Sprachen!$B$63,SprachListe,Abfrage,FALSE)","v":"CRET-134 Dorn"},520,null,"E56","N56","CRET-V",350,"U56","Z56",null,null,null,"AY56","BM-145-30","E54",null,"E54","P54",520,440,370,"DURA-75L",160,"CRET Silent-984",null,null,"E55","V55","AB55","AE55","AY55",null,"ARBO Silent-726-10","E54",null,null,null,null,null,null,null,"RIBA-UB3S-10",null,null,"E54","L54","AL54","P54","RIBA-HB3S-10","E54","O54","S54","RIBA-AP12, 1.4404",null,null,null,null,null,null,null,null,"J55",null,null,null,null,"RIBA-862",10,1.4361999999999999,390,150,210,210,null,null,null,null,"RIBA-B",16,1.4361999999999999,1300,"-","-","-",610,"-"]
[null,{"$f":"\"CRET-134 \"&VLOOKUP(Sprachen!$B$64,SprachListe,Abfrage,FALSE)","v":"CRET-134 Hülse"},null,null,null,null,"CRET-V",400,null,null,null,null,null,null,"BM-145 V42-20","E55",null,"E55","P55",530,450,380,"DURA-75L",170,"CRET Silent-985",null,null,null,null,null,null,null,null,"ARBO Silent-726-12","E55",null,null,null,null,null,null,null,"RIBA-UB3S-12",null,null,"E55","L55","AL55","P55","RIBA-HB3S-12","E55","O55","S55","RIBA-AP14, 1.4404",null,null,null,null,null,null,null,null,"J56",null,null,null,null,"RIBA-862",10,1.4461999999999999,390,150,210,210,null,null,null,null,"RIBA-B",16,1.4461999999999999,1300,"-","-","-",610,"-"]
[null,"CRET-134 V33",null,null,null,null,"CRET-V",500,null,null,null,null,null,null,"BM-145 V42-30","E56",null,"E56","P56",540,460,390,"DURA-60",110,"CRET Silent-986",null,null,null,null,null,null,null,null,"ARBO Silent-726-16","E56",null,null,null,null,null,null,null,"RIBA-UB3S-14",null,null,"E56","L56","AL56","P56","RIBA-HB3S-14","E56","O56","S56","RIBA-AP16, 1.4404",null,null,null,null,null,null,null,null,"J57",null,null,null,null,"RIBA-862",12,1.4361999999999999,455,190,250,250,null,null,null,null,"RIBA-B",20,1.4361999999999999,1610,"-","-","-",765,"-"]
[null,{"$f":"\"CRET-134 V33 \"&VLOOKUP(Sprachen!$B$64,SprachListe,Abfrage,FALSE)","v":"CRET-134 V33 Hülse"},null,null,null,null,"CRET-V",600,null,null,null,null,null,null,"BM-150-20","E57",null,"E57","P57",550,470,400,"DURA-60",120,"CRET Silent-992",null,null,null,null,null,null,null,null,"ARBO Silent-728-08","E57",null,null,null,null,null,null,null,"RIBA-UB3S-16",null,null,"E57","L57","AL57","P57","RIBA-HB3S-16","E57","O57","S57","RIBA-AP20, 1.4404",null,null,null,null,null,null,null,null,"J58",null,null,null,null,"RIBA-862",12,1.4461999999999999,455,190,250,250,null,null,null,null,"RIBA-B",20,1.4461999999999999,1610,"-","-","-",765,"-"]
[null,"CRET-140",null,null,null,null,null,null,null,null,null,null,null,null,"BM-150-30","E58",null,"E58","P58",560,480,410,"DURA-60",130,"CRET Silent-993",null,null,null,null,null,null,null,null,"ARBO Silent-728-10","E58",null,null,null,null,null,null,null,"RIBA-UB3S-20",null,null,"E58","L58","AL58","P58","RIBA-HB3S-20","E58","O58","S58","RIBA-GS12, 1.4362",null,null,null,null,null,null,null,null,"J59",null,null,null,null,"RIBA-862",14,1.4361999999999999,520,225,290,290,null,null,null,null,"RIBA-BV",10,1.4361999999999999,960,200,"-","-",380,"-"]
[null,{"$f":"\"CRET-140 \"&VLOOKUP(Sprachen!$B$63,SprachListe,Abfrage,FALSE)","v":"CRET-140 Dorn"},null,null,null,null,null,null,null,null,null,null,null,null,"BM-150 V42-20","E59",null,"E59","P59",570,490,420,"DURA-60",140,"CRET Silent-994",null,null,null,null,null,null,null,null,"ARBO Silent-728-12","E59",null,null,null,null,null,null,null,null,null,null,"E59","L59","AL59","P59",null,"E59","O59","S59","RIBA-GS14, 1.4362",null,null,null,null,null,null,null,null,"J60",null,null,null,null,"RIBA-862",14,1.4461999999999999,520,225,290,290,null,null,null,null,"RIBA-BV",10,1.4461999999999999,960,200,"-","-",380,"-"]
[null,{"$f":"\"CRET-140 \"&VLOOKUP(Sprachen!$B$64,SprachListe,Abfrage,FALSE)","v":"CRET-140 Hülse"},null,null,null,null,null,null,null,null,null,null,null,null,"BM-150 V42-30","E60",null,"E60","P60",580,500,430,"DURA-60",150,"CRET Silent-992P",null,null,null,null,null,null,null,null,"ARBO Silent-728-16","E60",null,null,null,null,null,null,null,null,null,null,"E60","L60","AL60","P60",null,null,null,null,"RIBA-GS16, 1.4362",null,null,null,null,null,null,null,null,"J61",null,null,null,null,"RIBA-862",16,1.4361999999999999,600,270,340,340,null,null,null,null,"RIBA-BV",12,1.4361999999999999,1160,240,"-","-",460,"-"]
[null,"CRET-140 V32",null,null,null,null,null,null,null,null,null,null,null,null,"BM-155-20","E61",null,"E61","P61",590,510,440,"DURA-60",160,"CRET Silent-993P",null,null,null,null,null,null,null,null,"ARBO Silent-730-08","E61",null,null,null,null,null,null,null,null,null,null,null,null,null,null,null,null,null,null,"RIBA-GS20, 1.4362",null,null,null,null,null,null,null,null,"J62",null,null,null,null,"RIBA-862",16,1.4461999999999999,600,270,340,340,null,null,null,null,"RIBA-BV",12,1.4461999999999999,1160,240,"-","-",460,"-"]
[null,{"$f":"\"CRET-140 V32 \"&VLOOKUP(Sprachen!$B$64,SprachListe,Abfrage,FALSE)","v":"CRET-140 V32 Hülse"},null,null,null,null,null,null,null,null,null,null,null,null,"BM-155-30","E62",null,null,null,600,520,450,"DURA-60",170,"CRET Silent-994P",null,null,null,null,null,null,null,null,"ARBO Silent-730-10","E62",null,null,null,null,null,null,null,null,null,null,null,null,null,null,null,null,null,null,"RIBA-GS12, 1.4462",null,null,null,null,null,null,null,null,"J63",null,null,null,null,"RIBA-862",20,1.4361999999999999,700,350,390,390,null,null,null,null,"RIBA-BV",14,1.4361999999999999,1350,280,"-","-",535,"-"]
[null,"CRET-145",null,null,null,null,null,null,null,null,null,null,null,null,"BM-155 V42-20","E63",null,null,null,610,530,460,"DURA-60",180,"CRET Silent-992-HLP",null,null,null,null,null,null,null,null,"ARBO Silent-730-12","E63",null,null,null,null,null,null,null,null,null,null,null,null,null,null,null,null,null,null,"RIBA-GS14, 1.4462",null,null,null,null,null,null,null,null,null,null,null,null,null,"RIBA-862",20,1.4461999999999999,700,350,390,390,null,null,null,null,"RIBA-BV",14,1.4461999999999999,1350,280,"-","-",535,"-"]
[null,{"$f":"\"CRET-145 \"&VLOOKUP(Sprachen!$B$63,SprachListe,Abfrage,FALSE)","v":"CRET-145 Dorn"},null,null,null,null,null,null,null,null,null,null,null,null,"BM-155 V42-30",null,null,null,null,620,540,470,"DURA-60",190,"CRET Silent-993-HLP",null,null,null,null,null,null,null,null,"ARBO Silent-730-16","E64",null,null,null,null,null,null,null,null,null,null,null,null,null,null,null,null,null,null,"RIBA-GS16, 1.4462",null,null,null,"E60","M60","U60",null,null,"Isol",null,null,null,null,"RIBA-862V",10,1.4361999999999999,510,150,210,210,null,null,null,null,"RIBA-BV",16,1.4361999999999999,1540,320,"-","-",610,"-"]
[null,{"$f":"\"CRET-145 \"&VLOOKUP(Sprachen!$B$64,SprachListe,Abfrage,FALSE)","v":"CRET-145 Hülse"},null,null,null,null,null,null,null,null,null,null,null,null,"BM-500-20",null,null,null,null,630,550,480,"DURA-60",200,"CRET Silent-994-HLP",null,null,null,null,null,null,null,null,null,null,null,null,null,null,null,null,null,null,null,null,null,null,null,null,null,null,null,null,"RIBA-GS20, 1.4462",null,null,null,"E61","M61","U61",null,null,"J80",null,null,null,null,"RIBA-862V",10,1.4461999999999999,510,150,210,210,null,null,null,null,"RIBA-BV",16,1.4461999999999999,1540,320,"-","-",610,"-"]
[null,"CRET-145 V42",null,null,null,null,null,null,null,null,null,null,null,null,"BM-500-30",null,null,null,null,640,560,490,"DURA-60",210,null,null,null,null,null,null,null,null,null,null,null,null,null,null,null,null,null,null,null,null,null,null,null,null,null,null,null,null,null,"RIBA-US10, 1.4401",null,null,null,"E62","M62","U62",null,null,"J81",null,null,null,null,"RIBA-862V",12,1.4361999999999999,615,190,250,250,null,null,null,null,"RIBA-BV",20,1.4361999999999999,1930,400,"-","-",765,"-"]
[null,{"$f":"\"CRET-145 V42 \"&VLOOKUP(Sprachen!$B$64,SprachListe,Abfrage,FALSE)","v":"CRET-145 V42 Hülse"},null,null,null,null,null,null,null,null,null,null,null,null,"BM-500 V20-V40-20",null,null,null,null,650,570,500,"DURA-60",220,null,null,null,null,null,null,null,null,null,null,null,null,null,null,null,null,null,null,null,null,null,null,null,null,null,null,null,null,null,"RIBA-US12, 1.4401",null,null,null,"E63","M63","U63",null,null,"J82",null,null,null,null,"RIBA-862V",12,1.4461999999999999,615,190,250,250,null,null,null,null,"RIBA-BV",20,1.4461999999999999,1930,400,"-","-",765,"-"]
[null,"CRET-150",null,null,null,null,null,null,null,null,null,null,null,null,"BM-500 V20-V40-30",null,null,null,null,660,580,510,"DURA-60",230,null,null,null,null,null,null,null,null,null,null,null,null,null,null,null,null,null,null,null,null,null,null,null,null,null,null,null,null,null,"RIBA-US14, 1.4401",null,null,null,"E64","M64","U64",null,null,"J83",null,null,null,null,"RIBA-862V",14,1.4361999999999999,720,225,290,290,null,null,null,null,"RIBA-C",10,1.4361999999999999,350,"-",290,"-","-",135]
[null,{"$f":"\"CRET-150 \"&VLOOKUP(Sprachen!$B$63,SprachListe,Abfrage,FALSE)","v":"CRET-150 Dorn"},null,null,null,null,null,null,null,null,null,null,null,null,"BM-960-970-20",null,null,null,null,670,590,520,"DURA-60",240,null,null,null,null,null,null,null,null,null,null,null,null,null,null,null,null,null,null,null,null,null,null,null,null,null,null,null,null,null,"RIBA-US16, 1.4401",null,null,null,"E65","M65","U65",null,null,"J84",null,null,null,null,"RIBA-862V",14,1.4461999999999999,720,225,290,290,null,null,null,null,"RIBA-C",10,1.4461999999999999,350,"-",290,"-","-",135]
[null,{"$f":"\"CRET-150 \"&VLOOKUP(Sprachen!$B$64,SprachListe,Abfrage,FALSE)","v":"CRET-150 Hülse"},null,null,null,null,null,null,null,null,null,null,null,null,"BM-960-970-30",null,null,null,null,680,600,530,"DURA-60",250,null,null,null,null,null,null,null,null,null,null,null,null,null,null,null,null,null,null,null,null,null,null,null,null,null,null,null,null,null,"RIBA-US20, 1.4401",null,null,null,null,null,null,null,null,"J85",null,null,null,null,"RIBA-862V",16,1.4361999999999999,840,270,340,340,null,null,null,null,"RIBA-C",12,1.4361999999999999,430,"-",335,"-","-",175]
[null,"CRET-150 V42",null,null,null,null,null,null,null,null,null,null,null,null,"BM-992-20",null,null,null,null,690,610,540,"DURA-60L",110,null,null,null,null,null,null,null,null,null,null,null,null,null,null,null,null,null,null,null,null,null,null,null,null,null,null,null,null,null,"RIBA-USG10, 1.4401",null,null,null,null,null,null,null,null,"J86",null,null,null,null,"RIBA-862V",16,1.4461999999999999,840,270,340,340,null,null,null,null,"RIBA-C",12,1.4461999999999999,430,"-",335,"-","-",175]
[null,{"$f":"\"CRET-150 V42 \"&VLOOKUP(Sprachen!$B$64,SprachListe,Abfrage,FALSE)","v":"CRET-150 V42 Hülse"},null,null,null,null,null,null,null,null,null,null,null,null,"BM-992-30",null,null,null,null,700,620,550,"DURA-60L",120,null,null,null,null,null,null,null,null,null,null,null,null,null,null,null,null,null,null,null,null,null,null,null,null,null,null,null,null,null,"RIBA-USG12, 1.4401",null,null,null,null,null,null,null,null,"J87",null,null,null,null,"RIBA-862V",20,1.4361999999999999,1020,350,390,390,null,null,null,null,"RIBA-C",14,1.4361999999999999,510,"-",385,"-","-",215]
[null,"CRET-155",null,null,null,null,null,null,null,null,null,null,null,null,"BM-993-20",null,null,null,null,710,630,560,"DURA-60L",130,null,null,null,null,null,null,null,null,null,null,null,null,null,null,null,null,null,null,null,null,null,null,null,null,null,null,null,null,null,"RIBA-USG14, 1.4401",null,null,null,null,null,null,null,null,"J88",null,null,null,null,"RIBA-862V",20,1.4461999999999999,1020,350,390,390,null,null,null,null,"RIBA-C",14,1.4461999999999999,510,"-",385,"-","-",215]
[null,{"$f":"\"CRET-155 \"&VLOOKUP(Sprachen!$B$63,SprachListe,Abfrage,FALSE)","v":"CRET-155 Dorn"},null,null,null,null,null,null,null,null,null,null,null,null,"BM-993-30",null,null,null,null,720,640,570,"DURA-60L",140,null,null,null,null,null,null,null,null,null,null,null,null,null,null,null,null,null,null,null,null,null,null,null,null,null,null,null,null,null,"RIBA-USG16, 1.4401",null,null,null,null,null,null,null,null,"J89",null,null,null,null,"RIBA-864",10,1.4361999999999999,215,325,210,210,null,null,null,null,"RIBA-C",16,1.4361999999999999,590,"-",435,"-","-",255]
[null,{"$f":"\"CRET-155 \"&VLOOKUP(Sprachen!$B$64,SprachListe,Abfrage,FALSE)","v":"CRET-155 Hülse"},null,null,null,null,null,null,null,null,null,null,null,null,"BM-994-20",null,null,null,null,730,650,580,"DURA-60L",150,null,null,null,null,null,null,null,null,null,null,null,null,null,null,null,null,null,null,null,null,null,null,null,null,null,null,null,null,null,"RIBA-USG20, 1.4401",null,null,null,null,null,null,null,null,null,null,null,null,null,"RIBA-864",10,1.4461999999999999,215,325,210,210,null,null,null,null,"RIBA-C",16,1.4461999999999999,590,"-",435,"-","-",255]
[null,"CRET-155 V42",null,null,null,null,null,null,null,null,null,null,null,null,"BM-994-30",null,null,null,null,740,660,590,"DURA-60L",160,null,null,null,null,null,null,null,null,null,null,null,null,null,null,null,null,null,null,null,null,null,null,null,null,null,null,null,null,null,null,null,null,null,null,null,null,null,null,null,null,null,null,null,"RIBA-864",12,1.4361999999999999,250,395,250,250,null,null,null,null,"RIBA-C",20,1.4361999999999999,760,"-",525,"-","-",340]
[null,{"$f":"\"CRET-155 V42 \"&VLOOKUP(Sprachen!$B$64,SprachListe,Abfrage,FALSE)","v":"CRET-155 V42 Hülse"},null,null,null,null,null,null,null,null,null,null,null,null,"BM-945-946-20",null,null,null,null,750,670,600,"DURA-60L",170,null,null,null,null,null,null,null,null,null,null,null,null,null,null,null,null,null,null,null,null,null,null,null,null,null,null,null,null,null,null,null,null,null,null,null,null,null,null,null,null,null,null,null,"RIBA-864",12,1.4461999999999999,250,395,250,250,null,null,null,null,"RIBA-C",20,1.4461999999999999,760,"-",525,"-","-",340]
[null,"CRET-504",null,null,null,null,null,null,null,null,null,null,null,null,"BM-945-946-30",null,null,null,null,760,680,610,"DURA-60L",180,null,null,null,null,null,null,null,null,null,null,null,null,null,null,null,null,null,null,null,null,null,null,null,null,null,null,null,null,null,null,null,null,null,null,null,null,null,null,null,null,null,null,null,"RIBA-864",14,1.4361999999999999,285,460,290,290,null,null,null,null,"RIBA-CV",10,1.4361999999999999,470,200,290,"-","-",135]
[null,{"$f":"\"CRET-504 \"&VLOOKUP(Sprachen!$B$63,SprachListe,Abfrage,FALSE)","v":"CRET-504 Dorn"},null,null,null,null,null,null,null,null,null,null,null,null,"BM-947-20",null,null,null,null,770,690,620,"DURA-60L",190,null,null,null,null,null,null,null,null,null,null,null,null,null,null,null,null,null,null,null,null,null,null,null,null,null,null,null,null,null,null,null,null,null,null,null,null,null,null,null,null,null,null,null,"RIBA-864",14,1.4461999999999999,285,460,290,290,null,null,null,null,"RIBA-CV",10,1.4461999999999999,470,200,290,"-","-",135]
[null,{"$f":"\"CRET-504 \"&VLOOKUP(Sprachen!$B$64,SprachListe,Abfrage,FALSE)","v":"CRET-504 Hülse"},null,null,null,null,null,null,null,null,null,null,null,null,"BM-947-30",null,null,null,null,780,700,630,"DURA-60L",200,null,null,null,null,null,null,null,null,null,null,null,null,null,null,null,null,null,null,null,null,null,null,null,null,null,null,null,null,null,null,null,null,null,null,null,null,null,null,null,null,null,null,null,"RIBA-864",16,1.4361999999999999,325,545,340,340,null,null,null,null,"RIBA-CV",12,1.4361999999999999,590,240,335,"-","-",175]
[null,"CRET-504 V20",null,null,null,null,null,null,null,null,null,null,null,null,null,null,null,null,null,790,710,640,"DURA-60L",210,null,null,null,null,null,null,null,null,null,null,null,null,null,null,null,null,null,null,null,null,null,null,null,null,null,null,null,null,null,null,null,null,null,null,null,null,null,null,null,null,null,null,null,"RIBA-864",16,1.4461999999999999,325,545,340,340,null,null,null,null,"RIBA-CV",12,1.4461999999999999,590,240,335,"-","-",175]
[null,{"$f":"\"CRET-504 V20 \"&VLOOKUP(Sprachen!$B$64,SprachListe,Abfrage,FALSE)","v":"CRET-504 V20 Hülse"},null,null,null,null,null,null,null,null,null,null,null,null,null,null,null,null,null,800,720,650,"DURA-60L",220,null,null,null,null,null,null,null,null,null,null,null,null,null,null,null,null,null,null,null,null,null,null,null,null,null,null,null,null,null,null,null,null,null,null,null,null,null,null,null,null,null,null,null,"RIBA-864",20,1.4361999999999999,400,650,390,390,null,null,null,null,"RIBA-CV",14,1.4361999999999999,710,280,385,"-","-",215]
[null,"CRET-504 V40",null,null,null,null,null,null,null,null,null,null,null,null,null,null,null,null,null,810,730,660,"DURA-60L",230,null,null,null,null,null,null,null,null,null,null,null,null,null,null,null,null,null,null,null,null,null,null,null,null,null,null,null,null,null,null,null,null,null,null,null,null,null,null,null,null,null,null,null,"RIBA-864",20,1.4461999999999999,400,650,390,390,null,null,null,null,"RIBA-CV",14,1.4461999999999999,710,280,385,"-","-",215]
[null,{"$f":"\"CRET-504 V40 \"&VLOOKUP(Sprachen!$B$64,SprachListe,Abfrage,FALSE)","v":"CRET-504 V40 Hülse"},null,null,null,null,null,null,null,null,null,null,null,null,null,null,null,null,null,820,740,670,"DURA-60L",240,null,null,null,null,null,null,null,null,null,null,null,null,null,null,null,null,null,null,null,null,null,null,null,null,null,null,null,null,null,null,null,null,null,null,null,null,null,null,null,null,null,null,null,"RIBA-864V",10,1.4361999999999999,335,325,210,210,null,null,null,null,"RIBA-CV",16,1.4361999999999999,830,320,435,"-","-",255]
[null,"CRET-504 A",null,null,null,null,null,null,null,null,null,null,null,null,null,null,null,null,null,830,750,680,"DURA-60L",250,null,null,null,null,null,null,null,null,null,null,null,null,null,null,null,null,null,null,null,null,null,null,null,null,null,null,null,null,null,null,null,null,null,null,null,null,null,null,null,null,null,null,null,"RIBA-864V",10,1.4461999999999999,335,325,210,210,null,null,null,null,"RIBA-CV",16,1.4461999999999999,830,320,435,"-","-",255]
[null,{"$f":"\"CRET-504 A \"&VLOOKUP(Sprachen!$B$63,SprachListe,Abfrage,FALSE)","v":"CRET-504 A Dorn"},null,null,null,null,null,null,null,null,null,null,null,null,null,null,null,null,null,840,760,690,"DURA-60F",110,null,null,null,null,null,null,null,null,null,null,null,null,null,null,null,null,null,null,null,null,null,null,null,null,null,null,null,null,null,null,null,null,null,null,null,null,null,null,null,null,null,null,null,"RIBA-864V",12,1.4361999999999999,410,395,250,250,null,null,null,null,"RIBA-CV",20,1.4361999999999999,1080,400,525,"-","-",340]
[null,{"$f":"\"CRET-504 A \"&VLOOKUP(Sprachen!$B$64,SprachListe,Abfrage,FALSE)","v":"CRET-504 A Hülse"},null,null,null,null,null,null,null,null,null,null,null,null,null,null,null,null,null,850,770,700,"DURA-60F",120,null,null,null,null,null,null,null,null,null,null,null,null,null,null,null,null,null,null,null,null,null,null,null,null,null,null,null,null,null,null,null,null,null,null,null,null,null,null,null,null,null,null,null,"RIBA-864V",12,1.4461999999999999,410,395,250,250,null,null,null,null,"RIBA-CV",20,1.4461999999999999,1080,400,525,"-","-",340]
[null,"CRET-504 A V20",null,null,null,null,null,null,null,null,null,null,null,null,null,null,null,null,null,860,780,710,"DURA-60F",130,null,null,null,null,null,null,null,null,null,null,null,null,null,null,null,null,null,null,null,null,null,null,null,null,null,null,null,null,null,null,null,null,null,null,null,null,null,null,null,null,null,null,null,"RIBA-864V",14,1.4361999999999999,485,460,290,290,null,null,null,null,"RIBA-D",10,1.4361999999999999,350,"-",290,"-","-",135]
[null,{"$f":"\"CRET-504 A V20 \"&VLOOKUP(Sprachen!$B$64,SprachListe,Abfrage,FALSE)","v":"CRET-504 A V20 Hülse"},null,null,null,null,null,null,null,null,null,null,null,null,null,null,null,null,null,870,790,720,"DURA-60F",140,null,null,null,null,null,null,null,null,null,null,null,null,null,null,null,null,null,null,null,null,null,null,null,null,null,null,null,null,null,null,null,null,null,null,null,null,null,null,null,null,null,null,null,"RIBA-864V",14,1.4461999999999999,485,460,290,290,null,null,null,null,"RIBA-D",10,1.4461999999999999,350,"-",290,"-","-",135]
[null,"CRET-504 A V40",null,null,null,null,null,null,null,null,null,null,null,null,null,null,null,null,null,880,800,730,"DURA-60F",150,null,null,null,null,null,null,null,null,null,null,null,null,null,null,null,null,null,null,null,null,null,null,null,null,null,null,null,null,null,null,null,null,null,null,null,null,null,null,null,null,null,null,null,"RIBA-864V",16,1.4361999999999999,565,545,340,340,null,null,null,null,"RIBA-D",12,1.4361999999999999,430,"-",335,"-","-",175]
[null,{"$f":"\"CRET-504 A V40 \"&VLOOKUP(Sprachen!$B$64,SprachListe,Abfrage,FALSE)","v":"CRET-504 A V40 Hülse"},null,null,null,null,null,null,null,null,null,null,null,null,null,null,null,null,null,890,810,740,"DURA-60F",160,null,null,null,null,null,null,null,null,null,null,null,null,null,null,null,null,null,null,null,null,null,null,null,null,null,null,null,null,null,null,null,null,null,null,null,null,null,null,null,null,null,null,null,"RIBA-864V",16,1.4461999999999999,565,545,340,340,null,null,null,null,"RIBA-D",12,1.4461999999999999,430,"-",335,"-","-",175]
[null,"CRET-504 B",null,null,null,null,null,null,null,null,null,null,null,null,null,null,null,null,null,900,820,750,"DURA-60F",170,null,null,null,null,null,null,null,null,null,null,null,null,null,null,null,null,null,null,null,null,null,null,null,null,null,null,null,null,null,null,null,null,null,null,null,null,null,null,null,null,null,null,null,"RIBA-864V",20,1.4361999999999999,720,650,390,390,null,null,null,null,"RIBA-D",14,1.4361999999999999,510,"-",385,"-","-",215]
[null,{"$f":"\"CRET-504 B \"&VLOOKUP(Sprachen!$B$63,SprachListe,Abfrage,FALSE)","v":"CRET-504 B Dorn"},null,null,null,null,null,null,null,null,null,null,null,null,null,null,null,null,null,910,830,760,"DURA-60F",180,null,null,null,null,null,null,null,null,null,null,null,null,null,null,null,null,null,null,null,null,null,null,null,null,null,null,null,null,null,null,null,null,null,null,null,null,null,null,null,null,null,null,null,"RIBA-864V",20,1.4461999999999999,720,650,390,390,null,null,null,null,"RIBA-D",14,1.4461999999999999,510,"-",385,"-","-",215]
[null,{"$f":"\"CRET-504 B \"&VLOOKUP(Sprachen!$B$64,SprachListe,Abfrage,FALSE)","v":"CRET-504 B Hülse"},null,null,null,null,null,null,null,null,null,null,null,null,null,null,null,null,null,920,840,770,"DURA-60F",190,null,null,null,null,null,null,null,null,null,null,null,null,null,null,null,null,null,null,null,null,null,null,null,null,null,null,null,null,null,null,null,null,null,null,null,null,null,null,null,null,null,null,null,"RIBA-865",10,1.4361999999999999,215,150,210,210,null,null,null,null,"RIBA-D",16,1.4361999999999999,590,"-",435,"-","-",255]
[null,"CRET-504 B V20",null,null,null,null,null,null,null,null,null,null,null,null,null,null,null,null,null,930,850,780,"DURA-60F",200,null,null,null,null,null,null,null,null,null,null,null,null,null,null,null,null,null,null,null,null,null,null,null,null,null,null,null,null,null,null,null,null,null,null,null,null,null,null,null,null,null,null,null,"RIBA-865",10,1.4461999999999999,215,150,210,210,null,null,null,null,"RIBA-D",16,1.4461999999999999,590,"-",435,"-","-",255]
[null,{"$f":"\"CRET-504 B V20 \"&VLOOKUP(Sprachen!$B$64,SprachListe,Abfrage,FALSE)","v":"CRET-504 B V20 Hülse"},null,null,null,null,null,null,null,null,null,null,null,null,null,null,null,null,null,940,860,790,"DURA-60F",210,null,null,null,null,null,null,null,null,null,null,null,null,null,null,null,null,null,null,null,null,null,null,null,null,null,null,null,null,null,null,null,null,null,null,null,null,null,null,null,null,null,null,null,"RIBA-865",12,1.4361999999999999,250,190,250,250,null,null,null,null,"RIBA-D",20,1.4361999999999999,760,"-",525,"-","-",340]
[null,"CRET-504 B V40",null,null,null,null,null,null,null,null,null,null,null,null,null,null,null,null,null,950,870,800,"DURA-60F",220,null,null,null,null,null,null,null,null,null,null,null,null,null,null,null,null,null,null,null,null,null,null,null,null,null,null,null,null,null,null,null,null,null,null,null,null,null,null,null,null,null,null,null,"RIBA-865",12,1.4461999999999999,250,190,250,250,null,null,null,null,"RIBA-D",20,1.4461999999999999,760,"-",525,"-","-",340]
[null,{"$f":"\"CRET-504 B V40 \"&VLOOKUP(Sprachen!$B$64,SprachListe,Abfrage,FALSE)","v":"CRET-504 B V40 Hülse"},null,null,null,null,null,null,null,null,null,null,null,null,null,null,null,null,null,960,880,810,"DURA-60F",230,null,null,null,null,null,null,null,null,null,null,null,null,null,null,null,null,null,null,null,null,null,null,null,null,null,null,null,null,null,null,null,null,null,null,null,null,null,null,null,null,null,null,null,"RIBA-865",14,1.4361999999999999,285,225,290,290,null,null,null,null,"RIBA-DV",10,1.4361999999999999,470,200,290,"-","-",135]
[null,"CRET-508",null,null,null,null,null,null,null,null,null,null,null,null,null,null,null,null,null,970,890,820,"DURA-60F",240,null,null,null,null,null,null,null,null,null,null,null,null,null,null,null,null,null,null,null,null,null,null,null,null,null,null,null,null,null,null,null,null,null,null,null,null,null,null,null,null,null,null,null,"RIBA-865",14,1.4461999999999999,285,225,290,290,null,null,null,null,"RIBA-DV",10,1.4461999999999999,470,200,290,"-","-",135]
[null,{"$f":"\"CRET-508 \"&VLOOKUP(Sprachen!$B$63,SprachListe,Abfrage,FALSE)","v":"CRET-508 Dorn"},null,null,null,null,null,null,null,null,null,null,null,null,null,null,null,null,null,980,900,830,"DURA-60F",250,null,null,null,null,null,null,null,null,null,null,null,null,null,null,null,null,null,null,null,null,null,null,null,null,null,null,null,null,null,null,null,null,null,null,null,null,null,null,null,null,null,null,null,"RIBA-865",16,1.4361999999999999,325,270,340,340,null,null,null,null,"RIBA-DV",12,1.4361999999999999,590,240,335,"-","-",175]
[null,{"$f":"\"CRET-508 \"&VLOOKUP(Sprachen!$B$64,SprachListe,Abfrage,FALSE)","v":"CRET-508 Hülse"},null,null,null,null,null,null,null,null,null,null,null,null,null,null,null,null,null,990,910,840,"DURA-60FL",110,null,null,null,null,null,null,null,null,null,null,null,null,null,null,null,null,null,null,null,null,null,null,null,null,null,null,null,null,null,null,null,null,null,null,null,null,null,null,null,null,null,null,null,"RIBA-865",16,1.4461999999999999,325,270,340,340,null,null,null,null,"RIBA-DV",12,1.4461999999999999,590,240,335,"-","-",175]
[null,"CRET-508 V20",null,null,null,null,null,null,null,null,null,null,null,null,null,null,null,null,null,1000,920,850,"DURA-60FL",120,null,null,null,null,null,null,null,null,null,null,null,null,null,null,null,null,null,null,null,null,null,null,null,null,null,null,null,null,null,null,null,null,null,null,null,null,null,null,null,null,null,null,null,"RIBA-865",20,1.4361999999999999,400,350,390,390,null,null,null,null,"RIBA-DV",14,1.4361999999999999,710,280,385,"-","-",215]
[null,{"$f":"\"CRET-508 V20 \"&VLOOKUP(Sprachen!$B$64,SprachListe,Abfrage,FALSE)","v":"CRET-508 V20 Hülse"},null,null,null,null,null,null,null,null,null,null,null,null,null,null,null,null,null,1010,930,860,"DURA-60FL",130,null,null,null,null,null,null,null,null,null,null,null,null,null,null,null,null,null,null,null,null,null,null,null,null,null,null,null,null,null,null,null,null,null,null,null,null,null,null,null,null,null,null,null,"RIBA-865",20,1.4461999999999999,400,350,390,390,null,null,null,null,"RIBA-DV",14,1.4461999999999999,710,280,385,"-","-",215]
[null,"CRET-508 V40",null,null,null,null,null,null,null,null,null,null,null,null,null,null,null,null,null,1020,940,870,"DURA-60FL",140,null,null,null,null,null,null,null,null,null,null,null,null,null,null,null,null,null,null,null,null,null,null,null,null,null,null,null,null,null,null,null,null,null,null,null,null,null,null,null,null,null,null,null,"RIBA-865V",10,1.4361999999999999,335,150,210,210,null,null,null,null,"RIBA-DV",16,1.4361999999999999,830,320,435,"-","-",255]
[null,{"$f":"\"CRET-508 V40 \"&VLOOKUP(Sprachen!$B$64,SprachListe,Abfrage,FALSE)","v":"CRET-508 V40 Hülse"},null,null,null,null,null,null,null,null,null,null,null,null,null,null,null,null,null,1030,950,880,"DURA-60FL",150,null,null,null,null,null,null,null,null,null,null,null,null,null,null,null,null,null,null,null,null,null,null,null,null,null,null,null,null,null,null,null,null,null,null,null,null,null,null,null,null,null,null,null,"RIBA-865V",10,1.4461999999999999,335,150,210,210,null,null,null,null,"RIBA-DV",16,1.4461999999999999,830,320,435,"-","-",255]
[null,"CRET-508 A",null,null,null,null,null,null,null,null,null,null,null,null,null,null,null,null,null,1040,960,890,"DURA-60FL",160,null,null,null,null,null,null,null,null,null,null,null,null,null,null,null,null,null,null,null,null,null,null,null,null,null,null,null,null,null,null,null,null,null,null,null,null,null,null,null,null,null,null,null,"RIBA-865V",12,1.4361999999999999,410,190,250,250,null,null,null,null,"RIBA-DV",20,1.4361999999999999,1080,400,525,"-","-",340]
[null,{"$f":"\"CRET-508 A \"&VLOOKUP(Sprachen!$B$63,SprachListe,Abfrage,FALSE)","v":"CRET-508 A Dorn"},null,null,null,null,null,null,null,null,null,null,null,null,null,null,null,null,null,1050,970,900,"DURA-60FL",170,null,null,null,null,null,null,null,null,null,null,null,null,null,null,null,null,null,null,null,null,null,null,null,null,null,null,null,null,null,null,null,null,null,null,null,null,null,null,null,null,null,null,null,"RIBA-865V",12,1.4461999999999999,410,190,250,250,null,null,null,null,"RIBA-DV",20,1.4461999999999999,1080,400,525,"-","-",340]
[null,{"$f":"\"CRET-508 A \"&VLOOKUP(Sprachen!$B$64,SprachListe,Abfrage,FALSE)","v":"CRET-508 A Hülse"},null,null,null,null,null,null,null,null,null,null,null,null,null,null,null,null,null,1060,980,910,"DURA-60FL",180,null,null,null,null,null,null,null,null,null,null,null,null,null,null,null,null,null,null,null,null,null,null,null,null,null,null,null,null,null,null,null,null,null,null,null,null,null,null,null,null,null,null,null,"RIBA-865V",14,1.4361999999999999,485,225,290,290,null,null,null,null,"RIBA-E",10,1.4361999999999999,595,"-",290,"-",380,135]
[null,"CRET-508 A V20",null,null,null,null,null,null,null,null,null,null,null,null,null,null,null,null,null,1070,990,920,"DURA-60FL",190,null,null,null,null,null,null,null,null,null,null,null,null,null,null,null,null,null,null,null,null,null,null,null,null,null,null,null,null,null,null,null,null,null,null,null,null,null,null,null,null,null,null,null,"RIBA-865V",14,1.4461999999999999,485,225,290,290,null,null,null,null,"RIBA-E",10,1.4461999999999999,595,"-",290,"-",380,135]
[null,{"$f":"\"CRET-508 A V20 \"&VLOOKUP(Sprachen!$B$64,SprachListe,Abfrage,FALSE)","v":"CRET-508 A V20 Hülse"},null,null,null,null,null,null,null,null,null,null,null,null,null,null,null,null,null,1080,1000,930,"DURA-60FL",200,null,null,null,null,null,null,null,null,null,null,null,null,null,null,null,null,null,null,null,null,null,null,null,null,null,null,null,null,null,null,null,null,null,null,null,null,null,null,null,null,null,null,null,"RIBA-865V",16,1.4361999999999999,565,270,340,340,null,null,null,null,"RIBA-E",12,1.4361999999999999,715,"-",335,"-",460,175]
[null,"CRET-508 A V40",null,null,null,null,null,null,null,null,null,null,null,null,null,null,null,null,null,1090,1010,940,"DURA-60FL",210,null,null,null,null,null,null,null,null,null,null,null,null,null,null,null,null,null,null,null,null,null,null,null,null,null,null,null,null,null,null,null,null,null,null,null,null,null,null,null,null,null,null,null,"RIBA-865V",16,1.4461999999999999,565,270,340,340,null,null,null,null,"RIBA-E",12,1.4461999999999999,715,"-",335,"-",460,175]
[null,{"$f":"\"CRET-508 A V40 \"&VLOOKUP(Sprachen!$B$64,SprachListe,Abfrage,FALSE)","v":"CRET-508 A V40 Hülse"},null,null,null,null,null,null,null,null,null,null,null,null,null,null,null,null,null,1100,1020,950,"DURA-60FL",220,null,null,null,null,null,null,null,null,null,null,null,null,null,null,null,null,null,null,null,null,null,null,null,null,null,null,null,null,null,null,null,null,null,null,null,null,null,null,null,null,null,null,null,"RIBA-865V",20,1.4361999999999999,720,350,390,390,null,null,null,null,"RIBA-E",14,1.4361999999999999,830,"-",385,"-",535,215]
[null,"CRET-508 B",null,null,null,null,null,null,null,null,null,null,null,null,null,null,null,null,null,1110,1030,960,"DURA-60FL",230,null,null,null,null,null,null,null,null,null,null,null,null,null,null,null,null,null,null,null,null,null,null,null,null,null,null,null,null,null,null,null,null,null,null,null,null,null,null,null,null,null,null,null,"RIBA-865V",20,1.4461999999999999,720,350,390,390,null,null,null,null,"RIBA-E",14,1.4461999999999999,830,"-",385,"-",535,215]
[null,{"$f":"\"CRET-508 B \"&VLOOKUP(Sprachen!$B$63,SprachListe,Abfrage,FALSE)","v":"CRET-508 B Dorn"},null,null,null,null,null,null,null,null,null,null,null,null,null,null,null,null,null,1120,1040,970,"DURA-60FL",240,null,null,null,null,null,null,null,null,null,null,null,null,null,null,null,null,null,null,null,null,null,null,null,null,null,null,null,null,null,null,null,null,null,null,null,null,null,null,null,null,null,null,null,"RIBA-866",10,1.4361999999999999,515,450,"-","-",null,null,null,null,"RIBA-E",16,1.4361999999999999,945,"-",435,"-",610,255]
[null,{"$f":"\"CRET-508 B \"&VLOOKUP(Sprachen!$B$64,SprachListe,Abfrage,FALSE)","v":"CRET-508 B Hülse"},null,null,null,null,null,null,null,null,null,null,null,null,null,null,null,null,null,1130,1050,980,"DURA-60FL",250,null,null,null,null,null,null,null,null,null,null,null,null,null,null,null,null,null,null,null,null,null,null,null,null,null,null,null,null,null,null,null,null,null,null,null,null,null,null,null,null,null,null,null,"RIBA-866",10,1.4461999999999999,515,450,"-","-",null,null,null,null,"RIBA-E",16,1.4461999999999999,945,"-",435,"-",610,255]
[null,"CRET-508 B V20",null,null,null,null,null,null,null,null,null,null,null,null,null,null,null,null,null,1140,1060,990,null,null,null,null,null,null,null,null,null,null,null,null,null,null,null,null,null,null,null,null,null,null,null,null,null,null,null,null,null,null,null,null,null,null,null,null,null,null,null,null,null,null,null,null,null,"RIBA-866",12,1.4361999999999999,605,545,"-","-",null,null,null,null,"RIBA-E",20,1.4361999999999999,1185,"-",525,"-",765,340]
[null,{"$f":"\"CRET-508 B V20 \"&VLOOKUP(Sprachen!$B$64,SprachListe,Abfrage,FALSE)","v":"CRET-508 B V20 Hülse"},null,null,null,null,null,null,null,null,null,null,null,null,null,null,null,null,null,1150,1070,1000,null,null,null,null,null,null,null,null,null,null,null,null,null,null,null,null,null,null,null,null,null,null,null,null,null,null,null,null,null,null,null,null,null,null,null,null,null,null,null,null,null,null,null,null,null,"RIBA-866",12,1.4461999999999999,605,545,"-","-",null,null,null,null,"RIBA-E",20,1.4461999999999999,1185,"-",525,"-",765,340]
[null,"CRET-508 B V40",null,null,null,null,null,null,null,null,null,null,null,null,null,null,null,null,null,1160,1080,1010,null,null,null,null,null,null,null,null,null,null,null,null,null,null,null,null,null,null,null,null,null,null,null,null,null,null,null,null,null,null,null,null,null,null,null,null,null,null,null,null,null,null,null,null,null,"RIBA-866",14,1.4361999999999999,700,640,"-","-",null,null,null,null,"RIBA-EV",10,1.4361999999999999,715,200,290,"-",380,135]
[null,{"$f":"\"CRET-508 B V40 \"&VLOOKUP(Sprachen!$B$64,SprachListe,Abfrage,FALSE)","v":"CRET-508 B V40 Hülse"},null,null,null,null,null,null,null,null,null,null,null,null,null,null,null,null,null,1170,1090,1020,null,null,null,null,null,null,null,null,null,null,null,null,null,null,null,null,null,null,null,null,null,null,null,null,null,null,null,null,null,null,null,null,null,null,null,null,null,null,null,null,null,null,null,null,null,"RIBA-866",14,1.4461999999999999,700,640,"-","-",null,null,null,null,"RIBA-EV",10,1.4461999999999999,715,200,290,"-",380,135]
[null,"CRET-512",null,null,null,null,null,null,null,null,null,null,null,null,null,null,null,null,null,1180,1100,1030,null,null,null,null,null,null,null,null,null,null,null,null,null,null,null,null,null,null,null,null,null,null,null,null,null,null,null,null,null,null,null,null,null,null,null,null,null,null,null,null,null,null,null,null,null,"RIBA-866",16,1.4361999999999999,810,755,"-","-",null,null,null,null,"RIBA-EV",12,1.4361999999999999,875,240,335,"-",460,175]
[null,{"$f":"\"CRET-512 \"&VLOOKUP(Sprachen!$B$63,SprachListe,Abfrage,FALSE)","v":"CRET-512 Dorn"},null,null,null,null,null,null,null,null,null,null,null,null,null,null,null,null,null,1190,1110,1040,null,null,null,null,null,null,null,null,null,null,null,null,null,null,null,null,null,null,null,null,null,null,null,null,null,null,null,null,null,null,null,null,null,null,null,null,null,null,null,null,null,null,null,null,null,"RIBA-866",16,1.4461999999999999,810,755,"-","-",null,null,null,null,"RIBA-EV",12,1.4461999999999999,875,240,335,"-",460,175]
[null,{"$f":"\"CRET-512 \"&VLOOKUP(Sprachen!$B$64,SprachListe,Abfrage,FALSE)","v":"CRET-512 Hülse"},null,null,null,null,null,null,null,null,null,null,null,null,null,null,null,null,null,1200,1120,1050,null,null,null,null,null,null,null,null,null,null,null,null,null,null,null,null,null,null,null,null,null,null,null,null,null,null,null,null,null,null,null,null,null,null,null,null,null,null,null,null,null,null,null,null,null,"RIBA-866",20,1.4361999999999999,955,905,"-","-",null,null,null,null,"RIBA-EV",14,1.4361999999999999,1030,280,385,"-",535,215]
[null,"CRET-512 V20",null,null,null,null,null,null,null,null,null,null,null,null,null,null,null,null,null,1210,1130,1060,null,null,null,null,null,null,null,null,null,null,null,null,null,null,null,null,null,null,null,null,null,null,null,null,null,null,null,null,null,null,null,null,null,null,null,null,null,null,null,null,null,null,null,null,null,"RIBA-866",20,1.4461999999999999,955,905,"-","-",null,null,null,null,"RIBA-EV",14,1.4461999999999999,1030,280,385,"-",535,215]
[null,{"$f":"\"CRET-512 V20 \"&VLOOKUP(Sprachen!$B$64,SprachListe,Abfrage,FALSE)","v":"CRET-512 V20 Hülse"},null,null,null,null,null,null,null,null,null,null,null,null,null,null,null,null,null,1220,1140,1070,null,null,null,null,null,null,null,null,null,null,null,null,null,null,null,null,null,null,null,null,null,null,null,null,null,null,null,null,null,null,null,null,null,null,null,null,null,null,null,null,null,null,null,null,null,"RIBA-866V",10,1.4361999999999999,635,450,"-","-",null,null,null,null,"RIBA-EV",16,1.4361999999999999,1185,320,435,"-",610,255]
[null,"CRET-512 V40",null,null,null,null,null,null,null,null,null,null,null,null,null,null,null,null,null,1230,1150,1080,null,null,null,null,null,null,null,null,null,null,null,null,null,null,null,null,null,null,null,null,null,null,null,null,null,null,null,null,null,null,null,null,null,null,null,null,null,null,null,null,null,null,null,null,null,"RIBA-866V",10,1.4461999999999999,635,450,"-","-",null,null,null,null,"RIBA-EV",16,1.4461999999999999,1185,320,435,"-",610,255]
[null,{"$f":"\"CRET-512 V40 \"&VLOOKUP(Sprachen!$B$64,SprachListe,Abfrage,FALSE)","v":"CRET-512 V40 Hülse"},null,null,null,null,null,null,null,null,null,null,null,null,null,null,null,null,null,1240,1160,1090,null,null,null,null,null,null,null,null,null,null,null,null,null,null,null,null,null,null,null,null,null,null,null,null,null,null,null,null,null,null,null,null,null,null,null,null,null,null,null,null,null,null,null,null,null,"RIBA-866V",12,1.4361999999999999,765,545,"-","-",null,null,null,null,"RIBA-EV",20,1.4361999999999999,1505,400,525,"-",765,340]
[null,"CRET-512 A",null,null,null,null,null,null,null,null,null,null,null,null,null,null,null,null,null,1250,1170,1100,null,null,null,null,null,null,null,null,null,null,null,null,null,null,null,null,null,null,null,null,null,null,null,null,null,null,null,null,null,null,null,null,null,null,null,null,null,null,null,null,null,null,null,null,null,"RIBA-866V",12,1.4461999999999999,765,545,"-","-",null,null,null,null,"RIBA-EV",20,1.4461999999999999,1505,400,525,"-",765,340]
[null,{"$f":"\"CRET-512 A \"&VLOOKUP(Sprachen!$B$63,SprachListe,Abfrage,FALSE)","v":"CRET-512 A Dorn"},null,null,null,null,null,null,null,null,null,null,null,null,null,null,null,null,null,1260,1180,1110,null,null,null,null,null,null,null,null,null,null,null,null,null,null,null,null,null,null,null,null,null,null,null,null,null,null,null,null,null,null,null,null,null,null,null,null,null,null,null,null,null,null,null,null,null,"RIBA-866V",14,1.4361999999999999,900,640,"-","-",null,null,null,null,"RIBA-F",10,1.4361999999999999,1170,"-","-",545,"-","-"]
[null,{"$f":"\"CRET-512 A \"&VLOOKUP(Sprachen!$B$64,SprachListe,Abfrage,FALSE)","v":"CRET-512 A Hülse"},null,null,null,null,null,null,null,null,null,null,null,null,null,null,null,null,null,1270,1190,1120,null,null,null,null,null,null,null,null,null,null,null,null,null,null,null,null,null,null,null,null,null,null,null,null,null,null,null,null,null,null,null,null,null,null,null,null,null,null,null,null,null,null,null,null,null,"RIBA-866V",14,1.4461999999999999,900,640,"-","-",null,null,null,null,"RIBA-F",10,1.4461999999999999,1170,"-","-",545,"-","-"]
[null,"CRET-512 A V20",null,null,null,null,null,null,null,null,null,null,null,null,null,null,null,null,null,1280,1200,1130,null,null,null,null,null,null,null,null,null,null,null,null,null,null,null,null,null,null,null,null,null,null,null,null,null,null,null,null,null,null,null,null,null,null,null,null,null,null,null,null,null,null,null,null,null,"RIBA-866V",16,1.4361999999999999,1050,755,"-","-",null,null,null,null,"RIBA-F",12,1.4361999999999999,1390,"-","-",655,"-","-"]
[null,{"$f":"\"CRET-512 A V20 \"&VLOOKUP(Sprachen!$B$64,SprachListe,Abfrage,FALSE)","v":"CRET-512 A V20 Hülse"},null,null,null,null,null,null,null,null,null,null,null,null,null,null,null,null,null,1290,1210,1140,null,null,null,null,null,null,null,null,null,null,null,null,null,null,null,null,null,null,null,null,null,null,null,null,null,null,null,null,null,null,null,null,null,null,null,null,null,null,null,null,null,null,null,null,null,"RIBA-866V",16,1.4461999999999999,1050,755,"-","-",null,null,null,null,"RIBA-F",12,1.4461999999999999,1390,"-","-",655,"-","-"]
[null,"CRET-512 A V40",null,null,null,null,null,null,null,null,null,null,null,null,null,null,null,null,null,1300,1220,1150,null,null,null,null,null,null,null,null,null,null,null,null,null,null,null,null,null,null,null,null,null,null,null,null,null,null,null,null,null,null,null,null,null,null,null,null,null,null,null,null,null,null,null,null,null,"RIBA-866V",20,1.4361999999999999,1275,905,"-","-",null,null,null,null,"RIBA-F",14,1.4361999999999999,1610,"-","-",765,"-","-"]
[null,{"$f":"\"CRET-512 A V40 \"&VLOOKUP(Sprachen!$B$64,SprachListe,Abfrage,FALSE)","v":"CRET-512 A V40 Hülse"},null,null,null,null,null,null,null,null,null,null,null,null,null,null,null,null,null,1310,1230,1160,null,null,null,null,null,null,null,null,null,null,null,null,null,null,null,null,null,null,null,null,null,null,null,null,null,null,null,null,null,null,null,null,null,null,null,null,null,null,null,null,null,null,null,null,null,"RIBA-866V",20,1.4461999999999999,1275,905,"-","-",null,null,null,null,"RIBA-F",14,1.4461999999999999,1610,"-","-",765,"-","-"]
[null,"CRET-512 B",null,null,null,null,null,null,null,null,null,null,null,null,null,null,null,null,null,1320,1240,1170,null,null,null,null,null,null,null,null,null,null,null,null,null,null,null,null,null,null,null,null,null,null,null,null,null,null,null,null,null,null,null,null,null,null,null,null,null,null,null,null,null,null,null,null,null,"RIBA-870",10,1.4361999999999999,"-",450,"-","-",null,null,null,null,"RIBA-F",16,1.4361999999999999,1820,"-","-",870,"-","-"]
[null,{"$f":"\"CRET-512 B \"&VLOOKUP(Sprachen!$B$63,SprachListe,Abfrage,FALSE)","v":"CRET-512 B Dorn"},null,null,null,null,null,null,null,null,null,null,null,null,null,null,null,null,null,1330,1250,1180,null,null,null,null,null,null,null,null,null,null,null,null,null,null,null,null,null,null,null,null,null,null,null,null,null,null,null,null,null,null,null,null,null,null,null,null,null,null,null,null,null,null,null,null,null,"RIBA-870",10,1.4461999999999999,"-",450,"-","-",null,null,null,null,"RIBA-F",16,1.4461999999999999,1820,"-","-",870,"-","-"]
[null,{"$f":"\"CRET-512 B \"&VLOOKUP(Sprachen!$B$64,SprachListe,Abfrage,FALSE)","v":"CRET-512 B Hülse"},null,null,null,null,null,null,null,null,null,null,null,null,null,null,null,null,null,1340,1260,1190,null,null,null,null,null,null,null,null,null,null,null,null,null,null,null,null,null,null,null,null,null,null,null,null,null,null,null,null,null,null,null,null,null,null,null,null,null,null,null,null,null,null,null,null,null,"RIBA-870",12,1.4361999999999999,"-",545,"-","-",null,null,null,null,"RIBA-F",20,1.4361999999999999,2260,"-","-",1090,"-","-"]
[null,"CRET-512 B V20",null,null,null,null,null,null,null,null,null,null,null,null,null,null,null,null,null,1350,1270,1200,null,null,null,null,null,null,null,null,null,null,null,null,null,null,null,null,null,null,null,null,null,null,null,null,null,null,null,null,null,null,null,null,null,null,null,null,null,null,null,null,null,null,null,null,null,"RIBA-870",12,1.4461999999999999,"-",545,"-","-",null,null,null,null,"RIBA-F",20,1.4461999999999999,2260,"-","-",1090,"-","-"]
[null,{"$f":"\"CRET-512 B V20 \"&VLOOKUP(Sprachen!$B$64,SprachListe,Abfrage,FALSE)","v":"CRET-512 B V20 Hülse"},null,null,null,null,null,null,null,null,null,null,null,null,null,null,null,null,null,1360,1280,1210,null,null,null,null,null,null,null,null,null,null,null,null,null,null,null,null,null,null,null,null,null,null,null,null,null,null,null,null,null,null,null,null,null,null,null,null,null,null,null,null,null,null,null,null,null,"RIBA-870",14,1.4361999999999999,"-",640,"-","-",null,null,null,null,"RIBA-FV",10,1.4361999999999999,1290,200,"-",545,"-","-"]
[null,"CRET-512 B V40",null,null,null,null,null,null,null,null,null,null,null,null,null,null,null,null,null,1370,1290,1220,null,null,null,null,null,null,null,null,null,null,null,null,null,null,null,null,null,null,null,null,null,null,null,null,null,null,null,null,null,null,null,null,null,null,null,null,null,null,null,null,null,null,null,null,null,"RIBA-870",14,1.4461999999999999,"-",640,"-","-",null,null,null,null,"RIBA-FV",10,1.4461999999999999,1290,200,"-",545,"-","-"]
[null,{"$f":"\"CRET-512 B V40 \"&VLOOKUP(Sprachen!$B$64,SprachListe,Abfrage,FALSE)","v":"CRET-512 B V40 Hülse"},null,null,null,null,null,null,null,null,null,null,null,null,null,null,null,null,null,1380,1300,1230,null,null,null,null,null,null,null,null,null,null,null,null,null,null,null,null,null,null,null,null,null,null,null,null,null,null,null,null,null,null,null,null,null,null,null,null,null,null,null,null,null,null,null,null,null,"RIBA-870",16,1.4361999999999999,"-",755,"-","-",null,null,null,null,"RIBA-FV",12,1.4361999999999999,1550,240,"-",655,"-","-"]
[null,"CRET-515",null,null,null,null,null,null,null,null,null,null,null,null,null,null,null,null,null,1390,1310,1240,null,null,null,null,null,null,null,null,null,null,null,null,null,null,null,null,null,null,null,null,null,null,null,null,null,null,null,null,null,null,null,null,null,null,null,null,null,null,null,null,null,null,null,null,null,"RIBA-870",16,1.4461999999999999,"-",755,"-","-",null,null,null,null,"RIBA-FV",12,1.4461999999999999,1550,240,"-",655,"-","-"]
[null,{"$f":"\"CRET-515 \"&VLOOKUP(Sprachen!$B$63,SprachListe,Abfrage,FALSE)","v":"CRET-515 Dorn"},null,null,null,null,null,null,null,null,null,null,null,null,null,null,null,null,null,1400,1320,1250,null,null,null,null,null,null,null,null,null,null,null,null,null,null,null,null,null,null,null,null,null,null,null,null,null,null,null,null,null,null,null,null,null,null,null,null,null,null,null,null,null,null,null,null,null,"RIBA-870",20,1.4361999999999999,"-",905,"-","-",null,null,null,null,"RIBA-FV",14,1.4361999999999999,1810,280,"-",765,"-","-"]
[null,{"$f":"\"CRET-515 \"&VLOOKUP(Sprachen!$B$64,SprachListe,Abfrage,FALSE)","v":"CRET-515 Hülse"},null,null,null,null,null,null,null,null,null,null,null,null,null,null,null,null,null,1410,1330,1260,null,null,null,null,null,null,null,null,null,null,null,null,null,null,null,null,null,null,null,null,null,null,null,null,null,null,null,null,null,null,null,null,null,null,null,null,null,null,null,null,null,null,null,null,null,"RIBA-870",20,1.4461999999999999,"-",905,"-","-",null,null,null,null,"RIBA-FV",14,1.4461999999999999,1810,280,"-",765,"-","-"]
[null,"CRET-515 V20",null,null,null,null,null,null,null,null,null,null,null,null,null,null,null,null,null,1420,1340,1270,null,null,null,null,null,null,null,null,null,null,null,null,null,null,null,null,null,null,null,null,null,null,null,null,null,null,null,null,null,null,null,null,null,null,null,null,null,null,null,null,null,null,null,null,null,"RIBA-871",10,1.4361999999999999,"-",150,210,210,null,null,null,null,"RIBA-FV",16,1.4361999999999999,2060,320,"-",870,"-","-"]
[null,{"$f":"\"CRET-515 V20 \"&VLOOKUP(Sprachen!$B$64,SprachListe,Abfrage,FALSE)","v":"CRET-515 V20 Hülse"},null,null,null,null,null,null,null,null,null,null,null,null,null,null,null,null,null,1430,1350,1280,null,null,null,null,null,null,null,null,null,null,null,null,null,null,null,null,null,null,null,null,null,null,null,null,null,null,null,null,null,null,null,null,null,null,null,null,null,null,null,null,null,null,null,null,null,"RIBA-871",10,1.4461999999999999,"-",150,210,210,null,null,null,null,"RIBA-FV",16,1.4461999999999999,2060,320,"-",870,"-","-"]
[null,"CRET-515 V40",null,null,null,null,null,null,null,null,null,null,null,null,null,null,null,null,null,1440,1360,1290,null,null,null,null,null,null,null,null,null,null,null,null,null,null,null,null,null,null,null,null,null,null,null,null,null,null,null,null,null,null,null,null,null,null,null,null,null,null,null,null,null,null,null,null,null,"RIBA-871",12,1.4361999999999999,"-",190,250,250,null,null,null,null,"RIBA-FV",20,1.4361999999999999,2580,400,"-",1090,"-","-"]
[null,{"$f":"\"CRET-515 V40 \"&VLOOKUP(Sprachen!$B$64,SprachListe,Abfrage,FALSE)","v":"CRET-515 V40 Hülse"},null,null,null,null,null,null,null,null,null,null,null,null,null,null,null,null,null,1450,1370,1300,null,null,null,null,null,null,null,null,null,null,null,null,null,null,null,null,null,null,null,null,null,null,null,null,null,null,null,null,null,null,null,null,null,null,null,null,null,null,null,null,null,null,null,null,null,"RIBA-871",12,1.4461999999999999,"-",190,250,250,null,null,null,null,"RIBA-FV",20,1.4461999999999999,2580,400,"-",1090,"-","-"]
[null,"CRET-515 A",null,null,null,null,null,null,null,null,null,null,null,null,null,null,null,null,null,1460,1380,1310,null,null,null,null,null,null,null,null,null,null,null,null,null,null,null,null,null,null,null,null,null,null,null,null,null,null,null,null,null,null,null,null,null,null,null,null,null,null,null,null,null,null,null,null,null,"RIBA-871",14,1.4361999999999999,"-",225,290,290,null,null,null,null,"RIBA-G",10,1.4361999999999999,1005,"-","-",545,380,"-"]
[null,{"$f":"\"CRET-515 A \"&VLOOKUP(Sprachen!$B$63,SprachListe,Abfrage,FALSE)","v":"CRET-515 A Dorn"},null,null,null,null,null,null,null,null,null,null,null,null,null,null,null,null,null,1470,1390,1320,null,null,null,null,null,null,null,null,null,null,null,null,null,null,null,null,null,null,null,null,null,null,null,null,null,null,null,null,null,null,null,null,null,null,null,null,null,null,null,null,null,null,null,null,null,"RIBA-871",14,1.4461999999999999,"-",225,290,290,null,null,null,null,"RIBA-G",10,1.4461999999999999,1005,"-","-",545,380,"-"]
[null,{"$f":"\"CRET-515 A \"&VLOOKUP(Sprachen!$B$64,SprachListe,Abfrage,FALSE)","v":"CRET-515 A Hülse"},null,null,null,null,null,null,null,null,null,null,null,null,null,null,null,null,null,1480,1400,1330,null,null,null,null,null,null,null,null,null,null,null,null,null,null,null,null,null,null,null,null,null,null,null,null,null,null,null,null,null,null,null,null,null,null,null,null,null,null,null,null,null,null,null,null,null,"RIBA-871",16,1.4361999999999999,"-",270,340,340,null,null,null,null,"RIBA-G",12,1.4361999999999999,1195,"-","-",655,460,"-"]
[null,"CRET-515 A V20",null,null,null,null,null,null,null,null,null,null,null,null,null,null,null,null,null,1490,1410,1340,null,null,null,null,null,null,null,null,null,null,null,null,null,null,null,null,null,null,null,null,null,null,null,null,null,null,null,null,null,null,null,null,null,null,null,null,null,null,null,null,null,null,null,null,null,"RIBA-871",16,1.4461999999999999,"-",270,340,340,null,null,null,null,"RIBA-G",12,1.4461999999999999,1195,"-","-",655,460,"-"]
[null,{"$f":"\"CRET-515 A V20 \"&VLOOKUP(Sprachen!$B$64,SprachListe,Abfrage,FALSE)","v":"CRET-515 A V20 Hülse"},null,null,null,null,null,null,null,null,null,null,null,null,null,null,null,null,null,1500,1420,1350,null,null,null,null,null,null,null,null,null,null,null,null,null,null,null,null,null,null,null,null,null,null,null,null,null,null,null,null,null,null,null,null,null,null,null,null,null,null,null,null,null,null,null,null,null,"RIBA-871",20,1.4361999999999999,"-",350,390,390,null,null,null,null,"RIBA-G",14,1.4361999999999999,1380,"-","-",765,535,"-"]
[null,"CRET-515 A V40",null,null,null,null,null,null,null,null,null,null,null,null,null,null,null,null,null,1510,1430,1360,null,null,null,null,null,null,null,null,null,null,null,null,null,null,null,null,null,null,null,null,null,null,null,null,null,null,null,null,null,null,null,null,null,null,null,null,null,null,null,null,null,null,null,null,null,"RIBA-871",20,1.4461999999999999,"-",350,390,390,null,null,null,null,"RIBA-G",14,1.4461999999999999,1380,"-","-",765,535,"-"]
[null,{"$f":"\"CRET-515 A V40 \"&VLOOKUP(Sprachen!$B$64,SprachListe,Abfrage,FALSE)","v":"CRET-515 A V40 Hülse"},null,null,null,null,null,null,null,null,null,null,null,null,null,null,null,null,null,1520,1440,1370,null,null,null,null,null,null,null,null,null,null,null,null,null,null,null,null,null,null,null,null,null,null,null,null,null,null,null,null,null,null,null,null,null,null,null,null,null,null,null,null,null,null,null,null,null,"RIBA-872",10,1.4361999999999999,515,"-","-","-",null,null,null,null,"RIBA-G",16,1.4361999999999999,1560,"-","-",870,610,"-"]
[null,"CRET-515 B",null,null,null,null,null,null,null,null,null,null,null,null,null,null,null,null,null,1530,1450,1380,null,null,null,null,null,null,null,null,null,null,null,null,null,null,null,null,null,null,null,null,null,null,null,null,null,null,null,null,null,null,null,null,null,null,null,null,null,null,null,null,null,null,null,null,null,"RIBA-872",10,1.4461999999999999,515,"-","-","-",null,null,null,null,"RIBA-G",16,1.4461999999999999,1560,"-","-",870,610,"-"]
[null,{"$f":"\"CRET-515 B \"&VLOOKUP(Sprachen!$B$63,SprachListe,Abfrage,FALSE)","v":"CRET-515 B Dorn"},null,null,null,null,null,null,null,null,null,null,null,null,null,null,null,null,null,1540,1460,1390,null,null,null,null,null,null,null,null,null,null,null,null,null,null,null,null,null,null,null,null,null,null,null,null,null,null,null,null,null,null,null,null,null,null,null,null,null,null,null,null,null,null,null,null,null,"RIBA-872",12,1.4361999999999999,605,"-","-","-",null,null,null,null,"RIBA-G",20,1.4361999999999999,1935,"-","-",1090,765,"-"]
[null,{"$f":"\"CRET-515 B \"&VLOOKUP(Sprachen!$B$64,SprachListe,Abfrage,FALSE)","v":"CRET-515 B Hülse"},null,null,null,null,null,null,null,null,null,null,null,null,null,null,null,null,null,1550,1470,1400,null,null,null,null,null,null,null,null,null,null,null,null,null,null,null,null,null,null,null,null,null,null,null,null,null,null,null,null,null,null,null,null,null,null,null,null,null,null,null,null,null,null,null,null,null,"RIBA-872",12,1.4461999999999999,605,"-","-","-",null,null,null,null,"RIBA-G",20,1.4461999999999999,1935,"-","-",1090,765,"-"]
[null,"CRET-515 B V20",null,null,null,null,null,null,null,null,null,null,null,null,null,null,null,null,null,1560,1480,1410,null,null,null,null,null,null,null,null,null,null,null,null,null,null,null,null,null,null,null,null,null,null,null,null,null,null,null,null,null,null,null,null,null,null,null,null,null,null,null,null,null,null,null,null,null,"RIBA-872",14,1.4361999999999999,700,"-","-","-",null,null,null,null,"RIBA-GV",10,1.4361999999999999,1125,200,"-",545,380,"-"]
[null,{"$f":"\"CRET-515 B V20 \"&VLOOKUP(Sprachen!$B$64,SprachListe,Abfrage,FALSE)","v":"CRET-515 B V20 Hülse"},null,null,null,null,null,null,null,null,null,null,null,null,null,null,null,null,null,1570,1490,1420,null,null,null,null,null,null,null,null,null,null,null,null,null,null,null,null,null,null,null,null,null,null,null,null,null,null,null,null,null,null,null,null,null,null,null,null,null,null,null,null,null,null,null,null,null,"RIBA-872",14,1.4461999999999999,700,"-","-","-",null,null,null,null,"RIBA-GV",10,1.4461999999999999,1125,200,"-",545,380,"-"]
[null,"CRET-515 B V40",null,null,null,null,null,null,null,null,null,null,null,null,null,null,null,null,null,1580,1500,1430,null,null,null,null,null,null,null,null,null,null,null,null,null,null,null,null,null,null,null,null,null,null,null,null,null,null,null,null,null,null,null,null,null,null,null,null,null,null,null,null,null,null,null,null,null,"RIBA-872",16,1.4361999999999999,810,"-","-","-",null,null,null,null,"RIBA-GV",12,1.4361999999999999,1355,240,"-",655,460,"-"]
[null,{"$f":"\"CRET-515 B V40 \"&VLOOKUP(Sprachen!$B$64,SprachListe,Abfrage,FALSE)","v":"CRET-515 B V40 Hülse"},null,null,null,null,null,null,null,null,null,null,null,null,null,null,null,null,null,1590,1510,1440,null,null,null,null,null,null,null,null,null,null,null,null,null,null,null,null,null,null,null,null,null,null,null,null,null,null,null,null,null,null,null,null,null,null,null,null,null,null,null,null,null,null,null,null,null,"RIBA-872",16,1.4461999999999999,810,"-","-","-",null,null,null,null,"RIBA-GV",12,1.4461999999999999,1355,240,"-",655,460,"-"]
[null,null,null,null,null,null,null,null,null,null,null,null,null,null,null,null,null,null,null,1600,1520,1450,null,null,null,null,null,null,null,null,null,null,null,null,null,null,null,null,null,null,null,null,null,null,null,null,null,null,null,null,null,null,null,null,null,null,null,null,null,null,null,null,null,null,null,null,null,"RIBA-872",20,1.4361999999999999,955,"-","-","-",null,null,null,null,"RIBA-GV",14,1.4361999999999999,1580,280,"-",765,535,"-"]
[null,null,null,null,null,null,null,null,null,null,null,null,null,null,null,null,null,null,null,1610,1530,1460,null,null,null,null,null,null,null,null,null,null,null,null,null,null,null,null,null,null,null,null,null,null,null,null,null,null,null,null,null,null,null,null,null,null,null,null,null,null,null,null,null,null,null,null,null,"RIBA-872",20,1.4461999999999999,955,"-","-","-",null,null,null,null,"RIBA-GV",14,1.4461999999999999,1580,280,"-",765,535,"-"]
[null,null,null,null,null,null,null,null,null,null,null,null,null,null,null,null,null,null,null,1620,1540,1470,null,null,null,null,null,null,null,null,null,null,null,null,null,null,null,null,null,null,null,null,null,null,null,null,null,null,null,null,null,null,null,null,null,null,null,null,null,null,null,null,null,null,null,null,null,null,null,null,null,null,null,null,null,null,null,null,"RIBA-GV",16,1.4361999999999999,1800,320,"-",870,610,"-"]
[null,null,null,null,null,null,null,null,null,null,null,null,null,null,null,null,null,null,null,1630,1550,1480,null,null,null,null,null,null,null,null,null,null,null,null,null,null,null,null,null,null,null,null,null,null,null,null,null,null,null,null,null,null,null,null,null,null,null,null,null,null,null,null,null,null,null,null,null,null,null,null,null,null,null,null,null,null,null,null,"RIBA-GV",16,1.4461999999999999,1800,320,"-",870,610,"-"]
[null,null,null,null,null,null,null,null,null,null,null,null,null,null,null,null,null,null,null,1640,1560,1490,null,null,null,null,null,null,null,null,null,null,null,null,null,null,null,null,null,null,null,null,null,null,null,null,null,null,null,null,null,null,null,null,null,null,null,null,null,null,null,null,null,null,null,null,null,null,null,null,null,null,null,null,null,null,null,null,"RIBA-GV",20,1.4361999999999999,2255,400,"-",1090,765,"-"]
[null,null,null,null,null,null,null,null,null,null,null,null,null,null,null,null,null,null,null,1650,1570,1500,null,null,null,null,null,null,null,null,null,null,null,null,null,null,null,null,null,null,null,null,null,null,null,null,null,null,null,null,null,null,null,null,null,null,null,null,null,null,null,null,null,null,null,null,null,null,null,null,null,null,null,null,null,null,null,null,"RIBA-GV",20,1.4461999999999999,2255,400,"-",1090,765,"-"]
[null,null,null,null,null,null,null,null,null,null,null,null,null,null,null,null,null,null,null,1660,1580,1510,null,null,null,null,null,null,null,null,null,null,null,null,null,null,null,null,null,null,null,null,null,null,null,null,null,null,null,null,null,null,null,null,null,null,null,null,null,null,null,null,null,null,null,null,null,null,null,null,null,null,null,null,null,null,null,null,"RIBA-H",10,1.4361999999999999,840,"-",290,"-",380,"-"]
[null,null,null,null,null,null,null,null,null,null,null,null,null,null,null,null,null,null,null,1670,1590,1520,null,null,null,null,null,null,null,null,null,null,null,null,null,null,null,null,null,null,null,null,null,null,null,null,null,null,null,null,null,null,null,null,null,null,null,null,null,null,null,null,null,null,null,null,null,null,null,null,null,null,null,null,null,null,null,null,"RIBA-H",10,1.4461999999999999,840,"-",290,"-",380,"-"]
[null,null,null,null,null,null,null,null,null,null,null,null,null,null,null,null,null,null,null,1680,1600,1530,null,null,null,null,null,null,null,null,null,null,null,null,null,null,null,null,null,null,null,null,null,null,null,null,null,null,null,null,null,null,null,null,null,null,null,null,null,null,null,null,null,null,null,null,null,null,null,null,null,null,null,null,null,null,null,null,"RIBA-H",12,1.4361999999999999,1000,"-",335,"-",460,"-"]
[null,null,null,null,null,null,null,null,null,null,null,null,null,null,null,null,null,null,null,1690,1610,1540,null,null,null,null,null,null,null,null,null,null,null,null,null,null,null,null,null,null,null,null,null,null,null,null,null,null,null,null,null,null,null,null,null,null,null,null,null,null,null,null,null,null,null,null,null,null,null,null,null,null,null,null,null,null,null,null,"RIBA-H",12,1.4461999999999999,1000,"-",335,"-",460,"-"]
[null,null,null,null,null,null,null,null,null,null,null,null,null,null,null,null,null,null,null,1700,1620,1550,null,null,null,null,null,null,null,null,null,null,null,null,null,null,null,null,null,null,null,null,null,null,null,null,null,null,null,null,null,null,null,null,null,null,null,null,null,null,null,null,null,null,null,null,null,null,null,null,null,null,null,null,null,null,null,null,"RIBA-H",14,1.4361999999999999,1150,"-",385,"-",535,"-"]
[null,null,null,null,null,null,null,null,null,null,null,null,null,null,null,null,null,null,null,1710,1630,1560,null,null,null,null,null,null,null,null,null,null,null,null,null,null,null,null,null,null,null,null,null,null,null,null,null,null,null,null,null,null,null,null,null,null,null,null,null,null,null,null,null,null,null,null,null,null,null,null,null,null,null,null,null,null,null,null,"RIBA-H",14,1.4461999999999999,1150,"-",385,"-",535,"-"]
[null,null,null,null,null,null,null,null,null,null,null,null,null,null,null,null,null,null,null,1720,1640,1570,null,null,null,null,null,null,null,null,null,null,null,null,null,null,null,null,null,null,null,null,null,null,null,null,null,null,null,null,null,null,null,null,null,null,null,null,null,null,null,null,null,null,null,null,null,null,null,null,null,null,null,null,null,null,null,null,"RIBA-H",16,1.4361999999999999,1300,"-",435,"-",610,"-"]
[null,null,null,null,null,null,null,null,null,null,null,null,null,null,null,null,null,null,null,1730,1650,1580,null,null,null,null,null,null,null,null,null,null,null,null,null,null,null,null,null,null,null,null,null,null,null,null,null,null,null,null,null,null,null,null,null,null,null,null,null,null,null,null,null,null,null,null,null,null,null,null,null,null,null,null,null,null,null,null,"RIBA-H",16,1.4461999999999999,1300,"-",435,"-",610,"-"]
[null,null,null,null,null,null,null,null,null,null,null,null,null,null,null,null,null,null,null,1740,1660,1590,null,null,null,null,null,null,null,null,null,null,null,null,null,null,null,null,null,null,null,null,null,null,null,null,null,null,null,null,null,null,null,null,null,null,null,null,null,null,null,null,null,null,null,null,null,null,null,null,null,null,null,null,null,null,null,null,"RIBA-H",20,1.4361999999999999,1610,"-",525,"-",765,"-"]
[null,null,null,null,null,null,null,null,null,null,null,null,null,null,null,null,null,null,null,1750,1670,1600,null,null,null,null,null,null,null,null,null,null,null,null,null,null,null,null,null,null,null,null,null,null,null,null,null,null,null,null,null,null,null,null,null,null,null,null,null,null,null,null,null,null,null,null,null,null,null,null,null,null,null,null,null,null,null,null,"RIBA-H",20,1.4461999999999999,1610,"-",525,"-",765,"-"]
[null,null,null,null,null,null,null,null,null,null,null,null,null,null,null,null,null,null,null,1760,1680,1610,null,null,null,null,null,null,null,null,null,null,null,null,null,null,null,null,null,null,null,null,null,null,null,null,null,null,null,null,null,null,null,null,null,null,null,null,null,null,null,null,null,null,null,null,null,null,null,null,null,null,null,null,null,null,null,null,"RIBA-HV",10,1.4361999999999999,960,200,290,"-",380,"-"]
[null,null,null,null,null,null,null,null,null,null,null,null,null,null,null,null,null,null,null,1770,1690,1620,null,null,null,null,null,null,null,null,null,null,null,null,null,null,null,null,null,null,null,null,null,null,null,null,null,null,null,null,null,null,null,null,null,null,null,null,null,null,null,null,null,null,null,null,null,null,null,null,null,null,null,null,null,null,null,null,"RIBA-HV",10,1.4461999999999999,960,200,290,"-",380,"-"]
[null,null,null,null,null,null,null,null,null,null,null,null,null,null,null,null,null,null,null,1780,1700,1630,null,null,null,null,null,null,null,null,null,null,null,null,null,null,null,null,null,null,null,null,null,null,null,null,null,null,null,null,null,null,null,null,null,null,null,null,null,null,null,null,null,null,null,null,null,null,null,null,null,null,null,null,null,null,null,null,"RIBA-HV",12,1.4361999999999999,1160,240,335,"-",460,"-"]
[null,null,null,null,null,null,null,null,null,null,null,null,null,null,null,null,null,null,null,1790,1710,1640,null,null,null,null,null,null,null,null,null,null,null,null,null,null,null,null,null,null,null,null,null,null,null,null,null,null,null,null,null,null,null,null,null,null,null,null,null,null,null,null,null,null,null,null,null,null,null,null,null,null,null,null,null,null,null,null,"RIBA-HV",12,1.4461999999999999,1160,240,335,"-",460,"-"]
[null,null,null,null,null,null,null,null,null,null,null,null,null,null,null,null,null,null,null,1800,1720,1650,null,null,null,null,null,null,null,null,null,null,null,null,null,null,null,null,null,null,null,null,null,null,null,null,null,null,null,null,null,null,null,null,null,null,null,null,null,null,null,null,null,null,null,null,null,null,null,null,null,null,null,null,null,null,null,null,"RIBA-HV",14,1.4361999999999999,1350,280,385,"-",535,"-"]
[null,null,null,null,null,null,null,null,null,null,null,null,null,null,null,null,null,null,null,1810,1730,1660,null,null,null,null,null,null,null,null,null,null,null,null,null,null,null,null,null,null,null,null,null,null,null,null,null,null,null,null,null,null,null,null,null,null,null,null,null,null,null,null,null,null,null,null,null,null,null,null,null,null,null,null,null,null,null,null,"RIBA-HV",14,1.4461999999999999,1350,280,385,"-",535,"-"]
[null,null,null,null,null,null,null,null,null,null,null,null,null,null,null,null,null,null,null,1820,1740,1670,null,null,null,null,null,null,null,null,null,null,null,null,null,null,null,null,null,null,null,null,null,null,null,null,null,null,null,null,null,null,null,null,null,null,null,null,null,null,null,null,null,null,null,null,null,null,null,null,null,null,null,null,null,null,null,null,"RIBA-HV",16,1.4361999999999999,1540,320,435,"-",610,"-"]
[null,null,null,null,null,null,null,null,null,null,null,null,null,null,null,null,null,null,null,1830,1750,1680,null,null,null,null,null,null,null,null,null,null,null,null,null,null,null,null,null,null,null,null,null,null,null,null,null,null,null,null,null,null,null,null,null,null,null,null,null,null,null,null,null,null,null,null,null,null,null,null,null,null,null,null,null,null,null,null,"RIBA-HV",16,1.4461999999999999,1540,320,435,"-",610,"-"]
[null,null,null,null,null,null,null,null,null,null,null,null,null,null,null,null,null,null,null,1840,1760,1690,null,null,null,null,null,null,null,null,null,null,null,null,null,null,null,null,null,null,null,null,null,null,null,null,null,null,null,null,null,null,null,null,null,null,null,null,null,null,null,null,null,null,null,null,null,null,null,null,null,null,null,null,null,null,null,null,"RIBA-HV",20,1.4361999999999999,1930,400,525,"-",765,"-"]
[null,null,null,null,null,null,null,null,null,null,null,null,null,null,null,null,null,null,null,1850,1770,1700,null,null,null,null,null,null,null,null,null,null,null,null,null,null,null,null,null,null,null,null,null,null,null,null,null,null,null,null,null,null,null,null,null,null,null,null,null,null,null,null,null,null,null,null,null,null,null,null,null,null,null,null,null,null,null,null,"RIBA-HV",20,1.4461999999999999,1930,400,525,"-",765,"-"]
[null,null,null,null,null,null,null,null,null,null,null,null,null,null,null,null,null,null,null,1860,1780,1710,null,null,null,null,null,null,null,null,null,null,null,null,null,null,null,null,null,null,null,null,null,null,null,null,null,null,null,null,null,null,null,null,null,null,null,null,null,null,null,null,null,null,null,null,null,null,null,null,null,null,null,null,null,null,null,null,"RIBA-I",10,1.4361999999999999,1005,"-",290,545,380,"-"]
[null,null,null,null,null,null,null,null,null,null,null,null,null,null,null,null,null,null,null,1870,1790,1720,null,null,null,null,null,null,null,null,null,null,null,null,null,null,null,null,null,null,null,null,null,null,null,null,null,null,null,null,null,null,null,null,null,null,null,null,null,null,null,null,null,null,null,null,null,null,null,null,null,null,null,null,null,null,null,null,"RIBA-I",10,1.4461999999999999,1005,"-",290,545,380,"-"]
[null,null,null,null,null,null,null,null,null,null,null,null,null,null,null,null,null,null,null,1880,1800,1730,null,null,null,null,null,null,null,null,null,null,null,null,null,null,null,null,null,null,null,null,null,null,null,null,null,null,null,null,null,null,null,null,null,null,null,null,null,null,null,null,null,null,null,null,null,null,null,null,null,null,null,null,null,null,null,null,"RIBA-I",12,1.4361999999999999,1195,"-",335,655,460,"-"]
[null,null,null,null,null,null,null,null,null,null,null,null,null,null,null,null,null,null,null,1890,1810,1740,null,null,null,null,null,null,null,null,null,null,null,null,null,null,null,null,null,null,null,null,null,null,null,null,null,null,null,null,null,null,null,null,null,null,null,null,null,null,null,null,null,null,null,null,null,null,null,null,null,null,null,null,null,null,null,null,"RIBA-I",12,1.4461999999999999,1195,"-",335,655,460,"-"]
[null,null,null,null,null,null,null,null,null,null,null,null,null,null,null,null,null,null,null,1900,1820,1750,null,null,null,null,null,null,null,null,null,null,null,null,null,null,null,null,null,null,null,null,null,null,null,null,null,null,null,null,null,null,null,null,null,null,null,null,null,null,null,null,null,null,null,null,null,null,null,null,null,null,null,null,null,null,null,null,"RIBA-I",14,1.4361999999999999,1380,"-",385,765,535,"-"]
[null,null,null,null,null,null,null,null,null,null,null,null,null,null,null,null,null,null,null,1910,1830,1760,null,null,null,null,null,null,null,null,null,null,null,null,null,null,null,null,null,null,null,null,null,null,null,null,null,null,null,null,null,null,null,null,null,null,null,null,null,null,null,null,null,null,null,null,null,null,null,null,null,null,null,null,null,null,null,null,"RIBA-I",14,1.4461999999999999,1380,"-",385,765,535,"-"]
[null,null,null,null,null,null,null,null,null,null,null,null,null,null,null,null,null,null,null,1920,1840,1770,null,null,null,null,null,null,null,null,null,null,null,null,null,null,null,null,null,null,null,null,null,null,null,null,null,null,null,null,null,null,null,null,null,null,null,null,null,null,null,null,null,null,null,null,null,null,null,null,null,null,null,null,null,null,null,null,"RIBA-I",16,1.4361999999999999,1560,"-",435,870,610,"-"]
[null,null,null,null,null,null,null,null,null,null,null,null,null,null,null,null,null,null,null,1930,1850,1780,null,null,null,null,null,null,null,null,null,null,null,null,null,null,null,null,null,null,null,null,null,null,null,null,null,null,null,null,null,null,null,null,null,null,null,null,null,null,null,null,null,null,null,null,null,null,null,null,null,null,null,null,null,null,null,null,"RIBA-I",16,1.4461999999999999,1560,"-",435,870,610,"-"]
[null,null,null,null,null,null,null,null,null,null,null,null,null,null,null,null,null,null,null,1940,1860,1790,null,null,null,null,null,null,null,null,null,null,null,null,null,null,null,null,null,null,null,null,null,null,null,null,null,null,null,null,null,null,null,null,null,null,null,null,null,null,null,null,null,null,null,null,null,null,null,null,null,null,null,null,null,null,null,null,"RIBA-I",20,1.4361999999999999,1935,"-",525,1090,765,"-"]
[null,null,null,null,null,null,null,null,null,null,null,null,null,null,null,null,null,null,null,1950,1870,1800,null,null,null,null,null,null,null,null,null,null,null,null,null,null,null,null,null,null,null,null,null,null,null,null,null,null,null,null,null,null,null,null,null,null,null,null,null,null,null,null,null,null,null,null,null,null,null,null,null,null,null,null,null,null,null,null,"RIBA-I",20,1.4461999999999999,1935,"-",525,1090,765,"-"]
[null,null,null,null,null,null,null,null,null,null,null,null,null,null,null,null,null,null,null,1960,1880,1810,null,null,null,null,null,null,null,null,null,null,null,null,null,null,null,null,null,null,null,null,null,null,null,null,null,null,null,null,null,null,null,null,null,null,null,null,null,null,null,null,null,null,null,null,null,null,null,null,null,null,null,null,null,null,null,null,"RIBA-IV",10,1.4361999999999999,1125,200,290,545,380,"-"]
[null,null,null,null,null,null,null,null,null,null,null,null,null,null,null,null,null,null,null,1970,1890,1820,null,null,null,null,null,null,null,null,null,null,null,null,null,null,null,null,null,null,null,null,null,null,null,null,null,null,null,null,null,null,null,null,null,null,null,null,null,null,null,null,null,null,null,null,null,null,null,null,null,null,null,null,null,null,null,null,"RIBA-IV",10,1.4461999999999999,1125,200,290,545,380,"-"]
[null,null,null,null,null,null,null,null,null,null,null,null,null,null,null,null,null,null,null,1980,1900,1830,null,null,null,null,null,null,null,null,null,null,null,null,null,null,null,null,null,null,null,null,null,null,null,null,null,null,null,null,null,null,null,null,null,null,null,null,null,null,null,null,null,null,null,null,null,null,null,null,null,null,null,null,null,null,null,null,"RIBA-IV",12,1.4361999999999999,1355,240,335,655,460,"-"]
[null,null,null,null,null,null,null,null,null,null,null,null,null,null,null,null,null,null,null,1990,1910,1840,null,null,null,null,null,null,null,null,null,null,null,null,null,null,null,null,null,null,null,null,null,null,null,null,null,null,null,null,null,null,null,null,null,null,null,null,null,null,null,null,null,null,null,null,null,null,null,null,null,null,null,null,null,null,null,null,"RIBA-IV",12,1.4461999999999999,1355,240,335,655,460,"-"]
[null,null,null,null,null,null,null,null,null,null,null,null,null,null,null,null,null,null,null,2000,1920,1850,null,null,null,null,null,null,null,null,null,null,null,null,null,null,null,null,null,null,null,null,null,null,null,null,null,null,null,null,null,null,null,null,null,null,null,null,null,null,null,null,null,null,null,null,null,null,null,null,null,null,null,null,null,null,null,null,"RIBA-IV",14,1.4361999999999999,1580,280,385,765,535,"-"]
[null,null,null,null,null,null,null,null,null,null,null,null,null,null,null,null,null,null,null,null,1930,1860,null,null,null,null,null,null,null,null,null,null,null,null,null,null,null,null,null,null,null,null,null,null,null,null,null,null,null,null,null,null,null,null,null,null,null,null,null,null,null,null,null,null,null,null,null,null,null,null,null,null,null,null,null,null,null,null,"RIBA-IV",14,1.4461999999999999,1580,280,385,765,535,"-"]
[null,null,null,null,null,null,null,null,null,null,null,null,null,null,null,null,null,null,null,null,1940,1870,null,null,null,null,null,null,null,null,null,null,null,null,null,null,null,null,null,null,null,null,null,null,null,null,null,null,null,null,null,null,null,null,null,null,null,null,null,null,null,null,null,null,null,null,null,null,null,null,null,null,null,null,null,null,null,null,"RIBA-IV",16,1.4361999999999999,1800,320,435,870,610,"-"]
[null,null,null,null,null,null,null,null,null,null,null,null,null,null,null,null,null,null,null,null,1950,1880,null,null,null,null,null,null,null,null,null,null,null,null,null,null,null,null,null,null,null,null,null,null,null,null,null,null,null,null,null,null,null,null,null,null,null,null,null,null,null,null,null,null,null,null,null,null,null,null,null,null,null,null,null,null,null,null,"RIBA-IV",16,1.4461999999999999,1800,320,435,870,610,"-"]
[null,null,null,null,null,null,null,null,null,null,null,null,null,null,null,null,null,null,null,null,1960,1890,null,null,null,null,null,null,null,null,null,null,null,null,null,null,null,null,null,null,null,null,null,null,null,null,null,null,null,null,null,null,null,null,null,null,null,null,null,null,null,null,null,null,null,null,null,null,null,null,null,null,null,null,null,null,null,null,"RIBA-IV",20,1.4361999999999999,2255,400,525,1090,765,"-"]
[null,null,null,null,null,null,null,null,null,null,null,null,null,null,null,null,null,null,null,null,1970,1900,null,null,null,null,null,null,null,null,null,null,null,null,null,null,null,null,null,null,null,null,null,null,null,null,null,null,null,null,null,null,null,null,null,null,null,null,null,null,null,null,null,null,null,null,null,null,null,null,null,null,null,null,null,null,null,null,"RIBA-IV",20,1.4461999999999999,2255,400,525,1090,765,"-"]
[null,null,null,null,null,null,null,null,null,null,null,null,null,null,null,null,null,null,null,null,1980,1910]
[null,null,null,null,null,null,null,null,null,null,null,null,null,null,null,null,null,null,null,null,1990,1920]
[null,null,null,null,null,null,null,null,null,null,null,null,null,null,null,null,null,null,null,null,2000,1930]
[null,null,null,null,null,null,null,null,null,null,null,null,null,null,null,null,null,null,null,null,null,1940]
[null,null,null,null,null,null,null,null,null,null,null,null,null,null,null,null,null,null,null,null,null,1950]
[null,null,null,null,null,null,null,null,null,null,null,null,null,null,null,null,null,null,null,null,null,1960]
[null,null,null,null,null,null,null,null,null,null,null,null,null,null,null,null,null,null,null,null,null,1970]
[null,null,null,null,null,null,null,null,null,null,null,null,null,null,null,null,null,null,null,null,null,1980]
[null,null,null,null,null,null,null,null,null,null,null,null,null,null,null,null,null,null,null,null,null,1990]
[null,null,null,null,null,null,null,null,null,null,null,null,null,null,null,null,null,null,null,null,null,2000]

{"sheet":"Sprachen","index":11,"n_rows":90,"n_cols":19,"rows_kept":90,"cut":false,"hidden":true,"merged":[]}
[]
[null,1]
[null,"Deutsch","Französisch","Italienisch","Zuordnung","Tabelle1","Tabelle2","Tabelle3","Tabelle4","Tabelle5","Tabelle6","Tabelle7","Tabelle8","Tabelle9","Tabelle10","Tabelle11","Tabelle12","Tabelle13","Tabelle14"]
[null,"Sprache","Langue","Lingua","Allgemein","Projektdaten"]
[null,"Französich","Français","Francese","Allgemein","Projektdaten"]
[null,"Deutsch","Allemand","Tedesco","Allgemein","Projektdaten"]
[null,"Objekt","Objet","Oggetto","Allgemein","Projektdaten","DURA","CRET","CRET Silent","ARBO","ARBO Silent","RIBA - Zuganker","RIBA - Geschraubte Zuganker","RIBA UB","RIBA HB","RIBA-VA","RIBA Silent","NELL","NELL Silent"]
[null,"Datum","Date","Data","Allgemein","Projektdaten","DURA","CRET","CRET Silent","ARBO","ARBO Silent","RIBA - Zuganker","RIBA - Geschraubte Zuganker","RIBA UB","RIBA HB","RIBA-VA","RIBA Silent","NELL","NELL Silent"]
[null,"Bauteil","Partie","Elemento strutturale","Allgemein","Projektdaten","DURA","CRET","CRET Silent","ARBO","ARBO Silent","RIBA - Zuganker","RIBA - Geschraubte Zuganker","RIBA UB","RIBA HB","RIBA-VA","RIBA Silent","NELL","NELL Silent"]
[null,"Zeichner/-in","Dessinateur/dessinatrice","Disegnatore/disegnatrice","Allgemein","Projektdaten","DURA","CRET","CRET Silent","ARBO","ARBO Silent","RIBA - Zuganker","RIBA - Geschraubte Zuganker","RIBA UB","RIBA HB","RIBA-VA","RIBA Silent","NELL","NELL Silent"]
[null,"Ingenieurbüro","Bureau d'ingénieurs","Studio d'ingegneria","Allgemein","Projektdaten","DURA","CRET","CRET Silent","ARBO","ARBO Silent","RIBA - Zuganker","RIBA - Geschraubte Zuganker","RIBA UB","RIBA HB","RIBA-VA","RIBA Silent","NELL","NELL Silent"]
[null,"Lieferadresse","Adresse de livraison","Indirizzo di consegna","Allgemein","Projektdaten","DURA","CRET","CRET Silent","ARBO","ARBO Silent","RIBA - Zuganker","RIBA - Geschraubte Zuganker","RIBA UB","RIBA HB","RIBA-VA","RIBA Silent","NELL","NELL Silent"]
[null,"Liste Nr.","Liste no.","Lista n.","Allgemein","Projektdaten","DURA","CRET","CRET Silent","ARBO","ARBO Silent","RIBA - Zuganker","RIBA - Geschraubte Zuganker","RIBA UB","RIBA HB","RIBA-VA","RIBA Silent","NELL","NELL Silent"]
[null,"Zu Plan Nr.","Au plan no.","Per piano n.","Allgemein","Projektdaten","DURA","CRET","CRET Silent","ARBO","ARBO Silent","RIBA - Zuganker","RIBA - Geschraubte Zuganker","RIBA UB","RIBA HB","RIBA-VA","RIBA Silent","NELL","NELL Silent"]
[null,"Name des Bestellers","Nom du client","Nome del cliente","Allgemein","Projektdaten","DURA","CRET","CRET Silent","ARBO","ARBO Silent","RIBA - Zuganker","RIBA - Geschraubte Zuganker","RIBA UB","RIBA HB","RIBA-VA","RIBA Silent","NELL","NELL Silent"]
[null,"Liefertermin","Date de livraison","Data di consegna","Allgemein","Projektdaten","DURA","CRET","CRET Silent","ARBO","ARBO Silent","RIBA - Zuganker","RIBA - Geschraubte Zuganker","RIBA UB","RIBA HB","RIBA-VA","RIBA Silent","NELL","NELL Silent"]
[null,"Bauunternehmung","Entreprise de construction","Impresa di costruzione","Allgemein","Projektdaten","DURA","CRET","CRET Silent","ARBO","ARBO Silent","RIBA - Zuganker","RIBA - Geschraubte Zuganker","RIBA UB","RIBA HB","RIBA-VA","RIBA Silent","NELL","NELL Silent"]
[null,"Typ","Type","Tipo","Allgemein",null,"DURA","CRET","CRET Silent","ARBO","ARBO Silent","RIBA - Zuganker","RIBA - Geschraubte Zuganker","RIBA UB","RIBA HB","RIBA-VA","RIBA Silent","NELL","NELL Silent"]
[null,"Anzahl","Nombre","Quantità","Allgemein",null,"DURA","CRET","CRET Silent","ARBO","ARBO Silent","RIBA - Zuganker","RIBA - Geschraubte Zuganker","RIBA UB","RIBA HB","RIBA-VA","RIBA Silent","NELL","NELL Silent"]
[null,"Bemerkungen","Remarque","Osservazioni","Allgemein",null,"DURA","CRET","CRET Silent","ARBO","ARBO Silent",null,"RIBA - Geschraubte Zuganker",null,null,"RIBA-VA","RIBA Silent","NELL"]
[null,"Bestellung","Commande","Ordine","Allgemein",null,"DURA","CRET","CRET Silent","ARBO","ARBO Silent","RIBA - Zuganker","RIBA - Geschraubte Zuganker","RIBA UB","RIBA HB","RIBA-VA","RIBA Silent","NELL","NELL Silent"]
[null,"Zurück zu Übersicht","Retour à la vue d'ensemble","Ritorno alla panoramica","Allgemein",null,"DURA","CRET","CRET Silent","ARBO","ARBO Silent","RIBA - Zuganker","RIBA - Geschraubte Zuganker","RIBA UB","RIBA HB","RIBA-VA","RIBA Silent","NELL","NELL Silent"]
[null,"Projektdaten löschen","Supprimer les données du projet","Cancellare i dati del progetto","Allgemein",null,"DURA","CRET","CRET Silent","ARBO","ARBO Silent","RIBA - Zuganker","RIBA - Geschraubte Zuganker","RIBA UB","RIBA HB","RIBA-VA","RIBA Silent","NELL","NELL Silent"]
[null,"Spezialausführungen","Exécution spéciales","Esecuzioni speciali","Allgemein",null,null,"CRET","CRET Silent","ARBO","ARBO Silent","RIBA - Zuganker","RIBA - Geschraubte Zuganker","RIBA UB",null,"RIBA-VA","RIBA Silent"]
[null,"Modell","Modèle","Modello","Allgemein",null,null,"CRET",null,null,null,null,null,"RIBA UB",null,null,"RIBA Silent"]
[null,"Projektdaten eingeben","Entrez les données du projet","Inserire i dati del progetto","Allgemein","Projektdaten"]
[null,"Bestelllisten","Liste de commande","Lista degli ordini","Allgemein","Projektdaten"]
[null,"Italienisch","Italien","Italiano","Allgemein","Projektdaten"]
[null,"Standard-Typen","Types standard","Tipi standard","Allgemein",null,null,"CRET",null,null,null,"RIBA - Zuganker","RIBA - Geschraubte Zuganker","RIBA UB","RIBA HB"]
[null,"Projektdaten in alle Bestellblätter übertragen","Reprise des données du projet dans toutes les feuilles de commande","Trasferire i dati del progetto in tutte le schede d'ordine","Allgemein","Projektdaten"]
[null,"(Masse in mm)","(Mesures en mm)","(misure in mm)","Allgemein",null,null,null,null,null,null,null,"RIBA - Geschraubte Zuganker",null,null,null,"RIBA Silent"]
[null,"gemäss beiligendem Plan","selon plan ci-joint","Secondo lo schema allegato","Allgemein",null,null,null,null,null,null,"RIBA - Zuganker",null,"RIBA UB","RIBA HB"]
[null,"ARBO-Bewehrungselemente","Éléments d'armature ARBO","Elementi d'armatura ARBO","ARBO",null,null,null,null,"ARBO"]
[null,"ARBO Silent-Bewehrungselemente","Éléments d'armature ARBO Silent","Elementi d'armatura ARBO Silent","ARBO",null,null,null,null,null,"ARBO Silent"]
[null,"CRET-Dorne","Goujons CRET ","Spinotti CRET","CRET",null,null,"CRET"]
[null,"Länge mm","Longueur mm","Lunghezza mm","CRET",null,null,"CRET"]
[null,"Fuge e = mm","Joint e = mm","Giunto e = mm","CRET",null,null,null,"CRET Silent"]
[null,"* Bügel zu","* Étriers pour","* Staffe per","CRET",null,null,"CRET","CRET Silent"]
[null,"DURA Durchstanz- und Querkraftbewehrung","Armature de poinçonnement et de cisaillement DURA","Armatura di punzonamento e taglio DURA","DURA",null,"DURA"]
[null,"Korbhöhe mm","Hauteur du panier mm","Altezza gabbia mm","DURA",null,"DURA"]
[null,"NELL-Streifenlager","Appuis linéaires NELL","Appoggi lineari NELL","NELL",null,null,null,null,null,null,null,null,null,null,null,null,"NELL"]
[null,"Kernmass mm","Dimension noyeau mm","Dimensione nucleo mm","NELL",null,null,null,null,null,null,null,null,null,null,null,null,"NELL"]
[null,"Breite mm","Largeur mm","Larghezza mm","NELL",null,null,null,null,null,null,null,null,null,null,null,null,"NELL"]
[null,"NELL-Punktlager","Apuis par points NELL","Appoggio puntuale NELL","NELL",null,null,null,null,null,null,null,null,null,null,null,null,"NELL"]
[null,"Grössen mm","Dimension mm","Dimensioni mm","NELL",null,null,null,null,null,null,null,null,null,null,null,null,"NELL"]
[null,"Stärke mm ","Epaisseur mm ","Spessore mm ","NELL",null,null,null,null,null,null,null,null,null,null,null,null,"NELL"]
[null,"NELL Silent-Treppenlager und Lager","Appuis pour escaliers et appuis NELL Silent","Appoggi per scale et appoggi NELL Silent","NELL",null,null,null,null,null,null,null,null,null,null,null,null,null,"NELL Silent"]
[null,"Zulässige Belastung kN/m","Charge admissible kN/m","Carico ammesso kN/m","NELL",null,null,null,null,null,null,null,null,null,null,null,null,null,"NELL Silent"]
[null,"Treppenlauf-breite mm","Largeur de la volée mm","Larghezza rampa mm","NELL",null,null,null,null,null,null,null,null,null,null,null,null,null,"NELL Silent"]
[null,"Stahl","Acier","Acciaio","RIBA",null,null,null,null,null,null,"RIBA - Zuganker","RIBA - Geschraubte Zuganker","RIBA UB","RIBA HB","RIBA-VA","RIBA Silent"]
[null,"RIBA geschraubte Zug-/Druckanker","Ancrages vissés de traction et compression RIBA","Ancoraggi avvitati di tensione e compressione RIBA","RIBA","Projektdaten",null,null,null,null,null,null,"RIBA - Geschraubte Zuganker"]
[null,"RIBA","RIBA","RIBA","RIBA","Projektdaten",null,null,null,null,null,"RIBA - Zuganker"]
[null,"RIBA Bügelanker UB","Étriers d’ancrage RIBA UB","Staffe d'ancoraggio RIBA UB","RIBA","Projektdaten",null,null,null,null,null,null,null,"RIBA UB"]
[null,"RIBA Bügelanker HB","Étriers d’ancrage RIBA HB","Staffe d'ancoraggio RIBA HB","RIBA","Projektdaten",null,null,null,null,null,null,null,null,"RIBA HB"]
[null,"RIBA Verbundanker","Ancrages scellés RIBA","Ancoraggi composti RIBA","RIBA","Projektdaten",null,null,null,null,null,null,null,null,null,"RIBA-VA"]
[null,"Gewindeart","Type de filetage","Tipo di filettaggio","RIBA",null,null,null,null,null,null,null,null,"RIBA UB","RIBA HB","RIBA-VA"]
[null,"gerollt","roulé","Rullato","RIBA",null,null,null,null,null,null,null,null,"RIBA UB","RIBA HB","RIBA-VA"]
[null,"geschnitten","coupé","Tagliato","RIBA",null,null,null,null,null,null,null,null,"RIBA UB","RIBA HB","RIBA-VA"]
[null,"S=geschraubt","S=vissé","S=avvitato","RIBA"]
[null,"Hammerpatronen","cartouches à marteaux","Cartucce a martello","RIBA",null,null,null,null,null,null,null,null,null,null,"RIBA-VA"]
[null,"nichtrostendes Zubehör","Accessoires inoxydables","Accessori inossidabili","RIBA",null,null,null,null,null,null,null,null,null,null,"RIBA-VA"]
[null,"RIBA Silent-Geschraubte Zug- und Druckanker mit Schalldämmung","Ancrages de traction vissés avec isolation acoustique RIBA Silent","Ancoraggi avvitati di tensione e compressione con isolamento acustico RIBA Silent","RIBA",null,null,null,null,null,null,null,null,null,null,null,"RIBA Silent"]
[null,"Dorn","Goujon","Spinotti"]
[null,"Hülse","Gaine","Guaina"]
[null,"zu","pour","per"]
[null,"exkl. Hülse","excl. gaine","escl. Guaina"]
[null,"exkl. Dorn","excl. goujon","escl. spinotto"]
[null,"Mit der Bestellung werden die Allgemeinen Geschäftsbedingungen akzeptiert","Avec la commande, les conditions générales sont acceptées.","Con l'ordine, le condizioni generali sono accettate."]
[null,"Der Gerichtsstand ist Aarberg.","Le Lieu de juridiction est Aarberg.","Il luogo di giurisdizione è Aarberg."]
[null,"Speichern unter","Enregistrer sous","Salva come"]
[null,"Speicherort:","Lieu de stockage:","Luogo di stoccaggio:"]
[null,"ohne","sans","senza"]
[null,"Beispiel","Exemple","Esempio"]
[null,"Komplett","Complet","Completo"]
[null,"Dorn + Hülse","Goujon + Gaine","Spinotti + Guaina"]
[null,"Bitte die Stahlqualität wählen","Veuillez sélectionner la qualité de l'acier","Selezionare la qualità dell'acciaio"]
[null,"ohne Isolation","sans isolation ","non isolato"]
[null,"Ihre Telefonnummer","Votre numéro de téléphone","Il vostro numero di telefono"]
[null,"Bitte Bügelabmessungen wählen","Veuillez sélectionner la dimensions de l'étrier","Selezionare le dimensioni del staffa"]
[null,"Bitte Fugenöffnung wählen","Veuillez sélectionner la l'ouverture du joint","Selezionare l'apertura del giunto"]
[null,"Bitte Fugenöffnung + Bügelabmessung wählen","Veuillez sélectionner la l'ouverture du joint et la dimensions de l'étrier","Selezionare l'apertura del giunto e le dimensioni del staffa"]
[null,"Stand. = Standardabmessung","Stand. = dimension standard","Stand.= domensione standard"]
[null,"Brandschutzmanschetten","Manchette coupe-feu","Manicotti antincendio"]
[null,"RIBA-Zubehör","RIBA-Accessoires","RIBA-Accessori "]
[null,"Abmessung Spezial  (auf Standard zurücksetzen: \n\" L \" löschen und eine leere Zeile auswählen)","Dimension spéciale (remise à zéro en standard: \nSupprimer \" L \" et sélectionner une ligne vide)","Dimensione speciale (reset a standard: \nCancellare \" L \" e selezionare una riga vuota)"]
[null,"Hülse kurz (Ortbton)","Gaine courtes (Béton coulé sur place)","Guaina corta (calcestruzzo in situ)"]
[null,"Hülse lang (Vorfabrikation)","Gaine longue (Béton préfabriqué)","Guaina lunga (Prefabbricazione )"]
[null,"Optische Abdeckplatte (zu allen APG)","Protection esthétique (pour tous APG)","Protezione estetica (per tutti APG)"]
[null,"Brandhemmende Abdeckung R90 (zu allen APG)","Protections coupe-feu R90 (pour tous APG)","Protezione antincendio R90 (per tutti APG)"]
[null,"Abdeckung gegen abhebende Kräfte (zu allen APG)","Protection contre les forces d’arrachement (pour tous APG)","Protezione contro le forze di strappo (per tutti APG)"]